{"text_format":"1","workbook":"xlsx","n_sheets":5,"sheets":["Cerere de Finanţare","Anexa 1","Anexa 2","Anexa 3","Asociati"],"not_rendered":{"charts":0,"images":1,"macros":1,"external_links":0,"defined_names":1,"comments":0,"pivot_tables":0},"unopened":[],"bounds":{"document_bytes":16777216,"sheet_cells":100000,"rows_first":2000,"rows_last":500,"rows_between":2000,"halvings":0,"cell_chars":16384,"cell_head_chars":4096},"cells_cut":0,"cells_raw":0,"read":"whole","date_system":"1900"}

{"sheet":"Cerere de Finanţare","index":0,"n_rows":726,"n_cols":57,"rows_kept":726,"cut":false,"hidden":false,"merged":[[324,0,324,34],[323,35,323,43],[323,44,323,51],[323,52,323,60],[323,0,323,34],[324,35,324,60],[321,35,321,43],[321,44,321,51],[321,52,321,60],[317,0,317,34],[317,35,317,43],[318,35,318,43],[319,35,319,43],[320,35,320,43],[318,0,318,34],[318,44,318,51],[318,52,318,60],[319,0,319,34],[319,44,319,51],[319,52,319,60],[320,0,320,34],[320,44,320,51],[320,52,320,60],[317,52,317,60],[723,13,723,34],[471,0,471,3],[471,4,471,41],[471,42,471,50],[471,51,471,60],[467,51,467,60],[468,42,468,50],[468,0,468,3],[468,4,468,41],[468,51,468,60],[470,0,470,3],[470,4,470,41],[470,42,470,50],[470,51,470,60],[469,0,469,3],[469,4,469,41],[469,42,469,50],[662,41,662,50],[662,51,662,60],[655,0,655,60],[656,51,656,60],[657,0,657,1],[658,0,658,1],[723,0,723,12],[721,43,721,46],[721,47,721,56],[697,0,697,2],[697,3,697,6],[697,8,697,9],[697,10,697,12],[472,0,472,3],[472,4,472,41],[472,42,472,60],[474,0,474,44],[359,0,359,3],[359,4,359,41],[359,42,359,50],[359,51,359,60],[362,0,362,3],[362,4,362,41],[362,42,362,50],[362,51,362,60],[361,0,361,3],[361,4,361,41],[361,42,361,50],[361,51,361,60],[376,4,376,41],[375,0,375,3],[375,4,375,41],[375,42,375,50],[375,51,375,60],[377,4,377,41],[378,4,378,41],[379,4,379,41],[383,0,383,3],[466,0,466,3],[433,7,433,41],[466,4,466,41],[466,42,466,50],[466,51,466,60],[467,0,467,3],[467,4,467,41],[467,42,467,50],[469,51,469,60],[461,0,461,3],[461,4,461,41],[461,42,461,50],[461,51,461,60],[462,0,462,3],[462,4,462,41],[462,42,462,50],[462,51,462,60],[463,0,463,3],[463,4,463,41],[463,42,463,50],[463,51,463,60],[464,0,464,3],[464,4,464,41],[464,42,464,50],[464,51,464,60],[465,0,465,3],[465,4,465,41],[465,42,465,50],[465,51,465,60],[455,0,455,3],[455,4,455,41],[455,42,455,50],[455,51,455,60],[456,0,456,60],[457,0,457,3],[457,4,457,41],[457,42,457,50],[457,51,457,60],[458,0,458,60],[459,0,459,3],[459,4,459,41],[459,42,459,50],[459,51,459,60],[460,0,460,3],[460,4,460,41],[460,42,460,50],[460,51,460,60],[451,0,451,3],[451,4,451,41],[451,42,451,50],[451,51,451,60],[452,0,452,3],[452,4,452,41],[452,42,452,50],[452,51,452,60],[453,0,453,3],[453,4,453,41],[453,42,453,50],[453,51,453,60],[454,0,454,41],[454,42,454,60],[446,0,446,3],[446,4,446,41],[446,42,446,50],[446,51,446,60],[447,0,447,3],[447,4,447,41],[447,42,447,50],[447,51,447,60],[448,0,448,3],[448,4,448,41],[448,42,448,50],[448,51,448,60],[449,0,449,3],[449,4,449,41],[449,42,449,50],[449,51,449,60],[450,0,450,3],[450,4,450,41],[450,42,450,50],[450,51,450,60],[439,0,439,60],[440,0,440,60],[441,0,441,60],[442,0,442,3],[442,4,442,41],[442,42,442,50],[442,51,442,60],[443,0,443,3],[443,4,443,41],[443,42,443,50],[443,51,443,60],[444,0,444,3],[444,4,444,41],[444,42,444,50],[444,51,444,60],[445,0,445,3],[445,4,445,41],[445,42,445,50],[445,51,445,60],[427,0,427,41],[427,42,427,50],[427,51,427,60],[428,0,428,41],[428,42,428,50],[428,51,428,60],[429,0,429,41],[429,42,429,60],[431,0,431,43],[434,7,434,41],[434,42,435,60],[435,7,435,41],[436,7,436,41],[436,42,436,50],[436,51,436,60],[437,7,437,60],[438,0,438,60],[422,0,422,3],[422,4,422,41],[422,42,422,50],[422,51,422,60],[423,0,423,3],[423,4,423,41],[423,42,423,50],[423,51,423,60],[424,0,424,3],[424,4,424,41],[424,42,424,50],[424,51,424,60],[426,0,426,3],[426,4,426,41],[426,42,426,50],[426,51,426,60],[425,0,425,3],[425,4,425,41],[425,42,425,50],[425,51,425,60],[420,0,420,3],[420,4,420,41],[420,42,420,50],[420,51,420,60],[414,0,414,3],[414,4,414,41],[414,42,414,50],[414,51,414,60],[415,0,415,3],[415,4,415,41],[415,42,415,50],[415,51,415,60],[416,0,416,3],[416,4,416,41],[416,42,416,50],[416,51,416,60],[421,0,421,60],[408,0,408,60],[409,0,409,3],[409,4,409,41],[409,42,409,60],[410,0,410,41],[410,42,410,50],[410,51,410,60],[412,0,412,3],[412,4,412,41],[412,42,412,50],[412,51,412,60],[413,0,413,3],[413,4,413,41],[413,42,413,50],[413,51,413,60],[411,0,411,60],[419,0,419,3],[417,0,417,3],[417,4,417,41],[417,42,417,50],[417,51,417,60],[418,0,418,60],[419,4,419,41],[419,42,419,50],[419,51,419,60],[396,0,396,3],[396,4,396,41],[396,42,396,50],[396,51,396,60],[397,0,397,41],[397,42,397,60],[399,0,399,42],[401,7,401,41],[402,7,402,41],[402,42,403,60],[403,7,403,41],[404,7,404,41],[404,42,404,50],[404,51,404,60],[405,7,405,60],[406,0,406,60],[407,0,407,60],[389,0,389,3],[389,4,389,41],[389,42,389,50],[389,51,389,60],[390,0,390,3],[390,4,390,41],[390,42,390,50],[390,51,390,60],[391,0,391,3],[391,4,391,41],[391,42,391,50],[391,51,391,60],[392,0,392,3],[392,4,392,41],[392,42,392,50],[392,51,392,60],[395,0,395,3],[395,4,395,41],[395,42,395,50],[395,51,395,60],[393,0,393,3],[393,4,393,41],[393,42,393,50],[393,51,393,60],[394,0,394,3],[394,4,394,41],[394,42,394,50],[394,51,394,60],[381,0,381,3],[381,4,381,41],[381,42,381,50],[381,51,381,60],[382,0,382,3],[382,4,382,41],[382,42,382,50],[382,51,382,60],[387,4,387,41],[387,42,387,50],[387,51,387,60],[388,0,388,3],[388,4,388,41],[388,42,388,50],[388,51,388,60],[383,4,383,41],[383,42,383,50],[383,51,383,60],[384,0,384,3],[384,4,384,41],[384,42,384,50],[384,51,384,60],[385,0,385,3],[385,4,385,41],[385,42,385,50],[385,51,385,60],[386,0,386,3],[386,4,386,41],[386,42,386,50],[386,51,386,60],[387,0,387,3],[376,0,376,3],[376,42,376,50],[376,51,376,60],[377,0,377,3],[377,42,377,50],[377,51,377,60],[378,0,378,3],[378,42,378,50],[378,51,378,60],[379,0,379,3],[379,42,379,50],[379,51,379,60],[380,0,380,3],[380,4,380,41],[380,42,380,50],[380,51,380,60],[373,4,373,41],[374,0,374,3],[374,4,374,41],[373,0,373,3],[373,42,373,50],[373,51,373,60],[374,42,374,50],[374,51,374,60],[368,0,368,3],[368,4,368,41],[368,42,368,50],[368,51,368,60],[369,0,369,3],[369,4,369,41],[369,42,369,50],[369,51,369,60],[370,0,370,3],[370,4,370,41],[370,42,370,50],[370,51,370,60],[371,0,371,3],[371,4,371,41],[371,42,371,50],[371,51,371,60],[372,0,372,3],[372,4,372,41],[372,42,372,50],[372,51,372,60],[363,4,363,41],[363,42,363,50],[363,51,363,60],[364,0,364,3],[364,4,364,41],[364,42,364,50],[364,51,364,60],[365,0,365,3],[365,4,365,41],[365,42,365,50],[365,51,365,60],[366,0,366,3],[366,4,366,41],[366,42,366,50],[366,51,366,60],[367,0,367,3],[367,4,367,41],[367,42,367,50],[367,51,367,60],[358,51,358,60],[304,0,304,34],[304,35,304,43],[304,44,304,51],[304,52,304,60],[305,0,305,34],[305,35,305,43],[305,44,305,51],[305,52,305,60],[306,0,306,34],[306,35,306,43],[306,44,306,51],[306,52,306,60],[307,0,307,34],[311,0,311,34],[311,35,311,43],[311,44,311,51],[311,52,311,60],[312,0,312,34],[315,35,315,43],[315,44,315,51],[315,52,315,60],[316,0,316,34],[316,35,316,43],[316,44,316,51],[316,52,316,60],[322,0,322,34],[322,35,322,43],[322,44,322,51],[322,52,322,60],[325,0,325,34],[325,35,325,43],[302,35,302,43],[302,44,302,51],[302,52,302,60],[350,7,350,41],[307,35,307,43],[307,44,307,51],[307,52,307,60],[308,0,308,34],[308,35,308,43],[308,44,308,51],[308,52,308,60],[309,0,309,34],[309,35,309,43],[309,44,309,51],[309,52,309,60],[310,0,310,34],[310,35,310,43],[310,44,310,51],[310,52,310,60],[312,35,312,43],[312,44,312,51],[312,52,312,60],[313,0,313,34],[313,35,313,43],[313,44,313,51],[313,52,313,60],[314,0,314,34],[314,35,314,43],[314,44,314,51],[314,52,314,60],[315,0,315,34],[321,0,321,34],[7,36,8,60],[13,36,21,60],[662,2,662,40],[665,2,665,40],[666,2,666,40],[667,2,667,40],[663,0,663,60],[664,0,664,40],[675,0,675,40],[677,0,677,60],[665,0,665,1],[665,41,665,50],[665,51,665,60],[666,0,666,1],[666,41,666,50],[666,51,666,60],[667,0,667,1],[667,41,667,50],[667,51,667,60],[675,41,675,50],[675,51,675,60],[664,41,664,50],[251,56,252,59],[255,56,256,59],[267,1,267,10],[267,12,267,17],[27,1,27,45],[27,48,27,59],[28,48,28,59],[99,33,99,43],[100,33,100,43],[136,1,136,41],[725,0,725,7],[711,12,711,59],[713,12,713,59],[87,1,91,13],[79,1,83,13],[701,40,701,59],[703,0,703,5],[705,0,705,19],[705,20,705,30],[649,0,649,60],[650,51,650,60],[650,41,650,50],[650,0,650,40],[703,6,703,30],[707,0,707,51],[707,52,707,59],[709,0,709,5],[709,6,709,59],[717,0,717,3],[717,4,717,14],[717,15,717,59],[719,0,719,60],[721,0,721,10],[721,12,721,27],[297,44,297,51],[297,52,297,60],[298,0,298,34],[298,35,298,43],[298,44,298,51],[298,52,298,60],[299,0,299,34],[299,35,299,43],[697,19,697,20],[697,21,697,23],[697,25,697,28],[697,30,697,36],[697,38,697,45],[697,47,697,56],[699,0,699,10],[699,11,699,21],[699,23,699,25],[699,26,699,36],[699,38,699,42],[699,43,699,59],[715,21,715,52],[688,0,688,14],[689,0,689,14],[691,0,691,14],[693,0,693,4],[693,5,693,12],[693,14,693,17],[693,18,693,31],[693,33,693,37],[693,38,693,57],[695,0,695,4],[695,5,695,18],[695,21,695,23],[695,25,695,37],[695,39,695,42],[695,44,695,59],[697,14,697,15],[697,16,697,17],[687,15,687,59],[689,15,689,59],[680,0,680,60],[681,0,681,60],[682,0,682,60],[683,0,683,60],[684,0,684,60],[685,0,685,60],[686,0,686,60],[687,0,687,14],[603,50,603,60],[604,17,604,49],[604,50,604,60],[618,0,620,16],[618,17,618,49],[618,50,618,60],[620,50,620,60],[621,0,623,16],[621,17,621,49],[621,50,621,60],[623,17,623,49],[623,50,623,60],[622,17,622,49],[651,41,651,50],[651,51,651,60],[652,41,652,50],[652,51,652,60],[653,41,653,50],[653,51,653,60],[664,51,664,60],[662,0,662,1],[661,41,661,50],[260,4,260,40],[258,19,258,41],[258,42,258,48],[258,49,258,55],[259,14,259,18],[259,19,259,41],[259,42,259,48],[259,49,259,55],[259,1,259,13],[255,42,255,48],[255,49,255,55],[651,0,651,1],[652,0,652,1],[622,50,622,60],[587,17,587,49],[588,17,588,49],[591,17,591,49],[583,50,583,60],[584,50,584,60],[585,50,585,60],[586,50,586,60],[587,50,587,60],[588,50,588,60],[591,50,591,60],[594,0,597,16],[594,17,594,49],[597,17,597,49],[594,50,594,60],[299,44,299,51],[299,52,299,60],[300,0,300,34],[300,35,300,43],[253,1,253,13],[254,1,254,13],[255,1,255,13],[256,1,256,13],[257,1,257,13],[258,1,258,13],[253,14,253,18],[256,14,256,18],[258,14,258,18],[253,56,253,59],[254,56,254,59],[257,56,259,59],[256,19,256,41],[256,42,256,48],[256,49,256,55],[257,14,257,18],[257,19,257,41],[257,42,257,48],[257,49,257,55],[253,19,253,41],[253,42,253,48],[253,49,253,55],[254,14,254,18],[254,19,254,41],[254,42,254,48],[254,49,254,55],[255,14,255,18],[255,19,255,41],[243,0,243,60],[199,1,199,13],[199,20,199,32],[216,0,241,60],[244,2,244,60],[245,2,245,60],[249,1,250,13],[249,14,249,55],[249,56,250,59],[250,14,250,18],[250,19,250,41],[250,42,250,48],[250,49,250,55],[251,1,251,13],[251,14,251,18],[251,19,251,41],[251,42,251,48],[251,49,251,55],[200,20,200,32],[252,1,252,13],[252,14,252,18],[252,19,252,41],[252,42,252,48],[252,49,252,55],[194,1,194,37],[195,1,195,19],[195,22,195,39],[195,42,195,58],[196,1,196,19],[196,22,196,39],[196,42,196,58],[160,28,160,35],[161,28,162,35],[198,1,198,6],[198,8,198,34],[198,36,198,39],[209,2,209,56],[210,2,210,56],[212,2,212,27],[212,31,212,56],[213,2,213,27],[213,31,213,56],[202,1,202,23],[199,38,199,50],[200,38,200,50],[204,0,204,60],[206,2,206,27],[206,31,206,56],[207,31,207,56],[207,2,207,27],[200,1,200,13],[153,0,153,60],[154,1,154,32],[144,1,144,58],[145,1,145,58],[147,3,148,13],[147,14,148,24],[147,25,148,35],[147,36,148,46],[147,47,147,57],[148,47,148,57],[160,37,160,48],[161,37,162,48],[160,51,160,58],[161,51,162,58],[156,3,156,10],[157,3,157,16],[156,24,156,49],[160,4,160,15],[161,4,161,6],[161,7,161,9],[161,10,161,15],[162,4,162,6],[162,7,162,9],[162,10,162,15],[160,18,160,20],[160,21,160,26],[161,21,162,26],[161,18,162,20],[157,24,157,49],[141,36,141,58],[142,36,142,58],[142,1,142,9],[150,4,150,13],[150,16,150,23],[150,26,150,34],[149,47,151,57],[150,36,150,46],[129,2,129,3],[129,4,129,5],[129,6,129,7],[129,8,129,9],[129,13,129,14],[129,15,129,16],[129,17,129,18],[129,23,129,24],[129,25,129,26],[129,27,129,28],[129,33,129,34],[129,35,129,36],[129,37,129,38],[129,43,129,44],[129,45,129,46],[140,41,140,43],[140,45,140,47],[140,49,140,51],[140,53,140,55],[131,48,131,55],[101,35,101,39],[104,1,104,22],[114,1,114,18],[106,2,108,28],[108,40,108,59],[108,30,108,38],[106,40,106,59],[111,2,113,28],[111,40,111,59],[123,2,123,14],[123,19,123,39],[123,43,123,58],[118,0,118,60],[122,43,122,58],[119,0,119,60],[120,1,120,18],[121,1,122,15],[121,19,121,39],[122,19,122,39],[121,43,121,58],[109,2,109,12],[109,13,109,23],[109,24,109,28],[113,30,113,38],[113,40,113,59],[101,24,101,33],[102,24,102,50],[103,26,104,58],[95,1,95,22],[89,27,89,37],[89,39,89,48],[89,50,89,58],[89,15,89,25],[99,28,99,30],[71,1,75,13],[65,39,65,48],[57,15,57,25],[57,27,57,37],[57,39,57,48],[57,50,57,58],[73,15,73,25],[73,27,73,37],[73,39,73,48],[73,50,73,58],[65,50,65,58],[63,1,67,13],[55,1,59,13],[65,15,65,25],[65,27,65,37],[81,15,81,25],[81,27,81,37],[81,39,81,48],[81,50,81,58],[98,31,98,35],[18,0,18,7],[15,30,15,34],[16,30,16,34],[17,30,17,34],[14,6,14,8],[15,6,15,8],[16,6,16,8],[14,9,14,11],[14,12,14,14],[15,12,15,14],[14,27,14,28],[15,27,15,28],[14,24,14,26],[15,24,15,26],[16,12,16,14],[0,6,0,60],[1,6,1,60],[7,0,7,34],[8,0,8,34],[10,7,10,34],[6,36,6,60],[3,42,3,60],[12,0,12,5],[12,7,13,7],[12,9,13,9],[12,10,13,10],[12,12,13,12],[5,0,6,34],[5,36,5,60],[13,0,13,5],[12,21,13,21],[15,9,15,11],[18,9,18,20],[10,36,10,60],[11,36,12,60],[15,20,15,23],[16,20,16,23],[17,20,17,23],[14,15,14,18],[15,15,15,18],[12,13,13,13],[12,15,13,15],[12,16,13,16],[12,17,13,17],[12,18,13,18],[12,20,13,20],[12,30,13,30],[12,31,13,31],[12,32,13,32],[12,33,13,33],[12,34,13,34],[14,30,14,34],[14,20,14,23],[12,22,13,22],[12,23,13,23],[12,25,13,25],[12,27,13,27],[12,28,13,28],[300,44,300,51],[300,52,300,60],[301,0,301,34],[301,35,301,43],[301,44,301,51],[301,52,301,60],[302,0,302,34],[37,1,37,22],[25,1,25,7],[28,1,28,15],[22,0,22,16],[23,0,23,60],[25,10,25,60],[26,10,26,60],[19,0,19,21],[20,0,20,7],[21,0,21,21],[30,1,30,16],[53,50,53,58],[51,27,51,40],[51,41,51,59],[49,2,49,19],[50,0,50,15],[51,0,51,12],[51,13,51,25],[53,1,53,13],[53,15,53,25],[53,27,53,37],[53,39,53,48],[29,1,29,59],[31,1,36,59],[38,1,47,59],[286,0,286,34],[286,35,286,43],[286,44,286,51],[286,52,286,60],[287,0,287,34],[287,35,287,43],[287,44,287,51],[287,52,287,60],[291,0,291,34],[288,35,288,43],[288,44,288,51],[288,52,288,60],[289,0,289,34],[289,35,289,43],[289,44,289,51],[289,52,289,60],[290,0,290,34],[290,35,290,43],[290,44,290,51],[290,52,290,60],[486,50,486,54],[486,55,486,60],[487,30,487,49],[487,50,487,60],[491,0,491,29],[491,30,491,34],[491,35,491,41],[476,0,476,29],[477,0,477,29],[476,30,477,60],[479,0,479,29],[480,0,480,29],[482,0,482,29],[493,0,493,29],[493,30,493,34],[493,35,493,41],[493,42,493,49],[493,50,493,54],[493,55,493,60],[487,0,487,29],[488,0,488,29],[488,30,488,34],[488,55,488,60],[483,55,483,60],[484,55,484,60],[485,0,485,60],[506,55,506,60],[509,0,509,29],[509,30,509,34],[509,35,509,41],[509,50,509,54],[509,55,509,60],[504,0,504,29],[504,30,504,34],[504,35,504,41],[504,42,504,49],[504,50,504,54],[504,55,504,60],[502,0,502,29],[502,30,502,34],[502,35,502,41],[502,42,502,49],[502,50,502,54],[502,55,502,60],[506,0,506,29],[507,55,507,60],[506,50,506,54],[507,50,507,54],[503,0,503,29],[503,35,503,41],[503,42,503,49],[503,50,503,54],[503,55,503,60],[505,42,505,49],[505,35,505,41],[505,0,505,29],[508,0,508,29],[508,35,508,41],[492,30,492,34],[492,35,492,41],[492,42,492,49],[496,0,496,29],[496,30,496,34],[496,35,496,41],[511,0,511,29],[513,0,513,29],[514,0,514,29],[515,0,515,29],[522,0,522,29],[507,0,507,29],[512,0,512,29],[527,0,527,29],[524,0,524,29],[506,30,506,34],[506,35,506,41],[506,42,506,49],[507,30,507,34],[507,35,507,41],[514,30,514,34],[514,35,514,41],[514,42,514,49]],"merged_total":1687,"flags":["merged_cut"]}
[null,null,null,null,null,null,"MINISTERUL AGRICULTURII ŞI DEZVOLTĂRII RURALE"]
[null,null,null,null,null,null,"AGENŢIA PENTRU FINANŢAREA INVESTIŢIILOR RURALE"]
[null,null,null,null,null,null,null,null,null,null,null,null,null,null,null,null,null,null,null,null,null,null,null,null,null,null,null,null,null,null,null,null,null,null,null,null,null,null,null,null,null,null,null,null,null,null,null,null,null,null,null,"V1/2018"]
[null,null,null,null,null,null,null,null,null,null,null,null,null,null,null,null,null,null,null,null,null,null,null,null,null,null,null,null,null,null,null,null,null,null,null,null,null,null,null,null,null,null,"SECŢIUNE GENERALĂ"]
[]
["DATE DE ÎNREGISTRARE",null,null,null,null,null,null,null,null,null,null,null,null,null,null,null,null,null,null,null,null,null,null,null,null,null,null,null,null,null,null,null,null,null,null,null,"NUME ŞI PRENUME DIRECTOR GENERAL"]
[null,null,null,null,null,null,null,null,null,null,null,null,null,null,null,null,null,null,null,null,null,null,null,null,null,null,null,null,null,null,null,null,null,null,null,null,"ADJUNCT CRFIR"]
["Se completează de către Agenția pentru Finanțarea Investițiilor Rurale -Centrul"]
["Regional- Programul FEADR 2014-2020"]
[]
["OJFIR/CRFIR",null,null,null,null,null,null,null,null,null,null,null,null,null,null,null,null,null,null,null,null,null,null,null,null,null,null,null,null,null,null,null,null,null,null,null,"Semnătura Director General Adjunct CRFIR"]
[null,null,null,null,null,null,null,null,null,null,null,null,null,null,null,null,null,null,null,null,null,null,null,null,null,null,null,null,null,null,null,null,null,null,null,null,"Ştampila CRFIR"]
["Număr "]
["înregistrare"]
[]
[]
[]
[]
["Data Înregistrării"]
["Numele şi prenumele persoanei care înregistrează"]
["Semnătura:"]
["Data primirii cererii de finanţare la contractare:"]
["Se completează de către solicitant"]
["A PREZENTARE GENERALĂ"]
[]
[null,"A1 Măsura",null,null,null,null,null,null,null,null,"Sub-măsura 19.2 "]
[null,null,null,null,null,null,null,null,null,null," - M7b/6A Dezvoltarea de afaceri non-agricole"]
[null,"Conţinutul cadru al documentaţiei tehnico-economice faza SF/DALI conform : ",null,null,null,null,null,null,null,null,null,null,null,null,null,null,null,null,null,null,null,null,null,null,null,null,null,null,null,null,null,null,null,null,null,null,null,null,null,null,null,null,null,null,null,null,null,null,"H.G. nr. 907/2016"]
[null,"A2 Denumire solicitant:"]
[]
[null,"A3 Titlu proiect:"]
[]
[]
[]
[]
[]
[]
[null,"A4 Descrierea succintă a proiectului:"]
[]
[]
[]
[]
[]
[]
[]
[]
[]
[]
[]
[null,null,"A5 Amplasarea proiectului:"]
[]
["Regiunea de dezvoltare:",null,null,null,null,null,null,null,null,null,null,null,null,null,null,null,null,null,null,null,null,null,null,null,null,null,null,"Judeţ:"]
[]
[null,"Obiectivele investiţiei",null,null,null,null,null,null,null,null,null,null,null,null,null,"Judeţ",null,null,null,null,null,null,null,null,null,null,null,"Comună/Oraş",null,null,null,null,null,null,null,null,null,null,null,"Sat/Sector",null,null,null,null,null,null,null,null,null,null,"Sat/Sector"]
[]
[]
[]
[]
[]
[]
[]
[]
[]
[]
[]
[]
[]
[]
[]
[]
[]
[]
[]
[]
[]
[]
[]
[]
[]
[]
[]
[]
[]
[]
[]
[]
[]
[]
[]
[]
[]
[]
[]
[]
[]
[null,"A6 Date despre tipul de proiect şi beneficiar:"]
[]
[null,"A6.0  Tip zona",null,null,null,null,null,null,null,null,null,"Restul teritoriului"]
[null,null,null,null,null,null,null,null,null,null,null,null,null,null,null,null,null,null,null,null,null,null,null,null,null,null,null,null,null,null,null,"A 6.3"]
[null,"A6.1",null,null,null,null,"Proiect cu construcții montaj",null,null,null,null,null,null,null,null,null,null,null,null,null,null,null,null,null,null,null,null,null,null,null,null,null,null,"Beneficiar privat"]
[null,null,null,null,null,null,"Proiect fără construcții montaj"]
[null,null,null,null,null,null,null,null,null,null,null,null,null,null,null,null,null,null,null,null,null,null,null,null,"A 6.4  Prescorare"]
[null,"A6.2",null,null,null,null,"Modernizare și/sau Extindere",null,null,null,null,null,null,null,null,null,null,null,null,null,null,null,null,null,"A 6.4.1 Detaliere criterii de selecţie îndeplinite:"]
[null,null,null,null,null,null,"Investiție nouă",null,null,null,null,null,null,null,null,null,null,null,null,null,null,null,null,null,null,null,"SE1 - …p, SE2 - …p, SE3 - …p, SE4 - …p, SE5 - …p, SE6 - …p, SE7 - …p, SE8 - …p, \nSE9 - …p, SE10 - …p, SE11 - …p, SE12 - …p, SE13 - …p"]
[]
[null,"Denumire consultant: "]
[null,null,null,null,null,null,null,null,null,null,null,null,null,null,null,null,null,null,null,null,null,null,null,null,null,null,null,null,null,null,null,"CUI"]
[]
[null,null,null,null,null,null,null,null,null,null,null,null,null,null,null,null,null,null,null,null,null,null,null,null,null,null,null,null,null,null,"Nr. Inreg. ONRC"]
[]
[null,"Denumire proiectant: "]
[null,null,null,null,null,null,null,null,null,null,null,null,null,null,null,null,null,null,null,null,null,null,null,null,null,null,null,null,null,null,null,"CUI"]
[]
[null,null,null,null,null,null,null,null,null,null,null,null,null,null,null,null,null,null,null,null,null,null,null,null,null,null,null,null,null,null,"Nr. Inreg. ONRC"]
[]
[null,null,null,null,"Proiect tehnic",null,null,null,null,null,null,null,null,null,null,null,"Autorizație",null,null,null,null,null,null,null,null,"Studiu de impact"]
[]
[]
["B INFORMAŢII PRIVIND SOLICITANTUL"]
["B1 Descrierea solicitantului"]
[null,"B1.1 Informaţii privind solicitantul"]
[null,"Data înființării",null,null,null,null,null,null,null,null,null,null,null,null,null,null,null,null,null,"Cod Unic de Înregistrare și/sau Codul de",null,null,null,null,null,null,null,null,null,null,null,null,null,null,null,null,null,null,null,null,null,null,null,"Statut juridic al solicitantului"]
[null,null,null,null,null,null,null,null,null,null,null,null,null,null,null,null,null,null,null,"Înregistrare Fiscală"]
[]
[]
[null,"Număr de înregistrare în registrul comerțului"]
[]
[null,"Codul CAEN al activităţii/activităţilor finanţate prin proiect"]
[]
[]
[]
[null,"Codul unic de înregistrare APIA",null,null,null,null,null,null,null,null,null,null,null,null,null,null,null,null,null,null,null,null,null,null,null,null,null,null,null,null,null,null,null,null,null,null,"Anul atribuirii codului"]
[]
[null,"Codul Registru Național al Exploatațiilor ANSVSA",null,null,null,null,null,null,null,null,null,null,null,null,null,null,null,null,null,null,null,null,null,null,null,null,null,null,null,null,null,null,null,null,null,null,"Anul atribuirii codului"]
[]
[]
[null,"B1.2 Sediul social / Domiciliul stabil al solicitantului / Reşedinţa din România"]
[null,"Judeţ",null,null,null,null,null,null,null,null,null,null,null,null,null,null,null,null,null,null,null,null,"Localitate",null,null,null,null,null,null,null,null,null,null,null,null,null,null,null,null,null,null,null,"Sat"]
[]
[null,"Cod Poştal",null,null,null,null,null,null,"Strada",null,null,null,null,null,null,null,null,null,null,null,null,null,null,null,null,null,null,null,null,null,null,null,null,null,null,null,null,"Nr.",null,null,null,"Bloc",null,null,null,"Scara",null,null,null,"Etaj",null,null,null,"Apartament"]
[]
[null,"Telefon fix",null,null,null,null,null,null,null,null,null,"Telefon mobil",null,null,null,null,null,null,null,null,null,"Fax",null,null,null,null,null,null,null,null,null,null,null,null,null,null,"E-mail"]
[]
[]
[null,"B1.3 Numele şi prenumele reprezentantului legal şi funcţia acestuia în cadrul organizaţiei, precum şi"]
[null,"specimenul de semnatură:"]
[]
[null,null,null,"Numele",null,null,null,null,null,null,null,null,null,null,"Prenumele",null,null,null,null,null,null,null,null,null,null,"Funcţia",null,null,null,null,null,null,null,null,null,null,"Reprezentant legal",null,null,null,null,null,null,null,null,null,null,"Specimen de"]
[null,null,null,null,null,null,null,null,null,null,null,null,null,null,null,null,null,null,null,null,null,null,null,null,null,null,null,null,null,null,null,null,null,null,null,null,null,null,null,null,null,null,null,null,null,null,null,"semnătură"]
[]
[null,null,null,null,null,null,null,null,null,null,null,null,null,null,null,null,null,null,null,null,null,null,null,null,null,null,null,null,null,null,null,null,null,null,null,null,"LEGAL"]
[]
[]
["B2 Informaţii referitoare la reprezentantul legal de proiect"]
[null,"B2.1 Date de identitate ale reprezentantului legal de proiect"]
[]
[null,null,null,"Data naşterii",null,null,null,null,null,null,null,null,null,null,null,null,null,null,null,null,null,null,null,null,"Cod numeric personal"]
[]
[]
[]
[null,null,null,null,"Act de identitate",null,null,null,null,null,null,null,null,null,null,null,null,null,"Seria",null,null,"Nr.",null,null,null,null,null,null,"Eliberat la data de",null,null,null,null,null,null,null,null,"de:",null,null,null,null,null,null,null,null,null,null,null,null,null,"Valabil până la:"]
[null,null,null,null,"B.I.",null,null,"C.I.",null,null,"Paşaport"]
[]
[]
[null,null,null,null,"Asociat unic",null,null,null,null,null,null,null,null,null,null,null,"Asociat majoritar",null,null,null,null,null,null,null,null,null,null,"Administrator"]
[]
[null,"Asociați"]
[null,null,null,null,null,"Persoană Fizică: "]
[null,null,null,"Nume și prenume asociat : "]
[]
[null,null,null,"Data naşterii",null,null,null,null,null,null,null,null,null,null,null,null,null,null,null,null,null,null,null,null,"Cod numeric personal"]
[]
[]
[]
[]
[null,null,null,null,"Act de identitate",null,null,null,null,null,null,null,null,null,null,null,null,null,"Seria",null,null,"Nr.",null,null,null,null,null,null,"Eliberat la data de",null,null,null,null,null,null,null,null,"de:",null,null,null,null,null,null,null,null,null,null,null,null,null,"Valabil până la:"]
[null,null,null,null,"B.I.",null,null,"C.I.",null,null,"Paşaport"]
[]
[]
[null,null,"Adresa și domiciliul asociatului:"]
[null,null,null,"Judeţ",null,null,null,null,null,null,null,null,null,null,null,null,null,null,null,null,null,null,null,null,null,"Localitate",null,null,null,null,null,null,null,null,null,null,null,null,null,null,null,null,null,null,"Sat"]
[]
[null,null,null,"Cod Poştal",null,null,null,null,null,null,null,null,null,"Strada",null,null,null,null,null,null,null,null,null,null,null,null,null,null,null,null,null,"Nr.",null,null,null,null,"Bloc",null,null,null,null,"Scara",null,null,null,null,"Etaj",null,null,null,null,null,"Apartament"]
[]
[null,null,null,null,null,"Persoană Juridică: "]
[]
[null,null,null,null,null,null,null,"Înregistrată în România"]
[null,null,null,null,null,null,null,"Înregistrată în altă țară"]
[]
[null,null,null,"Denumire : "]
[]
[null,null,null,null,"CUI",null,null,null,null,null,null,null,null,null,null,null,null,null,null,"Nr. Inreg. ONRC"]
[]
[]
[null,"B2.2 Domiciliul stabil al reprezentantului legal de proiect"]
[null,"Judeţ",null,null,null,null,null,null,null,null,null,null,null,null,null,null,null,null,null,null,null,null,"Localitate",null,null,null,null,null,null,null,null,null,null,null,null,null,null,null,null,null,null,null,"Sat"]
[]
[null,"Cod Poştal",null,null,null,null,null,null,"Strada",null,null,null,null,null,null,null,null,null,null,null,null,null,null,null,null,null,null,null,null,null,null,null,null,null,null,null,null,"Nr.",null,null,null,"Bloc",null,null,null,"Scara",null,null,null,"Etaj",null,null,null,"Apartament"]
[]
[null,"Telefon fix",null,null,null,null,null,null,null,null,null,null,null,null,null,null,null,null,null,null,"Telefon mobil",null,null,null,null,null,null,null,null,null,null,null,null,null,null,null,null,null,"Fax"]
[]
[null,"E-mail"]
[]
[]
["B3 Informaţii privind contul bancar "]
[]
[null,null,"B3.1 Denumirea Băncii",null,null,null,null,null,null,null,null,null,null,null,null,null,null,null,null,null,null,null,null,null,null,null,null,null,null,null,null,"Denumirea Sucursalei/Filialei"]
[]
[]
[null,null,"B3.2 Adresa Băncii/Sucursalei"]
[]
[]
[null,null,"B3.3 Cod IBAN",null,null,null,null,null,null,null,null,null,null,null,null,null,null,null,null,null,null,null,null,null,null,null,null,null,null,null,null,"B3.4 Titularul contului bancar"]
[]
[]
[]
["REGULI DE COMPLETARE\n\nCompletaţi devizele aferente capitolelor de cheltuieli, defalcat pe cheltuieli eligibile şi neeligibile prin completarea tabelelor incluse în acest document, respectiv :\n1. Tabelul \"Deviz financiar_cap3\" cuprinde cheltuielile aferente capitolului 3 - Cheltuieli pentru proiectare şi asistenţă tehnică, cheltuieli care trebuie să se regăsească atât în Bugetul Indicativ (Tabel \"Buget indicativ\" din cererea de finanţare, partea specifică) cât şi în Devizul General din Studiul de Fezabilitate.\n2. Tabelul \"Devize obiect\" cuprinde formatul cadru al devizului pe obiect, iar solicitantul va completa atâtea devize pe obiect câte obiecte de investiţie sunt incluse în proiect. Suma tuturor devizelor pe obiect trebuie să se regăsească atât în Bugetul Indicativ (tabelul \"Buget indicativ\" din cererea de finanţare, partea specifică) cât şi în Devizul General din Studiul de Fezabilitate.\n   În cazul în care proiectul de investiţii presupune mai multe devize pe obiect, solicitantul va crea în documentul curent câte o copie a tabelului \"Devize obiect\" pentru fiecare deviz pe obiect şi va detalia cheltuielile eligibile şi neeligibile pe fiecare în parte.\n3. Tabelul \"cap.2+cap.5\" cuprinde cheltuieli aferente capitolelor 2 şi 5 şi trebuie să se regăsească atât în Bugetul Indicativ (tabel \"Buget indicativ\" din cererea de finanţare, partea specifică) cât şi Devizul General din Studiul de Fezabilitate.\n4. Câmpurile \"Prescorare\" şi \"Detaliere criterii de selecţie îndeplinite\" de la sectiunea A6 sunt obligatorii.\n5. Pentru indicatorii de tip numeric care nu fac obiectul investitiei sa va completa valoarea zero.\n6. Trebuie bifate și anexate toate documente  de pe coloana “DEPUNERE - Obligatoriu pentru toate proiectele” din sectiunea E – Lista documentelor anexate.\n"]
[]
[]
[]
[]
[]
[]
[]
[]
[]
[]
[]
[]
[]
[]
[]
[]
[]
[]
[]
[]
[]
[]
[]
[]
[]
[]
["C FINANȚĂRI NERAMBURSABILE OBȚINUTE, SAU SOLICITATE ?"]
[null,null,"Dacă au fost obținute finanțări nerambursabile sau au fost solicitate și au fost obținute parțial, se vor detalia prin completarea"]
[null,null,"tabelului de mai jos."]
[]
[null,null,null,null,null,null,null,null,null,null,"DA",null,null,null,null,null,null,null,"NU"]
[]
[null,"DENUMIRE PROGRAM FINANȚARE",null,null,null,null,null,null,null,null,null,null,null,null,"DA",null,null,null,null,null,null,null,null,null,null,null,null,null,null,null,null,null,null,null,null,null,null,null,null,null,null,null,null,null,null,null,null,null,null,null,null,null,null,null,null,null,"NU"]
[null,null,null,null,null,null,null,null,null,null,null,null,null,null,"Număr proiecte",null,null,null,null,"Titlul Proiectui și numărul contractului de finanțare ",null,null,null,null,null,null,null,null,null,null,null,null,null,null,null,null,null,null,null,null,null,null,"Data finalizării\nll/zz/aaaa",null,null,null,null,null,null,"Valoarea\nsprijinului\n(EUR)"]
[null,"Program Naţional*"]
[null,"Program Naţional*"]
[null,"FEADR *"]
[null,"SAPARD"]
[null,"Alte programe europene*"]
[null,"Alte programe europene*"]
[null,"Alte programe internaționale*"]
[null,"Alte programe internaționale*"]
[null,"Alte programe internaționale*"]
[null,null,null,null,"* se completează de către solicitant cu denumirea programului"]
[]
[null,"Buget Indicativ - HG 907/2016"]
["MINISTERUL AGRICULTURII ŞI DEZVOLTĂRII RURALE"]
["AGENŢIA PENTRU FINANŢAREA INVESTIŢIILOR RURALE"]
[]
[]
[null,"Procentul aferent intensității",null,null,null,null,null,null,null,null,null,null,null,null,null,null,null,null,null,null,"Curs EURO",null,null,null,null,null,null,null,null,null,null,null,null,"Data întocmirii Studiului de Fezabilitate"]
[]
["Măsura",null,null,null,null,null,null,null,null,null,null,null,null,null,null,null,null,null,null,null,null,null,null,null,null,null,null,null,null,null,null,null,null,null,null,"7b/6A"]
["Denumirea capitolelor de cheltuieli",null,null,null,null,null,null,null,null,null,null,null,null,null,null,null,null,null,null,null,null,null,null,null,null,null,null,null,null,null,null,null,null,null,null,"Cheltuieli eligibile",null,null,null,null,null,null,null,null,"Cheltuieli neeligibile",null,null,null,null,null,null,null,"Total"]
[null,null,null,null,null,null,null,null,null,null,null,null,null,null,null,null,null,null,null,null,null,null,null,null,null,null,null,null,null,null,null,null,null,null,null,"EURO",null,null,null,null,null,null,null,null,"EURO",null,null,null,null,null,null,null,"EURO"]
[1,null,null,null,null,null,null,null,null,null,null,null,null,null,null,null,null,null,null,null,null,null,null,null,null,null,null,null,null,null,null,null,null,null,null,2,null,null,null,null,null,null,null,null,3,null,null,null,null,null,null,null,4]
["Capitolul 1 Cheltuieli pentru obtinerea şi amenajarea terenului - total, din care:",null,null,null,null,null,null,null,null,null,null,null,null,null,null,null,null,null,null,null,null,null,null,null,null,null,null,null,null,null,null,null,null,null,null,{"$f":"SUM(AJ276:AR278)","v":0},null,null,null,null,null,null,null,null,{"$f":"SUM(AS275:AZ278)","v":0},null,null,null,null,null,null,null,{"$f":"SUM(AJ274:AZ274)","v":0}]
["1.1 Obţinerea terenului",null,null,null,null,null,null,null,null,null,null,null,null,null,null,null,null,null,null,null,null,null,null,null,null,null,null,null,null,null,null,null,null,null,null,null,null,null,null,null,null,null,null,null,null,null,null,null,null,null,null,null,{"$f":"SUM(AJ275:AZ275)","v":0}]
["1.2 Amenajarea terenului",null,null,null,null,null,null,null,null,null,null,null,null,null,null,null,null,null,null,null,null,null,null,null,null,null,null,null,null,null,null,null,null,null,null,null,null,null,null,null,null,null,null,null,null,null,null,null,null,null,null,null,0]
["1.3 Amenajari pentru protecţia mediului şi aducerea la starea iniţială",null,null,null,null,null,null,null,null,null,null,null,null,null,null,null,null,null,null,null,null,null,null,null,null,null,null,null,null,null,null,null,null,null,null,null,null,null,null,null,null,null,null,null,null,null,null,null,null,null,null,null,0]
["1.4 Cheltuieli pentru relocarea/protecția utilităților",null,null,null,null,null,null,null,null,null,null,null,null,null,null,null,null,null,null,null,null,null,null,null,null,null,null,null,null,null,null,null,null,null,null,null,null,null,null,null,null,null,null,null,null,null,null,null,null,null,null,null,{"$f":"SUM(AJ278:AZ278)","v":0}]
["Capitolul 2 Cheltuieli pentru asigurarea utilităţilor necesare obiectivului de investiții",null,null,null,null,null,null,null,null,null,null,null,null,null,null,null,null,null,null,null,null,null,null,null,null,null,null,null,null,null,null,null,null,null,null,null,null,null,null,null,null,null,null,null,null,null,null,null,null,null,null,null,0]
["Capitolul 3 Cheltuieli pentru proiectare şi asistenţă tehnică - total, din care:",null,null,null,null,null,null,null,null,null,null,null,null,null,null,null,null,null,null,null,null,null,null,null,null,null,null,null,null,null,null,null,null,null,null,{"$f":"AJ281+AJ285+AJ286+AJ287+AJ288+AJ296+AJ299","v":0},null,null,null,null,null,null,null,null,{"$f":"AS281+AS285+AS286+AS287+AS288+AS295+AS296+AS299","v":0},null,null,null,null,null,null,null,0]
["3.1 Studii",null,null,null,null,null,null,null,null,null,null,null,null,null,null,null,null,null,null,null,null,null,null,null,null,null,null,null,null,null,null,null,null,null,null,{"$f":"SUM(AJ282:AJ284)","v":0},null,null,null,null,null,null,null,null,{"$f":"SUM(AS282:AS284)","v":0},null,null,null,null,null,null,null,{"$f":"SUM(AJ281:AZ281)","v":0}]
["      3.1.1. Studii de teren",null,null,null,null,null,null,null,null,null,null,null,null,null,null,null,null,null,null,null,null,null,null,null,null,null,null,null,null,null,null,null,null,null,null,null,null,null,null,null,null,null,null,null,null,null,null,null,null,null,null,null,0]
["      3.1.2. Raport privind impactul asupra mediului",null,null,null,null,null,null,null,null,null,null,null,null,null,null,null,null,null,null,null,null,null,null,null,null,null,null,null,null,null,null,null,null,null,null,null,null,null,null,null,null,null,null,null,null,null,null,null,null,null,null,null,0]
["      3.1.3. Alte studii specifice",null,null,null,null,null,null,null,null,null,null,null,null,null,null,null,null,null,null,null,null,null,null,null,null,null,null,null,null,null,null,null,null,null,null,null,null,null,null,null,null,null,null,null,null,null,null,null,null,null,null,null,{"$f":"SUM(AJ284:AZ284)","v":0}]
["3.2 Documentații-suport și cheltuieli pentru obţinerea de avize, acorduri şi autorizaţii",null,null,null,null,null,null,null,null,null,null,null,null,null,null,null,null,null,null,null,null,null,null,null,null,null,null,null,null,null,null,null,null,null,null,null,null,null,null,null,null,null,null,null,null,null,null,null,null,null,null,null,0]
["3.3 Expertizare tehnică",null,null,null,null,null,null,null,null,null,null,null,null,null,null,null,null,null,null,null,null,null,null,null,null,null,null,null,null,null,null,null,null,null,null,null,null,null,null,null,null,null,null,null,null,null,null,null,null,null,null,null,0]
["3.4 Certificarea performanţei energetice şi auditul energetic al clădirilor",null,null,null,null,null,null,null,null,null,null,null,null,null,null,null,null,null,null,null,null,null,null,null,null,null,null,null,null,null,null,null,null,null,null,null,null,null,null,null,null,null,null,null,null,null,null,null,null,null,null,null,{"$f":"SUM(AJ287:AZ287)","v":0}]
["3.5 Proiectare",null,null,null,null,null,null,null,null,null,null,null,null,null,null,null,null,null,null,null,null,null,null,null,null,null,null,null,null,null,null,null,null,null,null,{"$f":"SUM(AJ289:AR294)","v":0},null,null,null,null,null,null,null,null,{"$f":"SUM(AS289:AZ294)","v":0},null,null,null,null,null,null,null,0]
["      3.5.1. Temă de proiectare",null,null,null,null,null,null,null,null,null,null,null,null,null,null,null,null,null,null,null,null,null,null,null,null,null,null,null,null,null,null,null,null,null,null,null,null,null,null,null,null,null,null,null,null,null,null,null,null,null,null,null,{"$f":"SUM(AJ289:AZ289)","v":0}]
["      3.5.2. Studiu de prefezabilitate",null,null,null,null,null,null,null,null,null,null,null,null,null,null,null,null,null,null,null,null,null,null,null,null,null,null,null,null,null,null,null,null,null,null,null,null,null,null,null,null,null,null,null,null,null,null,null,null,null,null,null,0]
["      3.5.3. Studiu de prefezabilitate/documentație de avizare a lucrărilor de intervenții și deviz general",null,null,null,null,null,null,null,null,null,null,null,null,null,null,null,null,null,null,null,null,null,null,null,null,null,null,null,null,null,null,null,null,null,null,null,null,null,null,null,null,null,null,null,null,null,null,null,null,null,null,null,0]
["      3.5.4. Documentațiile tehnice necesare în vederea obținerii avizelor/ acordurilor/ autorizațiilor",null,null,null,null,null,null,null,null,null,null,null,null,null,null,null,null,null,null,null,null,null,null,null,null,null,null,null,null,null,null,null,null,null,null,null,null,null,null,null,null,null,null,null,null,null,null,null,null,null,null,null,0]
["      3.5.5. Verificarea tehnică de calitate a proiectului tehnic și a detaliilor de execuție",null,null,null,null,null,null,null,null,null,null,null,null,null,null,null,null,null,null,null,null,null,null,null,null,null,null,null,null,null,null,null,null,null,null,null,null,null,null,null,null,null,null,null,null,null,null,null,null,null,null,null,0]
["      3.5.6. Proiect tehnic și detalii de execuție",null,null,null,null,null,null,null,null,null,null,null,null,null,null,null,null,null,null,null,null,null,null,null,null,null,null,null,null,null,null,null,null,null,null,null,null,null,null,null,null,null,null,null,null,null,null,null,null,null,null,null,0]
["3.6 Organizarea procedurilor de achiziţie",null,null,null,null,null,null,null,null,null,null,null,null,null,null,null,null,null,null,null,null,null,null,null,null,null,null,null,null,null,null,null,null,null,null,null,null,null,null,null,null,null,null,null,null,null,null,null,null,null,null,null,0]
["3.7 Consultanță",null,null,null,null,null,null,null,null,null,null,null,null,null,null,null,null,null,null,null,null,null,null,null,null,null,null,null,null,null,null,null,null,null,null,{"$f":"SUM(AJ297:AR298)","v":0},null,null,null,null,null,null,null,null,{"$f":"SUM(AS297:AZ298)","v":0},null,null,null,null,null,null,null,0]
["      3.7.1. Managementul de proiect pentru obiectivul de investiții",null,null,null,null,null,null,null,null,null,null,null,null,null,null,null,null,null,null,null,null,null,null,null,null,null,null,null,null,null,null,null,null,null,null,null,null,null,null,null,null,null,null,null,null,null,null,null,null,null,null,null,0]
["      3.7.2. Auditul financiar",null,null,null,null,null,null,null,null,null,null,null,null,null,null,null,null,null,null,null,null,null,null,null,null,null,null,null,null,null,null,null,null,null,null,null,null,null,null,null,null,null,null,null,null,null,null,null,null,null,null,null,{"$f":"SUM(AJ298:AZ298)","v":0}]
["3.8 Asistență tehnică",null,null,null,null,null,null,null,null,null,null,null,null,null,null,null,null,null,null,null,null,null,null,null,null,null,null,null,null,null,null,null,null,null,null,{"$f":"AJ303+AJ300","v":0},null,null,null,null,null,null,null,null,{"$f":"AS303+AS300","v":0},null,null,null,null,null,null,null,0]
["     3.8.1. Asistență tehnică din partea proiectantului",null,null,null,null,null,null,null,null,null,null,null,null,null,null,null,null,null,null,null,null,null,null,null,null,null,null,null,null,null,null,null,null,null,null,{"$f":"SUM(AJ301:AR302)","v":0},null,null,null,null,null,null,null,null,{"$f":"SUM(AS301:AZ302)","v":0},null,null,null,null,null,null,null,{"$f":"SUM(AJ300:AZ300)","v":0}]
["             3.8.1.1. pe perioada de execuție a lucrărilor",null,null,null,null,null,null,null,null,null,null,null,null,null,null,null,null,null,null,null,null,null,null,null,null,null,null,null,null,null,null,null,null,null,null,null,null,null,null,null,null,null,null,null,null,null,null,null,null,null,null,null,0]
["             3.8.1.2. pentru participarea proiectantului la fazele incluse în programul de control al lucrărilor de execuţie, avizat de către Inspectoratul de Stat în Construcţii",null,null,null,null,null,null,null,null,null,null,null,null,null,null,null,null,null,null,null,null,null,null,null,null,null,null,null,null,null,null,null,null,null,null,null,null,null,null,null,null,null,null,null,null,null,null,null,null,null,null,null,0]
["      3.8.2. Dirigenție de șantier",null,null,null,null,null,null,null,null,null,null,null,null,null,null,null,null,null,null,null,null,null,null,null,null,null,null,null,null,null,null,null,null,null,null,null,null,null,null,null,null,null,null,null,null,null,null,null,null,null,null,null,0]
["Verificare încadrare cheltuieli capitolul 3",null,null,null,null,null,null,null,null,null,null,null,null,null,null,null,null,null,null,null,null,null,null,null,null,null,null,null,null,null,null,null,null,null,null,{"$f":"IF(AJ305=0,IF((IF((AJ274+AJ279+AJ305)=0,0,AJ280*100/(AJ274+AJ279+AJ305)))<=5,\"cheltuieli capitol 3 se incadreaza in limita de 5%\",\"cheltuieli capitol 3 nu se incadreaza in limita de 5%\"),IF((IF((AJ274+AJ279+AJ305)=0,0,AJ280*100/(AJ274+AJ279+AJ305)))<=10,\"cheltuieli capitol 3 se incadreaza in limita de 10%\",\"cheltuieli capitol 3 nu se incadreaza in limita de 10%\"))","v":"cheltuieli capitol 3 se incadreaza in limita de 5%"}]
["Capitolul 4 Cheltuieli pentru investiţia de bază - total, din care:",null,null,null,null,null,null,null,null,null,null,null,null,null,null,null,null,null,null,null,null,null,null,null,null,null,null,null,null,null,null,null,null,null,null,{"$f":"AJ306","v":0},null,null,null,null,null,null,null,null,{"$f":"AS306","v":0},null,null,null,null,null,null,null,{"$f":"SUM(AJ305:AZ305)","v":0}]
["Construcții, din care:",null,null,null,null,null,null,null,null,null,null,null,null,null,null,null,null,null,null,null,null,null,null,null,null,null,null,null,null,null,null,null,null,null,null,{"$f":"SUM(AJ307:AJ312)","v":0},null,null,null,null,null,null,null,null,{"$f":"SUM(AS307:AS312)","v":0},null,null,null,null,null,null,null,0]
["4.1 Construcţii şi instalaţii",null,null,null,null,null,null,null,null,null,null,null,null,null,null,null,null,null,null,null,null,null,null,null,null,null,null,null,null,null,null,null,null,null,null,null,null,null,null,null,null,null,null,null,null,null,null,null,null,null,null,null,0]
["4.2 Montaj utilaj tehnologic",null,null,null,null,null,null,null,null,null,null,null,null,null,null,null,null,null,null,null,null,null,null,null,null,null,null,null,null,null,null,null,null,null,null,null,null,null,null,null,null,null,null,null,null,null,null,null,null,null,null,null,0]
["4.3 Utilaje, echipamente tehnologice şi funcţionale cu montaj (procurare)",null,null,null,null,null,null,null,null,null,null,null,null,null,null,null,null,null,null,null,null,null,null,null,null,null,null,null,null,null,null,null,null,null,null,null,null,null,null,null,null,null,null,null,null,null,null,null,null,null,null,null,0]
["4.4 Utilaje şi echipamente fară montaj, mijloace de transport, alte achiziţii specifice",null,null,null,null,null,null,null,null,null,null,null,null,null,null,null,null,null,null,null,null,null,null,null,null,null,null,null,null,null,null,null,null,null,null,null,null,null,null,null,null,null,null,null,null,null,null,null,null,null,null,null,0]
["4.5 Dotări",null,null,null,null,null,null,null,null,null,null,null,null,null,null,null,null,null,null,null,null,null,null,null,null,null,null,null,null,null,null,null,null,null,null,null,null,null,null,null,null,null,null,null,null,null,null,null,null,null,null,null,0]
["4.6 Active necorporale",null,null,null,null,null,null,null,null,null,null,null,null,null,null,null,null,null,null,null,null,null,null,null,null,null,null,null,null,null,null,null,null,null,null,null,null,null,null,null,null,null,null,null,null,null,null,null,null,null,null,null,0]
["Capitolul 5 Alte cheltuieli - total, din care:",null,null,null,null,null,null,null,null,null,null,null,null,null,null,null,null,null,null,null,null,null,null,null,null,null,null,null,null,null,null,null,null,null,null,{"$f":"AJ317+AJ314","v":0},null,null,null,null,null,null,null,null,{"$f":"AS323+AS317+AS314","v":0},null,null,null,null,null,null,null,0]
["5.1 Organizare de şantier",null,null,null,null,null,null,null,null,null,null,null,null,null,null,null,null,null,null,null,null,null,null,null,null,null,null,null,null,null,null,null,null,null,null,{"$f":"SUM(AJ315:AR316)","v":0},null,null,null,null,null,null,null,null,{"$f":"SUM(AS315:AZ316)","v":0},null,null,null,null,null,null,null,0]
["      5.1.1 lucrări de construcţii şi instalaţii aferente organizării de şantier",null,null,null,null,null,null,null,null,null,null,null,null,null,null,null,null,null,null,null,null,null,null,null,null,null,null,null,null,null,null,null,null,null,null,null,null,null,null,null,null,null,null,null,null,null,null,null,null,null,null,null,0]
["      5.1.2 cheltuieli conexe orgănizării şantierului",null,null,null,null,null,null,null,null,null,null,null,null,null,null,null,null,null,null,null,null,null,null,null,null,null,null,null,null,null,null,null,null,null,null,null,null,null,null,null,null,null,null,null,null,null,null,null,null,null,null,null,0]
["5.2 Comisioane, taxe, costul creditului",null,null,null,null,null,null,null,null,null,null,null,null,null,null,null,null,null,null,null,null,null,null,null,null,null,null,null,null,null,null,null,null,null,null,0,null,null,null,null,null,null,null,null,0,null,null,null,null,null,null,null,0]
["      5.2.1. Comisioanele şi dobânzile aferente creditului băncii finanţatoare",null,null,null,null,null,null,null,null,null,null,null,null,null,null,null,null,null,null,null,null,null,null,null,null,null,null,null,null,null,null,null,null,null,null,null,null,null,null,null,null,null,null,null,null,null,null,null,null,null,null,null,0]
["      5.2.2. Cota aferentă ISC pentru controlul calităţii lucrărilor de construcţii",null,null,null,null,null,null,null,null,null,null,null,null,null,null,null,null,null,null,null,null,null,null,null,null,null,null,null,null,null,null,null,null,null,null,null,null,null,null,null,null,null,null,null,null,null,null,null,null,null,null,null,0]
["      5.2.3. Cota aferentă ISC pentru controlul statului în amenajarea teritoriului, urbanism şi pentru autorizarea lucrărilor de construcţii",null,null,null,null,null,null,null,null,null,null,null,null,null,null,null,null,null,null,null,null,null,null,null,null,null,null,null,null,null,null,null,null,null,null,null,null,null,null,null,null,null,null,null,null,null,null,null,null,null,null,null,0]
["      5.2.4. Cota aferentă Casei Sociale a Constructorilor - CSC",null,null,null,null,null,null,null,null,null,null,null,null,null,null,null,null,null,null,null,null,null,null,null,null,null,null,null,null,null,null,null,null,null,null,null,null,null,null,null,null,null,null,null,null,null,null,null,null,null,null,null,0]
["      5.2.5. Taxe pentru acorduri, avize conforme şi autorizaţia de construire/desfiinţare",null,null,null,null,null,null,null,null,null,null,null,null,null,null,null,null,null,null,null,null,null,null,null,null,null,null,null,null,null,null,null,null,null,null,null,null,null,null,null,null,null,null,null,null,null,null,null,null,null,null,null,0]
["5.3 Cheltuieli diverse şi neprevăzute",null,null,null,null,null,null,null,null,null,null,null,null,null,null,null,null,null,null,null,null,null,null,null,null,null,null,null,null,null,null,null,null,null,null,null,null,null,null,null,null,null,null,null,null,null,null,null,null,null,null,null,0]
["5.4 Cheltuieli pentru informare şi publicitate",null,null,null,null,null,null,null,null,null,null,null,null,null,null,null,null,null,null,null,null,null,null,null,null,null,null,null,null,null,null,null,null,null,null,null,null,null,null,null,null,null,null,null,null,null,null,null,null,null,null,null,0]
[null,null,null,null,null,null,null,null,null,null,null,null,null,null,null,null,null,null,null,null,null,null,null,null,null,null,null,null,null,null,null,null,null,null,null,"???"]
["Capitolul 6 Cheltuieli pentru darea în exploatare - total, din care:",null,null,null,null,null,null,null,null,null,null,null,null,null,null,null,null,null,null,null,null,null,null,null,null,null,null,null,null,null,null,null,null,null,null,{"$f":"SUM(AJ327:AR328)","v":0},null,null,null,null,null,null,null,null,{"$f":"SUM(AS327:AZ328)","v":0},null,null,null,null,null,null,null,0]
["6.1 Pregătirea personalului de exploatare",null,null,null,null,null,null,null,null,null,null,null,null,null,null,null,null,null,null,null,null,null,null,null,null,null,null,null,null,null,null,null,null,null,null,null,null,null,null,null,null,null,null,null,null,null,null,null,null,null,null,null,0]
["6.2 Probe tehnologice şi teste",null,null,null,null,null,null,null,null,null,null,null,null,null,null,null,null,null,null,null,null,null,null,null,null,null,null,null,null,null,null,null,null,null,null,null,null,null,null,null,null,null,null,null,null,null,null,null,null,null,null,null,0]
["TOTAL GENERAL",null,null,null,null,null,null,null,null,null,null,null,null,null,null,null,null,null,null,null,null,null,null,null,null,null,null,null,null,null,null,null,null,null,null,{"$f":"AJ274+AJ279+AJ280+AJ305+AJ313+AJ326","v":0},null,null,null,null,null,null,null,null,{"$f":"AS274+AS279+AS280+AS305+AS313+AS326","v":0},null,null,null,null,null,null,null,0]
["Verificare actualizare",null,null,null,null,null,null,null,null,null,null,null,null,null,null,null,null,null,null,null,null,null,null,null,null,null,null,null,null,null,null,null,null,null,null,{"$f":"IF((IF(AJ329=0,0,AJ331*100/AJ329))<=5,\"actualizare mai mică de 5% din valoarea eligibila\",\"actualizare mai mare de 5% din valoarea eligibila\")","v":"actualizare mai mică de 5% din valoarea eligibila"}]
["ACTUALIZARE Cheltuieli Eligibile (max 5%)",null,null,null,null,null,null,null,null,null,null,null,null,null,null,null,null,null,null,null,null,null,null,null,null,null,null,null,null,null,null,null,null,null,null,null,null,null,null,null,null,null,null,null,null,null,null,null,null,null,null,null,{"$f":"SUM(AJ331:AZ331)","v":0}]
["TOTAL GENERAL CU ACTUALIZARE",null,null,null,null,null,null,null,null,null,null,null,null,null,null,null,null,null,null,null,null,null,null,null,null,null,null,null,null,null,null,null,null,null,null,{"$f":"AJ329+AJ331","v":0},null,null,null,null,null,null,null,null,{"$f":"AS329","v":0},null,null,null,null,null,null,null,0]
["Valoare TVA",null,null,null,null,null,null,null,null,null,null,null,null,null,null,null,null,null,null,null,null,null,null,null,null,null,null,null,null,null,null,null,null,null,null,null,null,null,null,null,null,null,null,null,null,null,null,null,null,null,null,null,0]
[null,null,null,null,null,null,null,null,null,null,null,null,null,null,null,null,null,null,null,null,null,null,null,null,null,null,null,null,null,null,null,null,null,null,null,{"$f":"SUM(AJ332:AR333)","v":0},null,null,null,null,null,null,null,null,{"$f":"SUM(AS332:AZ333)","v":0},null,null,null,null,null,null,null,0]
["TOTAL GENERAL inclusiv TVA",null,null,null,null,null,null,null,null,null,null,null,null,null,null,null,null,null,null,null,null,null,null,null,null,null,null,null,null,null,null,null,null,null,null,{"$f":"BA332+BA333","v":0}]
[null,null,null,null,null,null,null,null,null,null,null,null,null,null,null,null,null,null,null,null,null,null,null,null,null,null,null,null,null,null,null,null,null,null,null,"LEI",null,null,null,null,null,null,null,null,"EURO"]
["VALOARE TOTALĂ",null,null,null,null,null,null,null,null,null,null,null,null,null,null,null,null,null,null,null,null,null,null,null,null,null,null,null,null,null,null,null,null,null,null,{"$f":"AS337*AA268","v":0},null,null,null,null,null,null,null,null,{"$f":"AJ335","v":0}]
["VALOARE ELIGIBILĂ",null,null,null,null,null,null,null,null,null,null,null,null,null,null,null,null,null,null,null,null,null,null,null,null,null,null,null,null,null,null,null,null,null,null,{"$f":"AS338*AA268","v":0},null,null,null,null,null,null,null,null,{"$f":"AJ332+AJ333","v":0}]
["VALOARE NEELIGIBILĂ",null,null,null,null,null,null,null,null,null,null,null,null,null,null,null,null,null,null,null,null,null,null,null,null,null,null,null,null,null,null,null,null,null,null,{"$f":"AS339*AA268","v":0},null,null,null,null,null,null,null,null,{"$f":"AS332+AS333","v":0}]
[]
["Plan Financiar",null,null,null,null,null,null,null,null,null,null,null,null,null,null,null,null,null,null,null,null,null,null,null,null,null,null,null,null,null,null,null,null,null,null,"Cheltuieli eligibile EURO",null,null,null,null,null,null,null,null,"Cheltuieli neeligibile EURO",null,null,null,null,null,null,null,"Total"]
["Ajutor public nerambursabil (contribuţie UE şi cofinanţare naţională)",null,null,null,null,null,null,null,null,null,null,null,null,null,null,null,null,null,null,null,null,null,null,null,null,null,null,null,null,null,null,null,null,null,null,null,null,null,null,null,null,null,null,null,null,null,null,null,null,null,null,null,{"$f":"SUM(AJ342:AZ342)","v":0}]
["Cofinantare privata, din care:",null,null,null,null,null,null,null,null,null,null,null,null,null,null,null,null,null,null,null,null,null,null,null,null,null,null,null,null,null,null,null,null,null,null,{"$f":"SUM(AJ344:AR345)","v":0},null,null,null,null,null,null,null,null,{"$f":"SUM(AS344:AZ345)","v":0},null,null,null,null,null,null,null,0]
[null,null,null,null,null,null,null,null,null,null,null,null,null,null,null,"- autofinantare",null,null,null,null,null,null,null,null,null,null,null,null,null,null,null,null,null,null,null,null,null,null,null,null,null,null,null,null,null,null,null,null,null,null,null,null,0]
[null,null,null,null,null,null,null,null,null,null,null,null,null,null,null,"- imprumuturi",null,null,null,null,null,null,null,null,null,null,null,null,null,null,null,null,null,null,null,null,null,null,null,null,null,null,null,null,null,null,null,null,null,null,null,null,0]
[]
["TOTAL PROIECT",null,null,null,null,null,null,null,null,null,null,null,null,null,null,null,null,null,null,null,null,null,null,null,null,null,null,null,null,null,null,null,null,null,null,{"$f":"AJ342+AJ343+AJ346","v":0},null,null,null,null,null,null,null,null,{"$f":"AS343+AS346","v":0},null,null,null,null,null,null,null,0]
["Procent contribuţie publică",null,null,null,null,null,null,null,null,null,null,null,null,null,null,null,null,null,null,null,null,null,null,null,null,null,null,null,null,null,null,null,null,null,null,{"$f":"IF(AJ347=0,0,AJ342*100/AJ347)","v":0},null,null,null,null,null,null,null,"%"]
["Avans solicitat"]
["Procent avans solicitat ca procent din ajutorul public nerambursabil",null,null,null,null,null,null,null,null,null,null,null,null,null,null,null,null,null,null,null,null,null,null,null,null,null,null,null,null,null,null,null,null,null,null,{"$f":"IF(AJ342=0,0,AJ349*100/AJ342)","v":0},null,null,null,null,null,null,null,null,{"$f":"IF(AJ350<=50,\"Suma avans mai mica de 50% din ajutorul public\",\"Suma avans mai mare de 50% din ajutorul public\")","v":"Suma avans mai mica de 50% din ajutorul public"}]
[null,null,null,null,null,null,null,"MINISTERUL AGRICULTURII ŞI DEZVOLTĂRII RURALE"]
[null,null,null,null,null,null,null,null,null,null,null,null,null,null,null,null,null,null,null,null,null,null,null,null,null,null,null,null,null,null,null,null,null,null,null,null,null,null,null,null,null,null,"Anexa A1\nHG 907/2016"]
[null,null,null,null,null,null,null,"AGENŢIA PENTRU FINANŢAREA INVESTIŢIILOR RURALE"]
[null,null,null,null,null,null,null,null,null,null,null,null,null,null,null,null,null,null,null,null,null,null,null,null,null,null,null,null,null,null,null,null,null,null,null,null,null,null,null,null,null,null,null,null,null,null,null,null,null,null,null,"Nr.1"]
[null,null,null,null,null,null,null,"Deviz financiar- Capitolul 3 - Cheltuieli pentru proiectare şi asistenţa tehnică - EURO"]
[]
[]
["(Titlu deviz)"]
["Nr.crt",null,null,null,"Specificaţie",null,null,null,null,null,null,null,null,null,null,null,null,null,null,null,null,null,null,null,null,null,null,null,null,null,null,null,null,null,null,null,null,null,null,null,null,null,"Valoare eligibilă",null,null,null,null,null,null,null,null,"Valoare\nneeligibilă"]
["3.1",null,null,null,"Cheltuieli pentru studii - total din care:",null,null,null,null,null,null,null,null,null,null,null,null,null,null,null,null,null,null,null,null,null,null,null,null,null,null,null,null,null,null,null,null,null,null,null,null,null,{"$f":"SUM(AQ361:AY363)","v":0},null,null,null,null,null,null,null,null,{"$f":"SUM(AZ361:BI363)","v":0}]
[null,null,null,null,"3.1.1 Studii de teren: geotehnice, geologice, hidrologice, hidrogeotehnice, fotogrammetrice, topografice şi de stabilitate ale terenului pe care se amplasează obiectivul de investiţie"]
[null,null,null,null,"3.1.2 Raport privind impactul asupra mediului"]
[null,null,null,null,"3.1.3 Studii de specialitate necesare în funcție de specificul investiției"]
["3.2",null,null,null,"Documentaţii-suport şi cheltuieli pentru obţinerea de avize, acorduri şi autorizaţii",null,null,null,null,null,null,null,null,null,null,null,null,null,null,null,null,null,null,null,null,null,null,null,null,null,null,null,null,null,null,null,null,null,null,null,null,null,{"$f":"SUM(AQ365:AY373)","v":0},null,null,null,null,null,null,null,null,{"$f":"SUM(AZ365:BI373)","v":0}]
[null,null,null,null,"1. obţinerea/prelungirea valabilităţii ceritificatului de urbanism"]
[null,null,null,null,"2. obţinerea/prelungirea valabilităţii autorizaţiei de construire/desfiinţare"]
[null,null,null,null,"3. obţinerea avizelor şi acordurilor pentru racorduri şi branşamente la reţelele publice de alimentare cu apă, canalizare, alimentare cu gaze, alimentare cu agent termic, energie electrică, telefonie"]
[null,null,null,null,"4. obţinerea certificatului de nomenclatură stradală şi adresa"]
[null,null,null,null,"5. întocmirea documentaţiei, obţinerea numărului cadastral provizoriu şi înregistrarea terenului în cartea funciară"]
[null,null,null,null,"6. obținerea actului administrativ al autorității competente pentru protecția mediului"]
[null,null,null,null,"7. obţinerea avizului de protecție civilă"]
[null,null,null,null,"8. avizul de specialitate în cazul obiectivelor de patrimoniu"]
[null,null,null,null,"9. alte avize, acorduri şi autorizaţii"]
["3.3",null,null,null,"Cheltuieli pentru expertizarea tehnică a construcţiilor existente, a structurilor şi/sau, după caz, a proiectelor tehnice, inclusiv întocmirea de către expertul tehnic a raportului de expertiză tehnică"]
["3.4",null,null,null,"Cheltuieli pentru certificarea performanţei energetice şi auditul energetic al\nclădirilor"]
["3.5",null,null,null,"Cheltuieli pentru proiectare",null,null,null,null,null,null,null,null,null,null,null,null,null,null,null,null,null,null,null,null,null,null,null,null,null,null,null,null,null,null,null,null,null,null,null,null,null,{"$f":"SUM(AQ377:AY382)","v":0},null,null,null,null,null,null,null,null,{"$f":"SUM(AZ377:BI382)","v":0}]
[null,null,null,null,"3.5.1 Temă de proiectare"]
[null,null,null,null,"3.5.2 Studiu de prefezabilitate"]
[null,null,null,null,"3.5.3. Studiu de prefezabilitate/documentație de avizare a lucrărilor de intervenții și deviz general"]
[null,null,null,null,"3.5.4. Documentațiile tehnice necesare în vederea obținerii avizelor/ acordurilor/ autorizațiilor"]
[null,null,null,null,"3.5.5. Verificarea tehnică de calitate a proiectului tehnic și a detaliilor de execuție"]
[null,null,null,null,"3.5.6. Proiect tehnic și detalii de execuție"]
["3.6",null,null,null,"Cheltuieli aferente organizării şi derulării procedurilor de achiziţii publice",null,null,null,null,null,null,null,null,null,null,null,null,null,null,null,null,null,null,null,null,null,null,null,null,null,null,null,null,null,null,null,null,null,null,null,null,null,null,null,null,null,null,null,null,null,null,{"$f":"SUM(AZ384:BI387)","v":0}]
[null,null,null,null,"1. Cheltuieli aferente întocmirii documentaţiei de atribuire şi multiplicării acesteia (exclusiv cele cumpărate de ofertanţi)"]
[null,null,null,null,"2. Cheltuieli cu onorariile, transportul, cazarea şi diurna membrilor desemnaţi în comisiile de evaluare"]
[null,null,null,null,"3. Anunţuri de intenţie, de participare şi de atribuire a contractelor, corespondenţă prin poştă, fax, poştă electronică în legătură cu procedurile de achiziţie publică"]
[null,null,null,null,"4. Cheltuieli aferente organizării şi derulării procedurilor de achiziţii publice"]
["3.7",null,null,null,"Cheltuieli pentru consultanţă",null,null,null,null,null,null,null,null,null,null,null,null,null,null,null,null,null,null,null,null,null,null,null,null,null,null,null,null,null,null,null,null,null,null,null,null,null,{"$f":"SUM(AQ389:AY390)","v":0},null,null,null,null,null,null,null,null,{"$f":"SUM(AZ389:BI390)","v":0}]
[null,null,null,null,"3.7.1 Managementul de proiect pentru obiectivul de investiţii"]
[null,null,null,null,"3.7.2 Auditul financiar"]
["3.8",null,null,null,"Cheltuieli pentru asistenţa tehnică",null,null,null,null,null,null,null,null,null,null,null,null,null,null,null,null,null,null,null,null,null,null,null,null,null,null,null,null,null,null,null,null,null,null,null,null,null,{"$f":"AQ392+AQ395","v":0},null,null,null,null,null,null,null,null,{"$f":"AZ392+AZ395","v":0}]
[null,null,null,null,"3.8.1. Asistenţă tehnică din partea proiectantului",null,null,null,null,null,null,null,null,null,null,null,null,null,null,null,null,null,null,null,null,null,null,null,null,null,null,null,null,null,null,null,null,null,null,null,null,null,{"$f":"SUM(AQ393:AY394)","v":0},null,null,null,null,null,null,null,null,{"$f":"SUM(AZ393:BI394)","v":0}]
[null,null,null,null,"   1.1. pe perioada de execuţie a lucrărilor"]
[null,null,null,null,"   1.2. pentru participarea proiectantului la fazele incluse în programul de control al lucrărilor de execuţie, avizat de către Inspectoratul de Stat în Construcţii"]
[null,null,null,null,"3.8.2 Dirigenţie de şantier, asigurată de personal tehnic de specialitate, autorizat"]
[null,null,null,null,"Total valoare fără TVA",null,null,null,null,null,null,null,null,null,null,null,null,null,null,null,null,null,null,null,null,null,null,null,null,null,null,null,null,null,null,null,null,null,null,null,null,null,{"$f":"AQ360+AQ364+AQ374+AQ375+AQ376+AQ383+AQ388+AQ391","v":0},null,null,null,null,null,null,null,null,{"$f":"AZ360+AZ364+AZ374+AZ375+AZ376+AZ383+AZ388+AZ391","v":0}]
[null,null,null,null,"Valoare TVA (aferentă cheltuielilor eligibile şi neeligibile)"]
["TOTAL DEVIZ FINANCIAR 1 (inclusiv TVA)",null,null,null,null,null,null,null,null,null,null,null,null,null,null,null,null,null,null,null,null,null,null,null,null,null,null,null,null,null,null,null,null,null,null,null,null,null,null,null,null,null,{"$f":"AQ396+AZ396+AQ397+AZ397","v":0}]
[]
[]
[]
[null,null,null,null,null,null,null,"MINISTERUL AGRICULTURII ŞI DEZVOLTĂRII RURALE"]
[null,null,null,null,null,null,null,null,null,null,null,null,null,null,null,null,null,null,null,null,null,null,null,null,null,null,null,null,null,null,null,null,null,null,null,null,null,null,null,null,null,null,"Anexa A2\nHG 907/2016"]
[null,null,null,null,null,null,null,"AGENŢIA PENTRU FINANŢAREA INVESTIŢIILOR RURALE"]
[null,null,null,null,null,null,null,null,null,null,null,null,null,null,null,null,null,null,null,null,null,null,null,null,null,null,null,null,null,null,null,null,null,null,null,null,null,null,null,null,null,null,null,null,null,null,null,null,null,null,null,"Nr.1"]
[null,null,null,null,null,null,null,"DEVIZ PE OBIECT *"]
[]
[]
["(Descriere obiect de construcţie)"]
["Nr. crt.",null,null,null,"Denumire",null,null,null,null,null,null,null,null,null,null,null,null,null,null,null,null,null,null,null,null,null,null,null,null,null,null,null,null,null,null,null,null,null,null,null,null,null,"Valoarea pe categorii de lucrări, fară TVA - EURO"]
["Cap. 4 + Cheltuieli pentru investiţia de bază",null,null,null,null,null,null,null,null,null,null,null,null,null,null,null,null,null,null,null,null,null,null,null,null,null,null,null,null,null,null,null,null,null,null,null,null,null,null,null,null,null,"Valoare eligibilă",null,null,null,null,null,null,null,null,"Valoare\nneeligibilă"]
["I - LUCRĂRI DE CONSTRUCŢII ŞI INSTALAŢII"]
["4.1",null,null,null,"Construcții și instalații"]
[null,null,null,null,"4.1.1 Terasamente, sistematizare pe verticală și amenajări exterioare"]
[null,null,null,null,"4.1.2 Rezistență"]
[null,null,null,null,"4.1.3 Arhitectură"]
[null,null,null,null,"4.1.4 Instalații"]
[null,null,null,null,"TOTAL I ( fără TVA)",null,null,null,null,null,null,null,null,null,null,null,null,null,null,null,null,null,null,null,null,null,null,null,null,null,null,null,null,null,null,null,null,null,null,null,null,null,{"$f":"SUM(AQ414:AY417)","v":0},null,null,null,null,null,null,null,null,{"$f":"SUM(AZ414:BI417)","v":0}]
["II - MONTAJ"]
["4.2",null,null,null,"Montaj utilaje, echipamente tehnologice și funcționale"]
[null,null,null,null,"TOTAL II ( fără TVA)",null,null,null,null,null,null,null,null,null,null,null,null,null,null,null,null,null,null,null,null,null,null,null,null,null,null,null,null,null,null,null,null,null,null,null,null,null,{"$f":"SUM(AQ420)","v":0},null,null,null,null,null,null,null,null,{"$f":"SUM(AZ420)","v":0}]
["III - PROCURARE"]
["4.3",null,null,null,"Utilaje, echipamente tehnologice și funcționale care necesită montaj"]
["4.4",null,null,null,"Utilaje, echipamente tehnologice și funcționale care nu necesită montaj și echipamente de transport"]
["4.5",null,null,null,"Dotări"]
["4.6",null,null,null,"Active necorporale"]
[null,null,null,null,"TOTAL III ( fără TVA)",null,null,null,null,null,null,null,null,null,null,null,null,null,null,null,null,null,null,null,null,null,null,null,null,null,null,null,null,null,null,null,null,null,null,null,null,null,{"$f":"SUM(AQ423:AY426)","v":0},null,null,null,null,null,null,null,null,{"$f":"SUM(AZ423:BI426)","v":0}]
["TOTAL ( TOTAL I + TOTAL II +TOTAL III) fără TVA",null,null,null,null,null,null,null,null,null,null,null,null,null,null,null,null,null,null,null,null,null,null,null,null,null,null,null,null,null,null,null,null,null,null,null,null,null,null,null,null,null,{"$f":"AQ427+AQ421+AQ418","v":0},null,null,null,null,null,null,null,null,{"$f":"AZ427+AZ421+AZ418","v":0}]
["TVA aferent cheltuielilor eligibile şi neeligibile"]
["TOTAL DEVIZ PE OBIECT (inclusiv TVA)",null,null,null,null,null,null,null,null,null,null,null,null,null,null,null,null,null,null,null,null,null,null,null,null,null,null,null,null,null,null,null,null,null,null,null,null,null,null,null,null,null,{"$f":"AQ428+AZ428+AQ429+AZ429","v":0}]
[]
[]
[]
[null,null,null,null,null,null,null,"MINISTERUL AGRICULTURII ŞI DEZVOLTĂRII RURALE"]
[null,null,null,null,null,null,null,null,null,null,null,null,null,null,null,null,null,null,null,null,null,null,null,null,null,null,null,null,null,null,null,null,null,null,null,null,null,null,null,null,null,null,"Anexa A3\nHG 907/2016"]
[null,null,null,null,null,null,null,"AGENŢIA PENTRU FINANŢAREA INVESTIŢIILOR RURALE"]
[null,null,null,null,null,null,null,null,null,null,null,null,null,null,null,null,null,null,null,null,null,null,null,null,null,null,null,null,null,null,null,null,null,null,null,null,null,null,null,null,null,null,null,null,null,null,null,null,null,null,null,"Nr.1"]
[]
[]
[]
["(Titlu deviz)"]
["Deviz capitolul 2- Cheltuieli pentru asigurarea utilităţilor necesare obiectivului - EURO"]
["Nr.crt",null,null,null,"Specificaţie",null,null,null,null,null,null,null,null,null,null,null,null,null,null,null,null,null,null,null,null,null,null,null,null,null,null,null,null,null,null,null,null,null,null,null,null,null,"Valoare eligibilă",null,null,null,null,null,null,null,null,"Valoare\nneeligibilă"]
[1,null,null,null,"Alimentare cu apă"]
[2,null,null,null,"Canalizare"]
[3,null,null,null,"Alimentare cu gaze naturale"]
[4,null,null,null,"Alimentare cu agent termic"]
[5,null,null,null,"Alimentare cu energie electrică"]
[6,null,null,null,"Telecomunicaţii (telefonie, radio-tv,etc)"]
[7,null,null,null,"Drumuri de acces"]
[8,null,null,null,"Căi ferate industriale"]
[9,null,null,null,"Alte utilități"]
[null,null,null,null,"Total valoare fără TVA",null,null,null,null,null,null,null,null,null,null,null,null,null,null,null,null,null,null,null,null,null,null,null,null,null,null,null,null,null,null,null,null,null,null,null,null,null,{"$f":"SUM(AQ444:AY452)","v":0},null,null,null,null,null,null,null,null,{"$f":"SUM(AZ444:BI452)","v":0}]
[null,null,null,null,"Valoare TVA aferentă cheltuielilor eligibile şi neeligibile"]
["TOTAL DEVIZ CAPITOLUL 2 (inclusiv TVA)",null,null,null,null,null,null,null,null,null,null,null,null,null,null,null,null,null,null,null,null,null,null,null,null,null,null,null,null,null,null,null,null,null,null,null,null,null,null,null,null,null,{"$f":"AQ453+AZ453+AQ454+AZ454","v":0}]
[]
[" Deviz capitolul 5 - Alte cheltuieli - EURO"]
["Nr.crt",null,null,null,"Specificaţie",null,null,null,null,null,null,null,null,null,null,null,null,null,null,null,null,null,null,null,null,null,null,null,null,null,null,null,null,null,null,null,null,null,null,null,null,null,"Valoare eligibilă",null,null,null,null,null,null,null,null,"Valoare\nneeligibilă"]
[]
["5.1 ",null,null,null,"Organizare de şantier",null,null,null,null,null,null,null,null,null,null,null,null,null,null,null,null,null,null,null,null,null,null,null,null,null,null,null,null,null,null,null,null,null,null,null,null,null,{"$f":"SUM(AQ461:AY462)","v":0},null,null,null,null,null,null,null,null,{"$f":"SUM(AZ461:BI462)","v":0}]
[null,null,null,null,"5.1.1 Lucrări de construcţii şi instalaţii aferente organizării de şantier"]
[null,null,null,null,"5.1.2 Cheltuieli conexe organizării de şantier"]
["5.2",null,null,null,"Comisioane, cote, taxe, costul creditului",null,null,null,null,null,null,null,null,null,null,null,null,null,null,null,null,null,null,null,null,null,null,null,null,null,null,null,null,null,null,null,null,null,null,null,null,null,{"$f":"SUM(AQ465:AY468)","v":0},null,null,null,null,null,null,null,null,{"$f":"SUM(AZ464:BI468)","v":0}]
[null,null,null,null,"5.2.1. Comisioanele şi dobânzile aferente creditului băncii finanţatoare"]
[null,null,null,null,"5.2.2. Cota aferentă ISC pentru controlul calităţii lucrărilor de construcţii"]
[null,null,null,null,"5.2.3. Cota aferentă ISC pentru controlul statului în amenajarea teritoriului, urbanism şi pentru autorizarea lucrărilor de construcţii"]
[null,null,null,null,"5.2.4. Cota aferentă Casei Sociale a Constructorilor - CSC"]
[null,null,null,null,"5.2.5. Taxe pentru acorduri, avize conforme şi autorizaţia de construire/desfiinţare"]
["5.3",null,null,null," Cheltuieli diverse și neprevăzute"]
["5.4",null,null,null," Cheltuieli pentru informare și publicitate"]
[null,null,null,null,"TOTAL DEVIZ CAPITOLUL 5",null,null,null,null,null,null,null,null,null,null,null,null,null,null,null,null,null,null,null,null,null,null,null,null,null,null,null,null,null,null,null,null,null,null,null,null,null,{"$f":"AQ460+AQ463+AQ469","v":0},null,null,null,null,null,null,null,null,{"$f":"AZ460+AZ463+AZ469+AZ470","v":0}]
[null,null,null,null,"VALOARE TVA aferentă cheltuielilor eligibile şi neeligibile"]
[null,null,null,null,"TOTAL DEVIZ CAPITOLUL 5 ( inclusiv TVA)",null,null,null,null,null,null,null,null,null,null,null,null,null,null,null,null,null,null,null,null,null,null,null,null,null,null,null,null,null,null,null,null,null,null,null,null,null,{"$f":"AQ471+AZ471+AQ472+AZ472","v":0}]
[]
[]
[]
["MINISTERUL AGRICULTURII ŞI DEZVOLTĂRII RURALE",null,null,null,null,null,null,null,null,null,null,null,null,null,null,null,null,null,null,null,null,null,null,null,null,null,null,null,null,null,"SECȚIUNE SPECIFICĂ MASURA7b/6A"]
["AGENŢIA PENTRU FINANŢAREA INVESTIŢIILOR RURALE"]
[]
["D. ALTE INFORMAȚII :"]
["Programarea proiectului:"]
["Numar luni de implementare"]
[]
["E. LISTA DOCUMENTELOR ANEXATE PROIECTELOR AFERENTE MĂSURII 7b/6A",null,null,null,null,null,null,null,null,null,null,null,null,null,null,null,null,null,null,null,null,null,null,null,null,null,null,null,null,null,null,null,null,null,null,null,null,null,null,null,null,null,null,null,null,null,null,null,null,null,null,null,null,null,null,"OPIS"]
[null,null,null,null,null,null,null,null,null,null,null,null,null,null,null,null,null,null,null,null,null,null,null,null,null,null,null,null,null,null,null,null,null,null,null,null,null,null,null,null,null,null,null,null,null,null,null,null,null,null,null,null,null,null,null,"documente"]
["A se anexa documentele în ordinea de mai jos:"]
["Lista documente",null,null,null,null,null,null,null,null,null,null,null,null,null,null,null,null,null,null,null,null,null,null,null,null,null,null,null,null,null,"Obligatoriu pentru toate proiectele",null,null,null,null,"Obligatoriu, dacă proiectul impune",null,null,null,null,null,null,"PAGINA de   la - până la",null,null,null,null,null,null,null,"Obligatoriu pentru toate proiectele",null,null,null,null,"Obligatoriu, dacă proiectul impune"]
["ETAPA:",null,null,null,null,null,null,null,null,null,null,null,null,null,null,null,null,null,null,null,null,null,null,null,null,null,null,null,null,null,"DEPUNERE",null,null,null,null,null,null,null,null,null,null,null,null,null,null,null,null,null,null,null,"CONTRACTARE"]
["1.a) Studiul de Fezabilitate (atât pentru proiectele care prevăd construcții-montaj cât și pentru proiectele fără construcții-montaj) "]
["1.b) Expertiza tehnică de specialitate asupra construcţiei existente (în cazul proiectelor care prevăd modernizarea/ finalizarea construcţiilor existente/ achiziţii de utilaje cu montaj care schimbă regimul de exploatare a construcţiei existente)"]
[" 1.c) Raportul privind stadiul fizic al lucrărilor (în cazul proiectelor care prevăd modernizarea/ finalizarea construcţiilor existente/ achiziţii de utilaje cu montaj care schimbă regimul de exploatare a construcţiei existente). (numai în cazul construcțiilor nefinalizate)"]
["2.1 Situaţiile financiare (bilanţ – formularul 10, contul de profit şi pierderi - formularul 20, formularele 30 și 40), precedente anului depunerii proiectului înregistrate la Administraţia Financiară,în care rezultatul operaţional (rezultatul de exploatare din contul de profit și pierdere - formularul 20 ) să fie pozitiv (inclusiv 0). În cazul în care solicitantul este înfiinţat cu cel puţin doi ani financiari înainte de anul depunerii cererii de finanţare se vor depune ultimele două situaţii financiare). Excepție fac întreprinderile înființate în anul depunerii cererii de finanțare.\nsau"]
["2.2 Declaraţie privind veniturile realizate din Romania în anul precedent depunerii proiectului, înregistrată la Administraţia Financiară (formularul 200) însoțită de Anexele la formular în care rezultatul brut (veniturile sa fie cel puţin egale cu cheltuielile) obținut în anul precedent depunerii proiectului să fie pozitiv (inclusiv 0)\nși/sau"]
["2.3 Declaraţia privind veniturile din activităţi agricole impuse pe norme de venit (formularul 221), document obligatoriu de prezentat la depunerea cererii de finanţare;\nsau"]
["2.4 Declaraţia de inactivitate înregistrată la Administraţia Financiară, în cazul solicitanţilor care nu au desfăşurat activitate anterior depunerii proiectului\nsau"]
["2.5 Declarație specială privind veniturile realizate în anul precedent depunerii proiectului înregistrată la Administrația Financiară - pentru întreprinderi familiale și întreprinderi individuale și persoane fizice autorizate"]
["3. Documente pentru terenurile și/sau clădirile aferente realizării investiției:"]
["3.1 Pentru proiectele care presupun realizarea de lucrări de construcție sau achiziția de utilaje/echipamente cu montaj, se va prezenta înscrisul care să certifice, după caz:\na) Dreptul de proprietate privată\n  Actele doveditoare ale dreptului de proprietate privată, reprezentate de înscrisurile constatatoare ale unui act juridic civil, jurisdicțional sau administrativ cu efect constitutiv translativ sau declarativ de proprietate, precum:\n- Actele juridice translative de proprietate, precum contractele de vânzare-cumpărare, donație, schimb, etc;\n- Actele juridice declarative de proprietate, precum împărțeala judiciară sau tranzacția;\n- Actele jurisdicționale declarative, precum hotărârile judecătorești cu putere de res-judicata, de partaj, de constatare a uzucapiunii imobiliare, etc.\n- Actele jurisdicționale, precum ordonanțele de adjudecare.\nb) Dreptul de concesiune\n  Contract de concesiune care acoperă o perioadă de cel puțin 10 ani începând cu anul depunerii cererii de finanţare, corespunzătoare asigurării sustenabilității investiției şi care oferă dreptul titularului de a executa lucrările de construcție prevăzute prin proiect, în copie.\n  În cazul contractului de concesiune pentru clădiri, acesta va fi însoțit de o adresă emisă de concedent care să specifice dacă pentru clădirea concesionată există solicitări privind retrocedarea. \n  În cazul contractului de concesiune pentru terenuri, acesta va fi însoțit de o adresă emisă de concedent care să specifice:\n- suprafaţa concesionată la zi  - dacă pentru suprafaţa concesionată există solicitări privind retrocedarea sau diminuarea şi dacă da, să se menţioneze care este suprafaţa supusă acestui proces;\n- situaţia privind respectarea clauzelor contractuale, dacă este în graficul de realizare a investiţiilor prevăzute în contract, dacă concesionarul şi-a respectat graficul de plată a redevenţei şi alte clauze.\nc) Dreptul de superficie\n  Contract de superficie care acoperă o perioadă de cel puțin 10 ani începând cu anul depunerii cererii de finanţare, corespunzătoare asigurării sustenabilității investiției şi care oferă dreptul titularului de a executa lucrările de construcție prevăzute prin proiect, în copie."]
["Documentele de la punctele a), b) sau c) vor fi însoțite de:\n• Documente cadastrale şi documente privind înscrierea imobilelor în evidențele de cadastru și carte funciară (extras de carte funciară pentru informare din care să rezulte inscrierea imobilului în cartea funciară, precum și încheierea de carte funciară emisă de OCPI), în termen de valabilitate la data depunerii (emis cu maxim 30 de zile înaintea depunerii proiectului).\n\n\n"]
["3.2 Pentru proiectele care propun doar dotare, achiziție de mașini și/sau utilaje fără montaj sau al căror montaj nu necesita lucrări de construcții și/sau lucrări de intervenții asupra instalațiilor existente (electricitate, apa, canalizare, gaze, ventilație, etc.), se vor prezenta înscrisuri valabile pentru o perioadă de cel puțin 10 ani începând cu anul depunerii cererii de finanţare care să certifice, după caz:\na) dreptul de proprietate privată,\nb) dreptul de concesiune,\nc) dreptul de superficie,\nd) dreptul de uzufruct;\ne) dreptul de folosinţă cu titlu gratuit;\nf) împrumutul de folosință (comodat)\ng) dreptul de închiriere/locațiune\n          De ex.: contract de cesiune, contract de concesiune, contract de locațiune/închiriere, contract de comodat."]
["Înscrisurile menționate la punctul 3.2 se vor depune respectând una dintre cele 2 condiții (situații) de mai jos:\nA. vor fi însoțite de Documente cadastrale şi documente privind înscrierea imobilelor în evidențele de cadastru și carte funciară (extras de carte funciară pentru informare din care să rezulte înscrierea dreptului în cartea funciară, precum și încheierea de carte funciară emisă de OCPI), în termen de valabilitate la data depunerii (emis cu maxim 30 de zile înaintea depunerii proiectului)\nsau\nB. vor fi încheiate în formă autentică de către un notar public sau emise de o autoritate publică sau dobândite printr-o hotărâre judecătorească."]
["Pentru solicitanții Persoane Fizice Autorizate, Întreprinderi Individuale sau Întreprinderi Familiale, care dețin în proprietate terenul aferent investiției, în calitate de persoane fizice împreună cu soțul/soția, se va depune:\n• documentul prin care a fost dobândit terenul de persoana fizică, conform documentelor de la punctul 3.1, \nși \n• declarația soțului/soției prin care își dă acordul referitor la realizarea și implementarea proiectului de către PFA, II sau IF, pe toată perioada de valabilitate a contractului cu AFIR. \n  Ambele documente vor fi încheiate la notariat în formă autentică. \n"]
["În situaţia în care imobilul pe care se execută investiţia nu este liber de sarcini (ipotecat pentru un credit) se va depune acordul creditorului privind execuţia investiţiei şi graficul de rambursare a creditului."]
["4.Declarație expert contabil din care sa reiasă că solicitantul în anul precedent depunerii cererii de finanțare a obținut venituri din exploatare iar veniturile din activitățile agricole reprezintă cel puțin 50% din total venituri din exploatare ale solicitantului."]
["5. Extras din Registrul Agricol – în copie cu ştampila primăriei şi menţiunea \"Conform cu originalul\" pentru dovedirea calităţii de membru al gospodăriei agricole."]
["6. Declarație de suprafață APIA 2017 sau 2018/ extras din Registrul ANSVSA/medic veterinar"]
["7. Copia actului de identitate pentru reprezentantul legal de proiect (asociat unic/asociat majoritar/administrator/PFA, titular II, membru IF)."]
["8. Documente care atestă forma de organizare a solicitantului:"]
["8.1 Certificat constatator ONRC și certificat de înregistrare ONRC\nsau\n"]
["8.2 Hotărâre judecătorească definitivă pronunţată pe baza actului de constituire și a statutului propriu în cazul Societăţilor agricole, însoțită de Statutul Societății agricole\nsau"]
["8.3 Act constitutiv pentru Societatea cooperativă agricolă"]
["9. Declarație pe propria răspundere (model anexă) că va prezenta înainte de contractare cu AFIR: \n• Certificat de cazier judiciar al solicitantului – ca persoană juridică \n• Certificat de cazier judiciar al reprezentantului legal – ca persoană fizică \n• Certificat de atestare fiscală pentru întreprindere \n• Certificat de atestare fiscală pentru reprezentantul legal \n• Certificat de cazier fiscal al solicitantului\n      Certificatele vor fi emise de către Direcţia Generală a Finanţelor Publice şi de primăriile pe raza cărora îşi au sediul social şi punctele de lucru (numai în cazul în care solicitantul este proprietar asupra imobilelor) şi, dacă este cazul, graficul de reeşalonare a datoriilor către bugetul consolidat.\n"]
["10. Declarație pe propria răspundere (model anexă) că va prezenta înainte de contractare cu AFIR – document privind asigurarea co-finanțării proiectului:\n• extras de cont şi/ sau contract de credit - în original, în termen de maxim 90 de zile de la primirea notificării privind selectarea cererii de finanţare\n• angajament privind utilizarea cofinanțării private.\n"]
["11. Adresa emisă de instituţia financiară (bancă/trezorerie) cu datele de identificare ale băncii şi ale contului aferent proiectului FEADR (denumirea, adresa băncii, codul IBAN al contului în care se derulează operaţiunile cu AFIR). \nNu este obligatorie deschiderea unui cont separat pentru derularea proiectului."]
["12. Declaraţie privind încadrarea întreprinderii în categoria întreprinderilor mici şi mijlocii (model anexă)"]
["13. Declaraţie pe propria răspundere a solicitantului privind respectarea regulii de cumul a ajutoarelor de minimis (model anexă)"]
["14. Certificat de urbanism pentru investitia propusă prin proiect / Autorizaţie de construire pentru proiecte care prevăd construcţii, însoţit, dacă este cazul, de actul de transfer a dreptului şi obligaţiilor ce decurg din Certificatul de urbanism şi o copie a adresei de înştiinţare."]
["15. Declarație pe propria răspundere (model anexă) că va prezenta înainte de contractare cu AFIR documentele emise de :\n• AJPM, în conformitate cu Protocolul AFIR-ANPM-GNM\n• DSP județeană conform tipurilor de documente mentionate în protocolul de colaborare dintre AFIR și Ministerul Sănătății\n• DSVSA, conform Protocolului de colaborare dintre AFIR şi ANSVSA publicat pe pagina de internet www.afir.info\n"]
["16. Aviz specific privind amplasamentul şi funcţionarea obiectivului eliberat de ANT pentru construcţia/modernizarea sau extinderea structurilor de primire turistice cu funcțiuni de cazare sau restaurante clasificate conform Ordinului 65/2013 și în conformitate cu Ordonanţa de Urgenţă nr. 142 din 28 octombrie 2008, cu modificările şi completările ulterioare."]
["17. Certificat de clasificare eliberat de ANT pentru structura de primire turistică cu funcțiuni de cazare sau restaurante clasificate conform Ordinului 65/2013 și în conformitate cu Ordonanţa de Urgenţă nr. 142 din 28 octombrie 2008 (în cazul modernizării/extinderii), cu modificările şi completările ulterioare."]
["18. Declaraţie pe propria răspundere a solicitantului cu privire la neîncadrarea în categoria \"firma în dificultate\", semnată de persoana autorizată să reprezinte întreprinderea, conform legii \" (model anexă).\n  Declaraţia va fi dată de toţi solicitanţii cu excepţia PFA-urilor, întreprinderilor individuale, întreprinderilor familiale şi a societăţilor cu mai puţin de 2 ani fiscali."]
["19. Declaraţie pe propria răspundere a solicitantului că nu a beneficiat de servicii de consiliere prin M-02 (model anexă)"]
["20. Dovada (adeverința) recunoașterii calității de meșteșugar / artizan, emisă de o autoritate locală/națională în domeniul cultură tradiționala/primăria de reședință"]
["21. Adeverința emisă de Primăria comunei și vizată de consilierul Instituției Prefectului pentru solicitanți din minoritatea romă"]
["22. Adresa de încadrare în obiectivele strategiei, emisă de GAL și extrasul din SDL"]
["23. Declarație pe propria răspundere privind eligibilitatea solicitantului (model anexă)"]
["24. Declarație pe propria răspundere că va demara acțiunile din proiect în cel mult 9 luni de la data deciziei de acordare a sprijinului (model anexă)"]
["25. Declarație pe propria răspundere privind angajamentul de raportare către GAL (model anexă)"]
["26. Alte documente (după caz)"]
[]
[]
[]
[]
[]
["F. DECLARAŢIE PE PROPRIA RĂSPUNDERE A SOLICITANTULUI"]
["(nebifarea unei căsuțe din partea F a cererii de finanțare, dacă proiectul impune, constituie eroare de fond, situație în care proiectul este declarat neeligibil)"]
["Prin această declaraţie solicitantul"]
[]
["care solicită asistență financiară nerambursabilă prin programul FEADR pentru proiectul intitulat"]
[]
["prin reprezentant legal"]
[]
["cunoscând prevederile legii penale cu privire la falsul în declarații:"]
["1. Declar că proiectul propus asistenței financiare nerambursabile FEADR nu beneficiază de altă finanțare din\nprograme de finanțare nerambursabilă."]
["De asemenea mă angajez ca în cazul în care proiectul va fi selectat pentru finanțare FEADR, nu voi depune acest proiect la nici un alt program de finanțare nerambursabilă la care proiectul poate fi în întregime sau parțial eligibil pentru asistență."]
["2. Declar pe propria răspundere că îndeplinesc condiţiile minime de acordare a sprijinului prevăzute în fişa măsurii şi ghidul solicitantului şi mă angajez să le respect pe perioada de valabilitate a contractului de finanţare şi monitorizare a proiectului, inclusiv criteriile de selecţie pentru care am fost punctat."]
["3. Declar pe propria răspundere că toate informaţiile din prezenta cerere de finanţare şi din documentele anexate sunt corecte şi mă angajez să respect condiţiile cerute în reglementările referitoare la prezentul program şi pe cele legate de Studiul de fezabilitate şi să furnizez periodic, la cerere, documente justificative necesare."]
["4. Declar pe propria răspundere că orice modificări aduse dreptului de proprietate sau de folosinţă vor fi notificate AFIR în termen de trei zile de la data încheierii lor. De asemenea, mă angajez, ca pe perioada de valabilitate a contractului de finanţare şi monitorizare a proiectului să nu diminuez suprafaţa şi/sau infrastructura cuprinsă în proiect."]
["5. Declar că eu și organizația mea (asociație sau întreprindere) nu suntem într-unul din următoarele cazuri:"]
[null,null,null,"Acuzat din cauza unei greșeli privind conduita profesională având ca soluție finală res judicata (împotriva căreia nici un apel nu este posibil)"]
[null,null,null,"Vinovat de grave deficiențe de conduită profesională dovedite prin orice mijloace pe care Agenția le poate justifica."]
[null,null,null,"Vinovat de faptul că nu am prezentat informaţiile cerute de Autoritatea Contractantă ca o condiţie de participare la licitaţie sau contractare"]
[null,null,null,"Încălcarea prevederilor contractuale prin care nu mi-am îndeplinit obligațiile contractuale în legătură cu un alt contract cu Agenția sau alte contracte finanțate din fonduri comunitare."]
[null,null,null,"Încercarea de a obține informații confidențiale sau de influențare a Agenției în timpul procesului de evaluare a proiectului și nu voi face presiuni la adresa evaluatorului."]
["6.",null,null,null,null,"Declar că organizaţia pe care o reprezint ARE datorii către instituţii de credit şi/sau instituții financiare bancare/nebancare pentru care prezint graficul de rambursare."]
["7.",null,null,null,null,"Declar că organizația pe care o reprezint NU are datorii către instituții de credit şi/sau instituții financiare\nnebancare."]
["8.",null,null,null,null,"Declar pe propria răspundere că:"]
[null,null,null,null,null,"Nu sunt înregistrat în scopuri TVA și că mă angajez să notific Agenției orice modificare a situației privind înregistrarea ca plătitor de TVA, în maximum 10 (zece) zile de la data înregistrării în scopuri TVA."]
[null,null,null,null,null,"Sunt înregistrat în scopuri de TVA (certificat de înregistrare fiscală în scopuri de TVA)."]
["9.1",null,null,null,null,"Declar pe propria răspundere că nu am înscrieri care privesc sancțiuni economico-financiare în cazierul\njudiciar pe care mă oblig să îl depun la încheierea contractului de finanțare."]
["9.2",null,null,null,null,"Declar pe propria răspundere că reprezentantul legal nu are înscrieri privind sancţiuni economico-financiare în certificatul de cazier judiciar - persoană fizică, pe care mă oblig să-l depun la încheierea contractului de finanțare"]
["10.",null,null,null,null,"Declar pe propria răspundere că nu am fapte înscrise în cazierul fiscal pe care mă oblig să îl depun la încheierea contractului de finanţare."]
["11.",null,null,null,null,"Declar pe propria răspundere că voi deschide punct de lucru în spaţiul rural, cu codul CAEN al activităţii pentru care solicită finanţare, când voi îndeplini condiţiile, conform legislaţiei în vigoare (pentru investiţii noi, dacă este cazul)."]
["12.",null,null,null,null,"Mă angajez că la momentul finalizării agro-pensiunii, aceasta va fi introdusă în circuitul turistic (în cazul proiectelor care prevăd agropensiuni)."]
["13.",null,null,null,null,"Declar pe proprie răspundere că investiţia finanţată va deservi exclusiv interesele economice ale acestuia (beneficiarului proiectului) în scopul obţinerii de profit propriu."]
["14.",null,null,null,null,"Declar pe propria răspundere că nivelul de confort şi calitatea serviciilor propuse prin proiect vor atinge standardul de calitate de minimum o margaretă (în cazul proiectelor care prevăd agropensiuni)."]
["15.",null,null,null,null,"Declaraţie pe propria raspundere că modernizarea structurii de primire turistică va presupune în mod obligatoriu creșterea nivelului de confort cu cel puțin o margaretă (în cazul proiectelor care prevăd agropensiuni)"]
["16.",null,null,null,null,"Declar pe propria răspundere că toate cheltuielile neeligibile vor fi suportate de solicitant şi că acestea vor fi realizate până la finalizarea proiectului."]
["17.",null,null,null,null,"Declar pe propria răspundere că dosarul cererii de finanţare depus în format letric este identic cu cel scanat pe CD. În caz contrar, proiectul nu va fi contractat."]
["18.",null,null,null,null,"Mă angajez ca în termenul prevăzut în “Notificarea beneficiarului privind selectarea cererii de finanațare și semnarea contractului de finanțare” să prezint documentul privind cofinanțarea proiectului și Angajamentul responsabilului legal al proiectului că nu va utiliza în alte scopuri 50% din cofinanțarea privată, în cazul prezentării cofinanțării prin extras de cont."]
["19.",null,null,null,null,"Declar pe propria răspundere că în cazul în care nu respect oricare din punctele prevăzute în această declaraţie, proiectul să devină neeligibil în baza criteriului \"Eligibilitatea solicitantului\" sau contractul să fie reziliat."]
["20.",null,null,null,null,"Declar pe propria răspundere ca nu sunt în insolvență sau incapacitate de plată."]
["21.",null,null,null,null,"Accept publicarea pe site-ul AFIR a datelor mele, cu respectarea legislaţiei naţionale şi europene privind transparenţa."]
["22.",null,null,null,null,"Sunt de acord ca AFIR să consulte și să prelucreze, prin operațiunile prevăzute de legislația în vigoare în vederea desfășurării activității specifice, datele mele cu caracter personal, furnizate AFIR."]
["Semnătura reprezentant legal şi ştampila",null,null,null,null,null,null,null,null,null,null,null,null,null,null,null,null,null,null,null,null,null,null,null,null,null,null,null,null,null,null,null,null,null,null,null,null,null,null,null,null," Data:"]
[]
[]
[]
["Anexa INDICATORI DE MONITORIZARE - AFIR"]
["Măsura 7b/6A - Dezvoltarea de afaceri non-agricole"]
[]
["1. Cod RO",null,null,null,null,null,null,null,null,null,null,null,null,null,null,null,null,null,null,null,null,null,null,null,null,null,null,null,null,null,null,null,null,null,null,null,null,null,null,null,null,null,null,null,null,null,null,null,null,null,{"$f":"R132&\"\"","v":""}]
["2. Cod CAEN",null,null,null,null,null,null,null,null,null,null,null,null,null,null,null,null,null,null,null,null,null,null,null,null,null,null,null,null,null,null,null,null,null,null,null,null,null,null,null,null,null,null,null,null,null,null,null,null,null,{"$f":"C130&E130&G130&I130","v":""}]
["3. Tipul beneficiarului",null,null,null,null,null,null,null,null,null,null,null,null,null,null,null,null,"Solicitanți înființați în baza OUG 44/ 2008; OG 124/ 1998; Legea nr.160/ 1998",null,null,null,null,null,null,null,null,null,null,null,"Bărbați",null,null,null,null,null,null,null,null,null,null,null,"<=40"]
[null,null,null,null,null,null,null,null,null,null,null,null,null,null,null,null,null,null,null,null,null,null,null,null,null,null,null,null,null,null,null,null,null,null,null,null,null,null,null,null,null,">40"]
[null,null,null,null,null,null,null,null,null,null,null,null,null,null,null,null,null,null,null,null,null,null,null,null,null,null,null,null,null,"Femei",null,null,null,null,null,null,null,null,null,null,null,"<=40"]
[null,null,null,null,null,null,null,null,null,null,null,null,null,null,null,null,null,null,null,null,null,null,null,null,null,null,null,null,null,null,null,null,null,null,null,null,null,null,null,null,null,">40"]
[null,null,null,null,null,null,null,null,null,null,null,null,null,null,null,null,null,"Persoană juridică"]
["4. Statutul beneficiarului",null,null,null,null,null,null,null,null,null,null,null,null,null,null,null,null,"Fermier"]
[null,null,null,null,null,null,null,null,null,null,null,null,null,null,null,null,null,"Membru al unei gospodării agricole"]
[null,null,null,null,null,null,null,null,null,null,null,null,null,null,null,null,null,"Microîntreprindere nou înființată"]
[null,null,null,null,null,null,null,null,null,null,null,null,null,null,null,null,null,"Întreprindere mică nou înființată"]
[null,null,null,null,null,null,null,null,null,null,null,null,null,null,null,null,null,"Microintreprindere existentă"]
[null,null,null,null,null,null,null,null,null,null,null,null,null,null,null,null,null,"Întreprindere mică existentă"]
["5. Tipul de zonă",null,null,null,null,null,null,null,null,null,null,null,null,null,null,null,null,"Zonă normală"]
[null,null,null,null,null,null,null,null,null,null,null,null,null,null,null,null,null,"Zonă montană"]
[null,null,null,null,null,null,null,null,null,null,null,null,null,null,null,null,null,"Zonă cu constrângeri specifice"]
[null,null,null,null,null,null,null,null,null,null,null,null,null,null,null,null,null,"Zonă cu constrângeri semnificative"]
["6. Tipul de investiției",null,null,null,null,null,null,null,null,null,null,null,null,null,null,null,null,"a. investiții pentru producerea și comercializarea produselor nonagricole"]
[null,null,null,null,null,null,null,null,null,null,null,null,null,null,null,null,null,"b. investiții pentru activității meșteșugărești"]
[null,null,null,null,null,null,null,null,null,null,null,null,null,null,null,null,null,"c. investiții legate de furnizarea de servicii"]
[null,null,null,null,null,null,null,null,null,null,null,null,null,null,null,null,null,"d. investiții pentru infrastructuă în unitățile de primire turistică de tip agro-turistic, activități de agrement"]
[null,null,null,null,null,null,null,null,null,null,null,null,null,null,null,null,null,"e. investiții pentru producția de combustibil din biomasă (ex.: fabricare de peleți și brichete) în vederea comercializării"]
["7. Suprafaţa (ha) exploataţiei/exploataţiilor sprijinite\n(se completează numai pentru solicitanţii care deţin exploataţii agricole şi se încadrează în categoria fermierilor sau a membrilor gospodăriilor agricole)"]
["8. Tip ramură agricolă\n(se completează numai pentru solicitanţii care deţin exploataţii agricole şi se încadrează în categoria fermierilor sau a membrilor gospodăriilor agricole)",null,null,null,null,null,null,null,null,null,null,null,null,null,null,null,null,"Culturi de câmp"]
[null,null,null,null,null,null,null,null,null,null,null,null,null,null,null,null,null,"Horticultură"]
[null,null,null,null,null,null,null,null,null,null,null,null,null,null,null,null,null,"Viticultură"]
[null,null,null,null,null,null,null,null,null,null,null,null,null,null,null,null,null,"Culturi permanente (altele decât viticultura)"]
[null,null,null,null,null,null,null,null,null,null,null,null,null,null,null,null,null,"Creștere bovine pentru carne"]
[null,null,null,null,null,null,null,null,null,null,null,null,null,null,null,null,null,"Creștere bovine pentru lapte"]
[null,null,null,null,null,null,null,null,null,null,null,null,null,null,null,null,null,"Creștere ovine și caprine"]
[null,null,null,null,null,null,null,null,null,null,null,null,null,null,null,null,null,"Porcine"]
[null,null,null,null,null,null,null,null,null,null,null,null,null,null,null,null,null,"Păsări de curte"]
[null,null,null,null,null,null,null,null,null,null,null,null,null,null,null,null,null,"Mixte - culturi mixte"]
[null,null,null,null,null,null,null,null,null,null,null,null,null,null,null,null,null,"Mixte - animale mixte"]
[null,null,null,null,null,null,null,null,null,null,null,null,null,null,null,null,null,"Mixte - culturi și animale cu excepția albinelor"]
[null,null,null,null,null,null,null,null,null,null,null,null,null,null,null,null,null,"Albine"]
[null,null,null,null,null,null,null,null,null,null,null,null,null,null,null,null,null,"Altele"]
["9. Număr locuri de muncă",null,null,null,null,null,null,null,null,null,null,null,null,null,null,null,null,"Existente"]
[null,null,null,null,null,null,null,null,null,null,null,null,null,null,null,null,null,"Nou create",null,null,null,null,null,null,null,null,null,null,null,"Bărbați"]
[null,null,null,null,null,null,null,null,null,null,null,null,null,null,null,null,null,null,null,null,null,null,null,null,null,null,null,null,null,"Femei"]
["10. Contribuie la Prioritatea 1",null,null,null,null,null,null,null,null,null,null,null,null,null,null,null,null,"M01 - Transfer de cunoştinţe şi acţiuni de informare"]
[null,null,null,null,null,null,null,null,null,null,null,null,null,null,null,null,null,"M02 - Servicii de consiliere"]
[null,null,null,null,null,null,null,null,null,null,null,null,null,null,null,null,null,"M16 - Cooperare"]
["Indic. nr.1 - reprezintă codul de înregistrare al beneficiarului în Registrul Fermierului la APIA;\nIndic. nr.2 - reprezintă codul CAEN completat de solicitant la prima poziție din cele maxim 5 coduri CAEN din Cererea de Finantare pentru investiţia/investițiile vizată/vizate prin proiect;\nIndic. nr. 3, 4, 5, 6 - se va bifa doar o singura categorie/ categoria majoritară\nIndic. nr. 7 şi 8 - aceşti indicatori (suprafaţa exploataţiei agricole şi tip ramură agricolă) se vor completa numai pentru solicitanţii care deţin exploataţii agricole şi se încadrează în categoria fermierilor sau a membrilor gospodăriilor agricole. În cazul în care solicitantul nu deţine o suprafaţă, exploataţia vizează doar creşterea animalelor, la indicatorul “Suprafaţa exploataţiei agricole sprijinite” va completa “0”, iar la “Tip ramură agricolă” va bifa ramura agricolă la care se încadrează.\nIndic. nr.9 - se va completa numărul locurilor de muncă existente şi numărul locurilor de muncă nou create prin proiect\nIndic. nr. 10 - se va completa din momentul demararii M01, M02, respectiv M16, cu bifa în dreptul măsurii corespunzătoare,dacă va fi cazul."]
[]
[]
[]
[]
[]
[]
[]
[]
["Anexa INDICATORI DE MONITORIZARE- GAL MOVILA LUI BURCEL VASLUI NORD"]
["Măsura 7b/6A - Dezvoltarea de afaceri non-agricole"]
["1.Cod CAEN"]
["2.Creare de locuri de muncă"]
["3.Vârsta beneficiarului",null,null,null,null,null,null,null,null,null,null,null,null,null,null,null,null,null,null,null,null,null,"solicitant cu vârsta sub 40 de ani, indiferent de sex"]
[null,null,null,null,null,null,null,null,null,null,null,null,null,null,null,null,null,null,null,null,null,null,"femei cu vârsta sub 60 de ani"]
["4.Minoritate etnică",null,null,null,null,null,null,null,null,null,null,null,null,null,null,null,null,null,null,null,null,null,"solicitantul aparține unei minorități etnice (romă)"]
["5.Acțiuni de mediu"]
["6.Acțiuni inovative"]
[]
["Indic.nr.1 - reprezintă codul CAEN completat de solicitant pentru care solicită finanțare"]
["Ind.nr.2 - se completează cu numărul locurilor de muncă create prin proiect"]
["Ind.3 - se bifează în funcție de criteriile menționate mai sus"]
["Ind.4, 5 și 6 - se vor bifa cu X dacă este cazul în cadrul proiectului"]
[]
[]
["Factori de risc"]
["I1. Valoarea sprijinului public nerambursabil (EURO)",null,null,null,null,null,null,null,null,null,null,null,null,null,null,null,null,null,null,null,null,null,null,null,null,null,null,null,null,null,null,null,null,null,null,null,null,null,null,null,null,null,null,null,null,null,null,null,null,null,null,"Punctaj obţinut"]
["•",null,"proiecte cu valoarea sprijinului nerambursabil între 100.001 → 200.000 euro",null,null,null,null,null,null,null,null,null,null,null,null,null,null,null,null,null,null,null,null,null,null,null,null,null,null,null,null,null,null,null,null,null,null,null,null,null,null,null,null,null,null,null,null,null,null,null,null,3]
["•",null,"proiecte cu valoarea sprijinului nerambursabil între 50.001 → 100.000 euro",null,null,null,null,null,null,null,null,null,null,null,null,null,null,null,null,null,null,null,null,null,null,null,null,null,null,null,null,null,null,null,null,null,null,null,null,null,null,null,null,null,null,null,null,null,null,null,null,2]
["•",null,"proiecte cu valoarea sprijinului nerambursabil între 5.000 → 50.000 euro",null,null,null,null,null,null,null,null,null,null,null,null,null,null,null,null,null,null,null,null,null,null,null,null,null,null,null,null,null,null,null,null,null,null,null,null,null,null,null,null,null,null,null,null,null,null,null,null,1]
[]
["I2. Complexitatea investitiei"]
["•",null,"Modernizări cu construcţie şi/sau montaj",null,null,null,null,null,null,null,null,null,null,null,null,null,null,null,null,null,null,null,null,null,null,null,null,null,null,null,null,null,null,null,null,null,null,null,null,null,null,null,null,null,null,null,null,null,null,null,null,5]
["•",null,"Modernizări prin achiziţie utilaje",null,null,null,null,null,null,null,null,null,null,null,null,null,null,null,null,null,null,null,null,null,null,null,null,null,null,null,null,null,null,null,null,null,null,null,null,null,null,null,null,null,null,null,null,null,null,null,null,4]
["•",null,"Investiție nouă",null,null,null,null,null,null,null,null,null,null,null,null,null,null,null,null,null,null,null,null,null,null,null,null,null,null,null,null,null,null,null,null,null,null,null,null,null,null,null,null,null,null,null,null,null,null,null,null,3]
[]
["I3. Intensitatea sprijinului"]
[null,null,0.9,null,null,null,null,null,null,null,null,null,null,null,null,null,null,null,null,null,null,null,null,null,null,null,null,null,null,null,null,null,null,null,null,null,null,null,null,null,null,null,null,null,null,null,null,null,null,null,null,5]
[null,null,0.7,null,null,null,null,null,null,null,null,null,null,null,null,null,null,null,null,null,null,null,null,null,null,null,null,null,null,null,null,null,null,null,null,null,null,null,null,null,null,null,null,null,null,null,null,null,null,null,null,4]
[]
["I4. Riscul proiectului privind raportul între cheltuielile suportate de solicitant şi Valoarea ajutorului nerambursabil",null,null,null,null,null,null,null,null,null,null,null,null,null,null,null,null,null,null,null,null,null,null,null,null,null,null,null,null,null,null,null,null,null,null,null,null,null,null,null,null,null,null,null,null,null,null,null,null,null,null,"Punctaj obţinut"]
["•",null,">200%",null,null,null,null,null,null,null,null,null,null,null,null,null,null,null,null,null,null,null,null,null,null,null,null,null,null,null,null,null,null,null,null,null,null,null,null,null,null,null,null,null,null,null,null,null,null,null,null,5]
["•",null,"Între 176 și 200%",null,null,null,null,null,null,null,null,null,null,null,null,null,null,null,null,null,null,null,null,null,null,null,null,null,null,null,null,null,null,null,null,null,null,null,null,null,null,null,null,null,null,null,null,null,null,null,null,4]
["•",null,"Între 151 și 175%",null,null,null,null,null,null,null,null,null,null,null,null,null,null,null,null,null,null,null,null,null,null,null,null,null,null,null,null,null,null,null,null,null,null,null,null,null,null,null,null,null,null,null,null,null,null,null,null,3]
["•",null,"Între 121 și 150%",null,null,null,null,null,null,null,null,null,null,null,null,null,null,null,null,null,null,null,null,null,null,null,null,null,null,null,null,null,null,null,null,null,null,null,null,null,null,null,null,null,null,null,null,null,null,null,null,2]
["•",null,"< 120%",null,null,null,null,null,null,null,null,null,null,null,null,null,null,null,null,null,null,null,null,null,null,null,null,null,null,null,null,null,null,null,null,null,null,null,null,null,null,null,null,null,null,null,null,null,null,null,null,1]
[]
["I5. Capacitatea societăţii de a manageria proiectul, experienţa în derularea afacerilor",null,null,null,null,null,null,null,null,null,null,null,null,null,null,null,null,null,null,null,null,null,null,null,null,null,null,null,null,null,null,null,null,null,null,null,null,null,null,null,null,null,null,null,null,null,null,null,null,null,null,"Punctaj obţinut"]
["•",null,"Firmă nouă sau fără activitate",null,null,null,null,null,null,null,null,null,null,null,null,null,null,null,null,null,null,null,null,null,null,null,null,null,null,null,null,null,null,null,null,null,null,null,null,null,null,null,null,null,null,null,null,null,null,null,null,5]
["•",null,"Firmă cu experienţă dar care nu a participat la alt proiect comunitar sau nu a obţinut asistenţă financiară nerambursabilă din partea altui instrument financiar",null,null,null,null,null,null,null,null,null,null,null,null,null,null,null,null,null,null,null,null,null,null,null,null,null,null,null,null,null,null,null,null,null,null,null,null,null,null,null,null,null,null,null,null,null,null,null,null,4]
["•",null,"Firmă cu experienţă care a finalizat un proiect comunitar sau a obţinut din asistenţă financiară nerambursabilă din partea altui instrument financiar",null,null,null,null,null,null,null,null,null,null,null,null,null,null,null,null,null,null,null,null,null,null,null,null,null,null,null,null,null,null,null,null,null,null,null,null,null,null,null,null,null,null,null,null,null,null,null,null,3]
["TOTAL"]
[]
["Pentru selectarea cererilor de finanţare ce vor fi verificate se va determina riscul fiecărui proiect folosind un număr de 5 factori de risc (I1, I2, I3, I4, I5).\nPentru fiecare proiect se va determina punctajul fiecărui factor de risc pe o scară de la 1 la 5."]
[]
[]
["Codul unic de înregistrare APIA"]
["În cazul în care nu aveți un cod unic de înregistrare APIA, completați acest formular."]
[]
["FORMULAR"]
["de înscrire în registrul unic de identificare pentru solicitanții de finanțare prin măsurile"]
["Programului naţional de dezvoltare rurală 2014 - 2020"]
[]
["Denumire solicitant:"]
[]
["Categorie Solicitant:"]
[]
["Sediul / Adresa"]
[]
["Ţara",null,null,null,null,"România",null,null,null,null,null,null,null,null,"Judeţul",null,null,null,null,null,null,null,null,null,null,null,null,null,null,null,null,null,null,"oraşul"]
[]
["comuna",null,null,null,null,null,null,null,null,null,null,null,null,null,null,null,null,null,null,null,null,"satul",null,null,null,null,null,null,null,null,null,null,null,null,null,null,null,null,null,"strada"]
[]
["nr.",null,null,null,null,null,null,null,"bl.",null,null,null,null,null,"et.",null,null,null,null,"ap.",null,null,null,null,null,"sectorul",null,null,null,null,null,null,null,null,null,null,null,null,"codul poştal"]
[]
["Număr de telefon",null,null,null,null,null,null,null,null,null,null,null,null,null,null,null,null,null,null,null,null,null,null,"Fax",null,null,null,null,null,null,null,null,null,null,null,null,null,null,"E-mail"]
[]
["Număr de înregistrare în registrul comerțului/Registrul asociațiilor și fundațiilor"]
[]
["CUI / CIF"]
[]
["Cod CAEN pentru activitatea principală"]
[]
["Cod CAEN pentru activitatea secundară pentru care se solicită înregistrarea în Registrul unic de identificare"]
[]
["Cod IBAN"]
[]
["deschis la Banca"]
[]
["Sucursala / Agenție"]
[]
["Prin reprezentant legal, doamna/domnul"]
[]
["cu CNP",null,null,null,null,null,null,null,null,null,null,null,null,null,null,"solicit înscrierea în Registrul unic de identificare - Agenţia de Plăţi şi Intervenţie pentru Agricultură."]
[]
["Am luat la cunoştinţă că orice modificare a informaţiilor de mai sus trebuie furnizată către APIA în termen de maximum 10 zile\nlucrătoare de la producerea acestora.\nDeclar pe propria răspundere că cele de mai sus sunt conforme cu realitatea.\nSunt de acord ca datele din cerere să fie introduse în baza de date a Sistemului Integrat de Administrare şi Control, procesate şi\nverificate în vederea înscrierii în Registrul unic de identificare şi transmise autorităţilor responsabile în vederea elaborării de studii\nstatistice şi de evaluări economice, în condiţiile Legii nr. 677-2001 pentru protecţia persoanelor cu privire la prelucrarea datelor cu\ncaracter personal şi libera circulaţie a acestor date, cu modificarile şi completările ulterioare."]
[]
["Reprezentant legal",null,null,null,null,null,null,null,null,null,null,null,null,null,null,null,null,null,null,null,null,null,null,null,null,null,null,null,null,null,null,null,null,null,null,null,null,null,null,null,null,null,null,"Data:"]
[]
["Numele şi prenumele"]
[]
["Semnătura "]

{"sheet":"Anexa 1","index":1,"n_rows":96,"n_cols":52,"rows_kept":96,"cut":false,"hidden":false,"merged":[[0,7,0,41],[1,7,1,41],[1,42,2,60],[2,7,2,41],[3,7,3,41],[3,42,3,50],[3,51,3,60],[4,7,4,60],[5,0,5,60],[6,0,6,60],[7,0,7,60],[8,0,8,3],[8,4,8,41],[8,42,8,50],[8,51,8,60],[9,0,9,3],[9,4,9,41],[9,42,9,50],[9,51,9,60],[10,0,10,3],[10,4,10,41],[10,42,10,50],[10,51,10,60],[11,0,11,3],[11,4,11,41],[11,42,11,50],[11,51,11,60],[12,0,12,3],[12,4,12,41],[12,42,12,50],[12,51,12,60],[13,0,13,3],[13,4,13,41],[13,42,13,50],[13,51,13,60],[14,0,14,3],[14,4,14,41],[14,42,14,50],[14,51,14,60],[15,0,15,3],[15,4,15,41],[15,42,15,50],[15,51,15,60],[16,0,16,3],[16,4,16,41],[16,42,16,50],[16,51,16,60],[17,0,17,3],[17,4,17,41],[17,42,17,50],[17,51,17,60],[18,0,18,3],[18,4,18,41],[18,42,18,50],[18,51,18,60],[19,0,19,3],[19,4,19,41],[19,42,19,50],[19,51,19,60],[20,0,20,3],[20,4,20,41],[20,42,20,50],[20,51,20,60],[21,0,21,3],[21,4,21,41],[21,42,21,50],[21,51,21,60],[22,0,22,3],[22,4,22,41],[22,42,22,50],[22,51,22,60],[23,0,23,3],[23,42,23,50],[23,51,23,60],[24,0,24,3],[24,42,24,50],[24,51,24,60],[23,4,23,41],[24,4,24,41],[25,0,25,3],[25,42,25,50],[25,51,25,60],[26,0,26,3],[26,42,26,50],[26,51,26,60],[27,0,27,3],[27,42,27,50],[27,51,27,60],[25,4,25,41],[26,4,26,41],[27,4,27,41],[28,0,28,3],[28,42,28,50],[28,51,28,60],[29,0,29,3],[29,4,29,41],[29,42,29,50],[29,51,29,60],[30,0,30,3],[30,4,30,41],[30,42,30,50],[30,51,30,60],[28,4,28,41],[31,0,31,3],[31,4,31,41],[31,42,31,50],[31,51,31,60],[32,0,32,3],[32,4,32,41],[32,42,32,50],[32,51,32,60],[33,0,33,3],[33,4,33,41],[33,42,33,50],[33,51,33,60],[34,0,34,3],[34,4,34,41],[34,42,34,50],[34,51,34,60],[35,0,35,3],[35,4,35,41],[35,42,35,50],[35,51,35,60],[36,0,36,3],[36,4,36,41],[36,42,36,50],[36,51,36,60],[37,0,37,3],[37,4,37,41],[37,42,37,50],[37,51,37,60],[38,0,38,3],[38,4,38,41],[38,42,38,50],[38,51,38,60],[39,0,39,3],[39,4,39,41],[39,42,39,50],[39,51,39,60],[47,0,47,41],[47,42,47,60],[48,7,48,41],[49,7,49,41],[49,42,50,60],[50,7,50,41],[40,0,40,3],[40,4,40,41],[40,42,40,50],[40,51,40,60],[41,0,41,3],[41,4,41,41],[41,42,41,50],[41,51,41,60],[42,0,42,3],[42,4,42,41],[42,42,42,50],[42,51,42,60],[43,0,43,3],[43,4,43,41],[43,42,43,50],[43,51,43,60],[44,0,44,3],[44,4,44,41],[56,0,56,3],[56,4,56,41],[56,42,56,50],[56,51,56,60],[54,0,54,60],[55,0,55,60],[51,42,51,50],[51,51,51,60],[51,7,51,41],[52,7,52,60],[53,0,53,60],[57,0,57,3],[57,4,57,41],[57,42,57,50],[57,51,57,60],[58,0,58,3],[58,4,58,41],[58,42,58,50],[58,51,58,60],[59,0,59,3],[59,4,59,41],[59,42,59,50],[59,51,59,60],[60,0,60,3],[60,4,60,41],[60,42,60,50],[60,51,60,60],[61,0,61,3],[61,4,61,41],[61,42,61,50],[61,51,61,60],[62,0,62,3],[62,4,62,41],[62,42,62,50],[62,51,62,60],[63,0,63,3],[63,4,63,41],[63,42,63,50],[63,51,63,60],[64,0,64,3],[64,4,64,41],[64,42,64,50],[64,51,64,60],[65,0,65,3],[65,42,65,50],[65,51,65,60],[65,4,65,41],[66,0,66,3],[66,42,66,50],[66,51,66,60],[67,0,67,3],[67,42,67,50],[67,51,67,60],[68,0,68,3],[68,42,68,50],[68,51,68,60],[66,4,66,41],[67,4,67,41],[68,4,68,41],[69,0,69,3],[69,42,69,50],[69,51,69,60],[70,0,70,3],[70,42,70,50],[70,51,70,60],[71,0,71,3],[71,4,71,41],[71,42,71,50],[71,51,71,60],[69,4,69,41],[70,4,70,41],[72,0,72,3],[72,4,72,41],[72,42,72,50],[72,51,72,60],[73,0,73,3],[73,4,73,41],[73,42,73,50],[73,51,73,60],[74,0,74,3],[74,4,74,41],[74,42,74,50],[74,51,74,60],[75,0,75,3],[75,4,75,41],[75,42,75,50],[75,51,75,60],[76,0,76,3],[76,4,76,41],[76,42,76,50],[76,51,76,60],[77,0,77,3],[77,4,77,41],[77,42,77,50],[77,51,77,60],[78,0,78,3],[78,4,78,41],[78,42,78,50],[78,51,78,60],[79,0,79,3],[79,4,79,41],[79,42,79,50],[79,51,79,60],[80,0,80,3],[80,4,80,41],[80,42,80,50],[80,51,80,60],[81,0,81,3],[81,4,81,41],[81,42,81,50],[81,51,81,60],[82,0,82,3],[82,4,82,41],[82,42,82,50],[82,51,82,60],[83,0,83,3],[83,4,83,41],[83,42,83,50],[83,51,83,60],[44,42,44,50],[44,51,44,60],[45,0,45,3],[45,4,45,41],[46,0,46,3],[46,4,46,41],[46,42,46,50],[46,51,46,60],[45,42,45,50],[45,51,45,60],[84,0,84,3],[84,4,84,41],[84,42,84,50],[84,51,84,60],[85,0,85,3],[85,4,85,41],[85,42,85,50],[85,51,85,60],[86,0,86,3],[86,4,86,41],[86,42,86,50],[86,51,86,60],[87,0,87,3],[87,4,87,41],[87,42,87,50],[87,51,87,60],[88,0,88,3],[88,4,88,41],[88,42,88,50],[88,51,88,60],[89,0,89,3],[89,4,89,41],[89,42,89,50],[89,51,89,60],[90,0,90,3],[90,4,90,41],[90,42,90,50],[90,51,90,60],[91,0,91,3],[91,4,91,41],[91,42,91,50],[91,51,91,60],[92,0,92,3],[92,4,92,41],[92,42,92,50],[92,51,92,60],[93,0,93,3],[93,4,93,41],[93,42,93,50],[93,51,93,60],[94,0,94,3],[94,4,94,41],[94,42,94,50],[94,51,94,60],[95,0,95,41],[95,42,95,60]]}
[null,null,null,null,null,null,null,"MINISTERUL AGRICULTURII ŞI DEZVOLTĂRII RURALE"]
[null,null,null,null,null,null,null,null,null,null,null,null,null,null,null,null,null,null,null,null,null,null,null,null,null,null,null,null,null,null,null,null,null,null,null,null,null,null,null,null,null,null,"Anexa A1\nHG 907/2016"]
[null,null,null,null,null,null,null,"AGENŢIA PENTRU FINANŢAREA INVESTIŢIILOR RURALE"]
[null,null,null,null,null,null,null,null,null,null,null,null,null,null,null,null,null,null,null,null,null,null,null,null,null,null,null,null,null,null,null,null,null,null,null,null,null,null,null,null,null,null,null,null,null,null,null,null,null,null,null,"Nr.2"]
[null,null,null,null,null,null,null,"Deviz financiar- Capitolul 3 - Cheltuieli pentru proiectare şi asistenţa tehnică - EURO"]
[]
[]
["(Titlu deviz)"]
["Nr.crt",null,null,null,"Specificaţie",null,null,null,null,null,null,null,null,null,null,null,null,null,null,null,null,null,null,null,null,null,null,null,null,null,null,null,null,null,null,null,null,null,null,null,null,null,"Valoare eligibilă",null,null,null,null,null,null,null,null,"Valoare\nneeligibilă"]
["3.1",null,null,null,"Cheltuieli pentru studii - total din care:",null,null,null,null,null,null,null,null,null,null,null,null,null,null,null,null,null,null,null,null,null,null,null,null,null,null,null,null,null,null,null,null,null,null,null,null,null,{"$f":"SUM(AQ11:AY13)","v":0},null,null,null,null,null,null,null,null,{"$f":"SUM(AZ11:BI13)","v":0}]
[null,null,null,null,"3.1.1 Studii de teren: geotehnice, geologice, hidrologice, hidrogeotehnice, fotogrammetrice, topografice şi de stabilitate ale terenului pe care se amplasează obiectivul de investiţie"]
[null,null,null,null,"3.1.2 Raport privind impactul asupra mediului"]
[null,null,null,null,"3.1.3 Studii de specialitate necesare în funcție de specificul investiției"]
["3.2",null,null,null,"Documentaţii-suport şi cheltuieli pentru obţinerea de avize, acorduri şi autorizaţii",null,null,null,null,null,null,null,null,null,null,null,null,null,null,null,null,null,null,null,null,null,null,null,null,null,null,null,null,null,null,null,null,null,null,null,null,null,{"$f":"SUM(AQ15:AY23)","v":0},null,null,null,null,null,null,null,null,{"$f":"SUM(AZ15:BI23)","v":0}]
[null,null,null,null,"1. obţinerea/prelungirea valabilităţii ceritificatului de urbanism"]
[null,null,null,null,"2. obţinerea/prelungirea valabilităţii autorizaţiei de construire/desfiinţare"]
[null,null,null,null,"3. obţinerea avizelor şi acordurilor pentru racorduri şi branşamente la reţelele publice de alimentare cu apă, canalizare, alimentare cu gaze, alimentare cu agent termic, energie electrică, telefonie"]
[null,null,null,null,"4. obţinerea certificatului de nomenclatură stradală şi adresa"]
[null,null,null,null,"5. întocmirea documentaţiei, obţinerea numărului cadastral provizoriu şi înregistrarea terenului în cartea funciară"]
[null,null,null,null,"6. obținerea actului administrativ al autorității competente pentru protecția mediului"]
[null,null,null,null,"7. obţinerea avizului de protecție civilă"]
[null,null,null,null,"8. avizul de specialitate în cazul obiectivelor de patrimoniu"]
[null,null,null,null,"9. alte avize, acorduri şi autorizaţii"]
["3.3",null,null,null,"Cheltuieli pentru expertizarea tehnică a construcţiilor existente, a structurilor şi/sau, după caz, a proiectelor tehnice, inclusiv întocmirea de către expertul tehnic a raportului de expertiză tehnică"]
["3.4",null,null,null,"Cheltuieli pentru certificarea performanţei energetice şi auditul energetic al\nclădirilor"]
["3.5",null,null,null,"Cheltuieli pentru proiectare",null,null,null,null,null,null,null,null,null,null,null,null,null,null,null,null,null,null,null,null,null,null,null,null,null,null,null,null,null,null,null,null,null,null,null,null,null,{"$f":"SUM(AQ27:AY32)","v":0},null,null,null,null,null,null,null,null,{"$f":"SUM(AZ27:BI32)","v":0}]
[null,null,null,null,"3.5.1 Temă de proiectare"]
[null,null,null,null,"3.5.2 Studiu de prefezabilitate"]
[null,null,null,null,"3.5.3. Studiu de prefezabilitate/documentație de avizare a lucrărilor de intervenții și deviz general"]
[null,null,null,null,"3.5.4. Documentațiile tehnice necesare în vederea obținerii avizelor/ acordurilor/ autorizațiilor"]
[null,null,null,null,"3.5.5. Verificarea tehnică de calitate a proiectului tehnic și a detaliilor de execuție"]
[null,null,null,null,"3.5.6. Proiect tehnic și detalii de execuție"]
["3.6",null,null,null,"Cheltuieli aferente organizării şi derulării procedurilor de achiziţii publice",null,null,null,null,null,null,null,null,null,null,null,null,null,null,null,null,null,null,null,null,null,null,null,null,null,null,null,null,null,null,null,null,null,null,null,null,null,null,null,null,null,null,null,null,null,null,{"$f":"SUM(AZ34:BI37)","v":0}]
[null,null,null,null,"1. Cheltuieli aferente întocmirii documentaţiei de atribuire şi multiplicării acesteia (exclusiv cele cumpărate de ofertanţi)"]
[null,null,null,null,"2. Cheltuieli cu onorariile, transportul, cazarea şi diurna membrilor desemnaţi în comisiile de evaluare"]
[null,null,null,null,"3. Anunţuri de intenţie, de participare şi de atribuire a contractelor, corespondenţă prin poştă, fax, poştă electronică în legătură cu procedurile de achiziţie publică"]
[null,null,null,null,"4. Cheltuieli aferente organizării şi derulării procedurilor de achiziţii publice"]
["3.7",null,null,null,"Cheltuieli pentru consultanţă",null,null,null,null,null,null,null,null,null,null,null,null,null,null,null,null,null,null,null,null,null,null,null,null,null,null,null,null,null,null,null,null,null,null,null,null,null,{"$f":"SUM(AQ39:AY40)","v":0},null,null,null,null,null,null,null,null,{"$f":"SUM(AZ39:BI40)","v":0}]
[null,null,null,null,"3.7.1 Managementul de proiect pentru obiectivul de investiţii"]
[null,null,null,null,"3.7.2 Auditul financiar"]
["3.8",null,null,null,"Cheltuieli pentru asistenţa tehnică",null,null,null,null,null,null,null,null,null,null,null,null,null,null,null,null,null,null,null,null,null,null,null,null,null,null,null,null,null,null,null,null,null,null,null,null,null,{"$f":"AQ42+AQ45","v":0},null,null,null,null,null,null,null,null,{"$f":"AZ42+AZ45","v":0}]
[null,null,null,null,"3.8.1. Asistenţă tehnică din partea proiectantului",null,null,null,null,null,null,null,null,null,null,null,null,null,null,null,null,null,null,null,null,null,null,null,null,null,null,null,null,null,null,null,null,null,null,null,null,null,{"$f":"SUM(AQ43:AY44)","v":0},null,null,null,null,null,null,null,null,{"$f":"SUM(AZ43:BI44)","v":0}]
[null,null,null,null,"1.1. pe perioada de execuţie a lucrărilor"]
[null,null,null,null,"1.2. pentru participarea proiectantului la fazele incluse în programul de control al lucrărilor de execuţie, avizat de către Inspectoratul de Stat în Construcţii"]
[null,null,null,null,"3.8.2 Dirigenţie de şantier, asigurată de personal tehnic de specialitate, autorizat"]
[null,null,null,null,"Total valoare fără TVA",null,null,null,null,null,null,null,null,null,null,null,null,null,null,null,null,null,null,null,null,null,null,null,null,null,null,null,null,null,null,null,null,null,null,null,null,null,{"$f":"AQ10+AQ14+AQ24+AQ25+AQ26+AQ33+AQ38+AQ41","v":0},null,null,null,null,null,null,null,null,{"$f":"AZ10+AZ14+AZ24+AZ25+AZ26+AZ33+AZ38+AZ41","v":0}]
[null,null,null,null,"Valoare TVA (aferentă cheltuielilor eligibile şi neeligibile)"]
["TOTAL DEVIZ FINANCIAR 1 (inclusiv TVA)",null,null,null,null,null,null,null,null,null,null,null,null,null,null,null,null,null,null,null,null,null,null,null,null,null,null,null,null,null,null,null,null,null,null,null,null,null,null,null,null,null,{"$f":"AQ46+AZ46+AQ47+AZ47","v":0}]
[null,null,null,null,null,null,null,"MINISTERUL AGRICULTURII ŞI DEZVOLTĂRII RURALE"]
[null,null,null,null,null,null,null,null,null,null,null,null,null,null,null,null,null,null,null,null,null,null,null,null,null,null,null,null,null,null,null,null,null,null,null,null,null,null,null,null,null,null,"Anexa A1\nHG 907/2016"]
[null,null,null,null,null,null,null,"AGENŢIA PENTRU FINANŢAREA INVESTIŢIILOR RURALE"]
[null,null,null,null,null,null,null,null,null,null,null,null,null,null,null,null,null,null,null,null,null,null,null,null,null,null,null,null,null,null,null,null,null,null,null,null,null,null,null,null,null,null,null,null,null,null,null,null,null,null,null,"Nr.3"]
[null,null,null,null,null,null,null,"Deviz financiar- Capitolul 3 - Cheltuieli pentru proiectare şi asistenţa tehnică - EURO"]
[]
[]
["(Titlu deviz)"]
["Nr.crt",null,null,null,"Specificaţie",null,null,null,null,null,null,null,null,null,null,null,null,null,null,null,null,null,null,null,null,null,null,null,null,null,null,null,null,null,null,null,null,null,null,null,null,null,"Valoare eligibilă",null,null,null,null,null,null,null,null,"Valoare\nneeligibilă"]
["3.1",null,null,null,"Cheltuieli pentru studii - total din care:",null,null,null,null,null,null,null,null,null,null,null,null,null,null,null,null,null,null,null,null,null,null,null,null,null,null,null,null,null,null,null,null,null,null,null,null,null,{"$f":"SUM(AQ59:AY61)","v":0},null,null,null,null,null,null,null,null,{"$f":"SUM(AZ59:BI61)","v":0}]
[null,null,null,null,"3.1.1 Studii de teren: geotehnice, geologice, hidrologice, hidrogeotehnice, fotogrammetrice, topografice şi de stabilitate ale terenului pe care se amplasează obiectivul de investiţie"]
[null,null,null,null,"3.1.2 Raport privind impactul asupra mediului"]
[null,null,null,null,"3.1.3 Studii de specialitate necesare în funcție de specificul investiției"]
["3.2",null,null,null,"Documentaţii-suport şi cheltuieli pentru obţinerea de avize, acorduri şi autorizaţii",null,null,null,null,null,null,null,null,null,null,null,null,null,null,null,null,null,null,null,null,null,null,null,null,null,null,null,null,null,null,null,null,null,null,null,null,null,{"$f":"SUM(AQ63:AY71)","v":0},null,null,null,null,null,null,null,null,{"$f":"SUM(AZ63:BI71)","v":0}]
[null,null,null,null,"1. obţinerea/prelungirea valabilităţii ceritificatului de urbanism"]
[null,null,null,null,"2. obţinerea/prelungirea valabilităţii autorizaţiei de construire/desfiinţare"]
[null,null,null,null,"3. obţinerea avizelor şi acordurilor pentru racorduri şi branşamente la reţelele publice de alimentare cu apă, canalizare, alimentare cu gaze, alimentare cu agent termic, energie electrică, telefonie"]
[null,null,null,null,"4. obţinerea certificatului de nomenclatură stradală şi adresa"]
[null,null,null,null,"5. întocmirea documentaţiei, obţinerea numărului cadastral provizoriu şi înregistrarea terenului în cartea funciară"]
[null,null,null,null,"6. obținerea actului administrativ al autorității competente pentru protecția mediului"]
[null,null,null,null,"7. obţinerea avizului de protecție civilă"]
[null,null,null,null,"8. avizul de specialitate în cazul obiectivelor de patrimoniu"]
[null,null,null,null,"9. alte avize, acorduri şi autorizaţii"]
["3.3",null,null,null,"Cheltuieli pentru expertizarea tehnică a construcţiilor existente, a structurilor şi/sau, după caz, a proiectelor tehnice, inclusiv întocmirea de către expertul tehnic a raportului de expertiză tehnică"]
["3.4",null,null,null,"Cheltuieli pentru certificarea performanţei energetice şi auditul energetic al\nclădirilor"]
["3.5",null,null,null,"Cheltuieli pentru proiectare",null,null,null,null,null,null,null,null,null,null,null,null,null,null,null,null,null,null,null,null,null,null,null,null,null,null,null,null,null,null,null,null,null,null,null,null,null,{"$f":"SUM(AQ75:AY80)","v":0},null,null,null,null,null,null,null,null,{"$f":"SUM(AZ75:BI80)","v":0}]
[null,null,null,null,"3.5.1 Temă de proiectare"]
[null,null,null,null,"3.5.2 Studiu de prefezabilitate"]
[null,null,null,null,"3.5.3. Studiu de prefezabilitate/documentație de avizare a lucrărilor de intervenții și deviz general"]
[null,null,null,null,"3.5.4. Documentațiile tehnice necesare în vederea obținerii avizelor/ acordurilor/ autorizațiilor"]
[null,null,null,null,"3.5.5. Verificarea tehnică de calitate a proiectului tehnic și a detaliilor de execuție"]
[null,null,null,null,"3.5.6. Proiect tehnic și detalii de execuție"]
["3.6",null,null,null,"Cheltuieli aferente organizării şi derulării procedurilor de achiziţii publice",null,null,null,null,null,null,null,null,null,null,null,null,null,null,null,null,null,null,null,null,null,null,null,null,null,null,null,null,null,null,null,null,null,null,null,null,null,null,null,null,null,null,null,null,null,null,{"$f":"SUM(AZ82:BI85)","v":0}]
[null,null,null,null,"1. Cheltuieli aferente întocmirii documentaţiei de atribuire şi multiplicării acesteia (exclusiv cele cumpărate de ofertanţi)"]
[null,null,null,null,"2. Cheltuieli cu onorariile, transportul, cazarea şi diurna membrilor desemnaţi în comisiile de evaluare"]
[null,null,null,null,"3. Anunţuri de intenţie, de participare şi de atribuire a contractelor, corespondenţă prin poştă, fax, poştă electronică în legătură cu procedurile de achiziţie publică"]
[null,null,null,null,"4. Cheltuieli aferente organizării şi derulării procedurilor de achiziţii publice"]
["3.7",null,null,null,"Cheltuieli pentru consultanţă",null,null,null,null,null,null,null,null,null,null,null,null,null,null,null,null,null,null,null,null,null,null,null,null,null,null,null,null,null,null,null,null,null,null,null,null,null,{"$f":"SUM(AQ87:AY88)","v":0},null,null,null,null,null,null,null,null,{"$f":"SUM(AZ87:BI88)","v":0}]
[null,null,null,null,"3.7.1 Managementul de proiect pentru obiectivul de investiţii"]
[null,null,null,null,"3.7.2 Auditul financiar"]
["3.8",null,null,null,"Cheltuieli pentru asistenţa tehnică",null,null,null,null,null,null,null,null,null,null,null,null,null,null,null,null,null,null,null,null,null,null,null,null,null,null,null,null,null,null,null,null,null,null,null,null,null,{"$f":"AQ90+AQ93","v":0},null,null,null,null,null,null,null,null,{"$f":"AZ90+AZ93","v":0}]
[null,null,null,null,"3.8.1. Asistenţă tehnică din partea proiectantului",null,null,null,null,null,null,null,null,null,null,null,null,null,null,null,null,null,null,null,null,null,null,null,null,null,null,null,null,null,null,null,null,null,null,null,null,null,{"$f":"SUM(AQ91:AY92)","v":0},null,null,null,null,null,null,null,null,{"$f":"SUM(AZ91:BI92)","v":0}]
[null,null,null,null,"1.1. pe perioada de execuţie a lucrărilor"]
[null,null,null,null,"1.2. pentru participarea proiectantului la fazele incluse în programul de control al lucrărilor de execuţie, avizat de către Inspectoratul de Stat în Construcţii"]
[null,null,null,null,"3.8.2 Dirigenţie de şantier, asigurată de personal tehnic de specialitate, autorizat"]
[null,null,null,null,"Total valoare fără TVA",null,null,null,null,null,null,null,null,null,null,null,null,null,null,null,null,null,null,null,null,null,null,null,null,null,null,null,null,null,null,null,null,null,null,null,null,null,{"$f":"AQ58+AQ62+AQ72+AQ73+AQ74+AQ81+AQ86+AQ89","v":0},null,null,null,null,null,null,null,null,{"$f":"AZ58+AZ62+AZ72+AZ73+AZ74+AZ81+AZ86+AZ89","v":0}]
[null,null,null,null,"Valoare TVA (aferentă cheltuielilor eligibile şi neeligibile)"]
["TOTAL DEVIZ FINANCIAR 1 (inclusiv TVA)",null,null,null,null,null,null,null,null,null,null,null,null,null,null,null,null,null,null,null,null,null,null,null,null,null,null,null,null,null,null,null,null,null,null,null,null,null,null,null,null,null,{"$f":"AQ94+AZ94+AQ95+AZ95","v":0}]

{"sheet":"Anexa 2","index":2,"n_rows":58,"n_cols":52,"rows_kept":58,"cut":false,"hidden":false,"merged":[[10,51,10,60],[11,0,11,3],[11,4,11,41],[11,42,11,50],[11,51,11,60],[8,0,8,3],[8,4,8,41],[19,0,19,3],[19,4,19,41],[19,42,19,50],[19,51,19,60],[18,51,18,60],[20,0,20,60],[16,0,16,3],[16,4,16,41],[16,42,16,50],[16,51,16,60],[17,0,17,60],[18,0,18,3],[18,4,18,41],[18,42,18,50],[21,0,21,3],[21,4,21,41],[21,42,21,50],[21,51,21,60],[22,0,22,3],[22,4,22,41],[22,42,22,50],[22,51,22,60],[23,42,23,50],[23,51,23,60],[23,0,23,3],[23,4,23,41],[38,0,38,41],[38,42,38,50],[38,51,38,60],[39,0,39,41],[39,42,39,50],[39,51,39,60],[24,42,24,50],[24,51,24,60],[31,7,31,41],[32,7,32,41],[24,0,24,3],[24,4,24,41],[25,0,25,3],[25,4,25,41],[25,42,25,50],[25,51,25,60],[26,0,26,41],[26,42,26,50],[26,51,26,60],[27,0,27,41],[27,42,27,50],[27,51,27,60],[28,0,28,41],[28,42,28,60],[40,42,40,50],[40,51,40,60],[41,42,41,50],[41,51,41,60],[42,0,42,3],[42,4,42,41],[42,42,42,50],[42,51,42,60],[40,0,40,3],[40,4,40,41],[41,0,41,3],[41,4,41,41],[48,4,48,41],[48,42,48,50],[48,51,48,60],[46,0,46,60],[43,0,43,3],[43,4,43,41],[43,42,43,50],[43,51,43,60],[44,0,44,3],[44,4,44,41],[44,42,44,50],[44,51,44,60],[45,0,45,3],[45,4,45,41],[45,42,45,50],[45,51,45,60],[47,0,47,3],[47,4,47,41],[47,42,47,50],[47,51,47,60],[48,0,48,3],[57,0,57,41],[57,42,57,60],[52,0,52,3],[52,4,52,41],[52,42,52,50],[52,51,52,60],[53,0,53,3],[53,4,53,41],[53,42,53,50],[53,51,53,60],[54,0,54,3],[54,4,54,41],[54,42,54,50],[54,51,54,60],[55,42,55,50],[55,51,55,60],[56,42,56,50],[56,51,56,60],[55,0,55,41],[56,0,56,41],[50,0,50,3],[50,4,50,41],[50,42,50,50],[50,51,50,60],[49,0,49,60],[51,0,51,3],[51,4,51,41],[51,42,51,50],[51,51,51,60],[6,0,6,60],[7,0,7,60],[8,42,8,60],[9,0,9,41],[10,0,10,41],[15,0,15,3],[15,4,15,41],[15,42,15,50],[15,51,15,60],[12,0,12,3],[12,4,12,41],[12,42,12,50],[12,51,12,60],[13,0,13,3],[13,4,13,41],[13,42,13,50],[13,51,13,60],[14,0,14,3],[14,4,14,41],[14,42,14,50],[14,51,14,60],[9,42,9,50],[9,51,9,60],[10,42,10,50],[0,7,0,41],[1,7,1,41],[1,42,2,60],[2,7,2,41],[3,7,3,41],[3,42,3,50],[3,51,3,60],[4,7,4,60],[5,0,5,60],[29,7,29,41],[30,7,30,41],[30,42,31,60],[32,42,32,50],[32,51,32,60],[33,7,33,60],[34,0,34,60],[35,0,35,60],[37,0,37,3],[37,4,37,41],[37,42,37,60],[36,0,36,60]]}
[null,null,null,null,null,null,null,"MINISTERUL AGRICULTURII ŞI DEZVOLTĂRII RURALE"]
[null,null,null,null,null,null,null,null,null,null,null,null,null,null,null,null,null,null,null,null,null,null,null,null,null,null,null,null,null,null,null,null,null,null,null,null,null,null,null,null,null,null,"Anexa A2\nHG 907/2016"]
[null,null,null,null,null,null,null,"AGENŢIA PENTRU FINANŢAREA INVESTIŢIILOR RURALE"]
[null,null,null,null,null,null,null,null,null,null,null,null,null,null,null,null,null,null,null,null,null,null,null,null,null,null,null,null,null,null,null,null,null,null,null,null,null,null,null,null,null,null,null,null,null,null,null,null,null,null,null,"Nr.2"]
[null,null,null,null,null,null,null,"DEVIZ PE OBIECT *"]
[]
[]
["(Descriere obiect de construcţie)"]
["Nr. crt.",null,null,null,"Denumire",null,null,null,null,null,null,null,null,null,null,null,null,null,null,null,null,null,null,null,null,null,null,null,null,null,null,null,null,null,null,null,null,null,null,null,null,null,"Valoarea pe categorii de lucrări, fară TVA - EURO"]
["Cap. 4 + Cheltuieli pentru investiţia de bază",null,null,null,null,null,null,null,null,null,null,null,null,null,null,null,null,null,null,null,null,null,null,null,null,null,null,null,null,null,null,null,null,null,null,null,null,null,null,null,null,null,"Valoare eligibilă",null,null,null,null,null,null,null,null,"Valoare\nneeligibilă"]
["I - LUCRĂRI DE CONSTRUCŢII ŞI INSTALAŢII"]
["4.1",null,null,null,"Construcții și instalații"]
[null,null,null,null,"4.1.1 Terasamente, sistematizare pe verticală și amenajări exterioare"]
[null,null,null,null,"4.1.2 Rezistență"]
[null,null,null,null,"4.1.3 Arhitectură"]
[null,null,null,null,"4.1.4 Instalații"]
[null,null,null,null,"TOTAL I ( fără TVA)",null,null,null,null,null,null,null,null,null,null,null,null,null,null,null,null,null,null,null,null,null,null,null,null,null,null,null,null,null,null,null,null,null,null,null,null,null,{"$f":"SUM(AQ13:AY16)","v":0},null,null,null,null,null,null,null,null,{"$f":"SUM(AZ13:BI16)","v":0}]
["II - MONTAJ"]
["4.2",null,null,null,"Montaj utilaje, echipamente tehnologice și funcționale"]
[null,null,null,null,"TOTAL II ( fără TVA)",null,null,null,null,null,null,null,null,null,null,null,null,null,null,null,null,null,null,null,null,null,null,null,null,null,null,null,null,null,null,null,null,null,null,null,null,null,{"$f":"SUM(AQ19)","v":0},null,null,null,null,null,null,null,null,{"$f":"SUM(AZ19)","v":0}]
["III - PROCURARE"]
["4.3",null,null,null,"Utilaje, echipamente tehnologice și funcționale care necesită montaj"]
["4.4",null,null,null,"Utilaje, echipamente tehnologice și funcționale care nu necesită montaj și echipamente de transport"]
["4.5",null,null,null,"Dotări"]
["4.6",null,null,null,"Active necorporale"]
[null,null,null,null,"TOTAL III ( fără TVA)",null,null,null,null,null,null,null,null,null,null,null,null,null,null,null,null,null,null,null,null,null,null,null,null,null,null,null,null,null,null,null,null,null,null,null,null,null,{"$f":"SUM(AQ22:AY25)","v":0},null,null,null,null,null,null,null,null,{"$f":"SUM(AZ22:BI25)","v":0}]
["TOTAL ( TOTAL I + TOTAL II +TOTAL III) fără TVA",null,null,null,null,null,null,null,null,null,null,null,null,null,null,null,null,null,null,null,null,null,null,null,null,null,null,null,null,null,null,null,null,null,null,null,null,null,null,null,null,null,{"$f":"AQ26+AQ20+AQ17","v":0},null,null,null,null,null,null,null,null,{"$f":"AZ26+AZ20+AZ17","v":0}]
["TVA aferent cheltuielilor eligibile şi neeligibile"]
["TOTAL DEVIZ PE OBIECT (inclusiv TVA)",null,null,null,null,null,null,null,null,null,null,null,null,null,null,null,null,null,null,null,null,null,null,null,null,null,null,null,null,null,null,null,null,null,null,null,null,null,null,null,null,null,{"$f":"AQ27+AZ27+AQ28+AZ28","v":0}]
[null,null,null,null,null,null,null,"MINISTERUL AGRICULTURII ŞI DEZVOLTĂRII RURALE"]
[null,null,null,null,null,null,null,null,null,null,null,null,null,null,null,null,null,null,null,null,null,null,null,null,null,null,null,null,null,null,null,null,null,null,null,null,null,null,null,null,null,null,"Anexa A2\nHG 907/2016"]
[null,null,null,null,null,null,null,"AGENŢIA PENTRU FINANŢAREA INVESTIŢIILOR RURALE"]
[null,null,null,null,null,null,null,null,null,null,null,null,null,null,null,null,null,null,null,null,null,null,null,null,null,null,null,null,null,null,null,null,null,null,null,null,null,null,null,null,null,null,null,null,null,null,null,null,null,null,null,"Nr.3"]
[null,null,null,null,null,null,null,"DEVIZ PE OBIECT *"]
[]
[]
["(Descriere obiect de construcţie)"]
["Nr. crt.",null,null,null,"Denumire",null,null,null,null,null,null,null,null,null,null,null,null,null,null,null,null,null,null,null,null,null,null,null,null,null,null,null,null,null,null,null,null,null,null,null,null,null,"Valoarea pe categorii de lucrări, fară TVA - EURO"]
["Cap. 4 + Cheltuieli pentru investiţia de bază",null,null,null,null,null,null,null,null,null,null,null,null,null,null,null,null,null,null,null,null,null,null,null,null,null,null,null,null,null,null,null,null,null,null,null,null,null,null,null,null,null,"Valoare eligibilă",null,null,null,null,null,null,null,null,"Valoare\nneeligibilă"]
["I - LUCRĂRI DE CONSTRUCŢII ŞI INSTALAŢII"]
["4.1",null,null,null,"Construcții și instalații"]
[null,null,null,null,"4.1.1 Terasamente, sistematizare pe verticală și amenajări exterioare"]
[null,null,null,null,"4.1.2 Rezistență"]
[null,null,null,null,"4.1.3 Arhitectură"]
[null,null,null,null,"4.1.4 Instalații"]
[null,null,null,null,"TOTAL I ( fără TVA)",null,null,null,null,null,null,null,null,null,null,null,null,null,null,null,null,null,null,null,null,null,null,null,null,null,null,null,null,null,null,null,null,null,null,null,null,null,{"$f":"SUM(AQ42:AY45)","v":0},null,null,null,null,null,null,null,null,{"$f":"SUM(AZ42:BI45)","v":0}]
["II - MONTAJ"]
["4.2",null,null,null,"Montaj utilaje, echipamente tehnologice și funcționale"]
[null,null,null,null,"TOTAL II ( fără TVA)",null,null,null,null,null,null,null,null,null,null,null,null,null,null,null,null,null,null,null,null,null,null,null,null,null,null,null,null,null,null,null,null,null,null,null,null,null,{"$f":"SUM(AQ48)","v":0},null,null,null,null,null,null,null,null,{"$f":"SUM(AZ48)","v":0}]
["III - PROCURARE"]
["4.3",null,null,null,"Utilaje, echipamente tehnologice și funcționale care necesită montaj"]
["4.4",null,null,null,"Utilaje, echipamente tehnologice și funcționale care nu necesită montaj și echipamente de transport"]
["4.5",null,null,null,"Dotări"]
["4.6",null,null,null,"Active necorporale"]
[null,null,null,null,"TOTAL III ( fără TVA)",null,null,null,null,null,null,null,null,null,null,null,null,null,null,null,null,null,null,null,null,null,null,null,null,null,null,null,null,null,null,null,null,null,null,null,null,null,{"$f":"SUM(AQ51:AY54)","v":0},null,null,null,null,null,null,null,null,{"$f":"SUM(AZ51:BI54)","v":0}]
["TOTAL ( TOTAL I + TOTAL II +TOTAL III) fără TVA",null,null,null,null,null,null,null,null,null,null,null,null,null,null,null,null,null,null,null,null,null,null,null,null,null,null,null,null,null,null,null,null,null,null,null,null,null,null,null,null,null,{"$f":"AQ55+AQ49+AQ46","v":0},null,null,null,null,null,null,null,null,{"$f":"AZ55+AZ49+AZ46","v":0}]
["TVA aferent cheltuielilor eligibile şi neeligibile"]
["TOTAL DEVIZ PE OBIECT (inclusiv TVA)",null,null,null,null,null,null,null,null,null,null,null,null,null,null,null,null,null,null,null,null,null,null,null,null,null,null,null,null,null,null,null,null,null,null,null,null,null,null,null,null,null,{"$f":"AQ56+AZ56+AQ57+AZ57","v":0}]

{"sheet":"Anexa 3","index":3,"n_rows":163,"n_cols":52,"rows_kept":163,"cut":false,"hidden":false,"merged":[[3,7,3,41],[3,42,4,60],[4,7,4,41],[5,7,5,41],[5,42,5,50],[5,51,5,60],[6,7,6,60],[7,0,7,60],[8,0,8,60],[9,0,9,60],[10,0,10,60],[11,0,11,3],[11,4,11,41],[11,42,11,50],[11,51,11,60],[12,0,12,3],[12,4,12,41],[12,42,12,50],[12,51,12,60],[13,0,13,3],[13,4,13,41],[13,42,13,50],[13,51,13,60],[14,0,14,3],[14,4,14,41],[14,42,14,50],[14,51,14,60],[15,0,15,3],[15,4,15,41],[15,42,15,50],[15,51,15,60],[16,0,16,3],[16,4,16,41],[16,42,16,50],[16,51,16,60],[17,0,17,3],[17,4,17,41],[17,42,17,50],[17,51,17,60],[18,0,18,3],[18,4,18,41],[18,42,18,50],[18,51,18,60],[19,0,19,3],[19,4,19,41],[19,42,19,50],[19,51,19,60],[20,0,20,3],[20,4,20,41],[20,42,20,50],[20,51,20,60],[21,0,21,3],[21,4,21,41],[21,42,21,50],[21,51,21,60],[22,0,22,3],[22,4,22,41],[22,42,22,50],[22,51,22,60],[23,0,23,41],[23,42,23,60],[24,0,24,3],[24,4,24,41],[24,42,24,50],[24,51,24,60],[25,0,25,60],[26,0,26,3],[26,4,26,41],[26,42,26,50],[26,51,26,60],[27,0,27,60],[28,0,28,3],[28,4,28,41],[28,42,28,50],[28,51,28,60],[29,0,29,3],[29,4,29,41],[29,42,29,50],[29,51,29,60],[30,0,30,3],[30,4,30,41],[30,42,30,50],[30,51,30,60],[31,0,31,3],[31,4,31,41],[31,42,31,50],[31,51,31,60],[32,0,32,3],[32,4,32,41],[32,42,32,50],[32,51,32,60],[33,0,33,3],[33,4,33,41],[33,42,33,50],[33,51,33,60],[34,0,34,3],[34,4,34,41],[34,42,34,50],[34,51,34,60],[35,0,35,3],[35,4,35,41],[35,42,35,50],[35,51,35,60],[36,0,36,3],[36,4,36,41],[36,42,36,50],[36,51,36,60],[37,0,37,3],[37,4,37,41],[37,42,37,50],[37,51,37,60],[38,0,38,3],[38,4,38,41],[38,42,38,50],[38,51,38,60],[39,0,39,3],[39,4,39,41],[39,42,39,50],[39,51,39,60],[40,0,40,3],[40,4,40,41],[40,42,40,50],[40,51,40,60],[41,0,41,3],[41,4,41,41],[41,42,41,60],[44,7,44,41],[44,42,45,60],[45,7,45,41],[46,7,46,41],[46,42,46,50],[46,51,46,60],[47,7,47,60],[48,0,48,60],[49,0,49,60],[50,0,50,60],[51,0,51,60],[52,0,52,3],[52,4,52,41],[52,42,52,50],[52,51,52,60],[53,0,53,3],[53,4,53,41],[53,42,53,50],[53,51,53,60],[54,0,54,3],[54,4,54,41],[54,42,54,50],[54,51,54,60],[55,0,55,3],[55,4,55,41],[55,42,55,50],[55,51,55,60],[56,0,56,3],[56,4,56,41],[56,42,56,50],[56,51,56,60],[57,0,57,3],[57,4,57,41],[57,42,57,50],[57,51,57,60],[58,0,58,3],[58,4,58,41],[58,42,58,50],[58,51,58,60],[59,0,59,3],[59,4,59,41],[59,42,59,50],[59,51,59,60],[60,0,60,3],[60,4,60,41],[60,42,60,50],[60,51,60,60],[61,0,61,3],[61,4,61,41],[61,42,61,50],[61,51,61,60],[62,0,62,3],[62,4,62,41],[62,42,62,50],[62,51,62,60],[63,0,63,3],[63,4,63,41],[63,42,63,50],[63,51,63,60],[64,0,64,41],[64,42,64,60],[65,0,65,3],[65,4,65,41],[65,42,65,50],[65,51,65,60],[66,0,66,60],[67,0,67,3],[67,4,67,41],[67,42,67,50],[67,51,67,60],[68,0,68,60],[69,0,69,3],[69,4,69,41],[69,42,69,50],[69,51,69,60],[70,0,70,3],[70,4,70,41],[70,42,70,50],[70,51,70,60],[71,0,71,3],[71,4,71,41],[71,42,71,50],[71,51,71,60],[72,0,72,3],[72,4,72,41],[72,42,72,50],[72,51,72,60],[73,0,73,3],[73,4,73,41],[73,42,73,50],[73,51,73,60],[74,0,74,3],[74,4,74,41],[74,42,74,50],[74,51,74,60],[75,0,75,3],[75,4,75,41],[75,42,75,50],[75,51,75,60],[76,0,76,3],[76,4,76,41],[76,42,76,50],[76,51,76,60],[77,0,77,3],[77,4,77,41],[77,42,77,50],[77,51,77,60],[78,0,78,3],[78,4,78,41],[78,42,78,50],[78,51,78,60],[79,0,79,3],[79,4,79,41],[79,42,79,50],[79,51,79,60],[84,7,84,41],[84,42,85,60],[85,7,85,41],[86,7,86,41],[86,42,86,50],[86,51,86,60],[87,7,87,60],[88,0,88,60],[80,0,80,3],[80,4,80,41],[80,42,80,50],[80,51,80,60],[81,0,81,3],[81,4,81,41],[81,42,81,50],[81,51,81,60],[82,0,82,3],[82,4,82,41],[82,42,82,60],[89,0,89,60],[90,0,90,60],[91,0,91,60],[92,0,92,3],[92,4,92,41],[92,42,92,50],[92,51,92,60],[93,0,93,3],[93,4,93,41],[93,42,93,50],[93,51,93,60],[94,0,94,3],[94,4,94,41],[94,42,94,50],[94,51,94,60],[95,0,95,3],[95,4,95,41],[95,42,95,50],[95,51,95,60],[96,0,96,3],[96,4,96,41],[96,42,96,50],[96,51,96,60],[97,0,97,3],[97,4,97,41],[97,42,97,50],[97,51,97,60],[98,0,98,3],[98,4,98,41],[98,42,98,50],[98,51,98,60],[99,0,99,3],[99,4,99,41],[99,42,99,50],[99,51,99,60],[100,0,100,3],[100,4,100,41],[100,42,100,50],[100,51,100,60],[101,0,101,3],[101,4,101,41],[101,42,101,50],[101,51,101,60],[102,0,102,3],[102,4,102,41],[102,42,102,50],[102,51,102,60],[103,0,103,3],[103,4,103,41],[103,42,103,50],[103,51,103,60],[104,0,104,41],[104,42,104,60],[105,0,105,3],[105,4,105,41],[105,42,105,50],[105,51,105,60],[106,0,106,60],[107,0,107,3],[107,4,107,41],[107,42,107,50],[107,51,107,60],[108,0,108,60],[109,0,109,3],[109,4,109,41],[109,42,109,50],[109,51,109,60],[110,0,110,3],[110,4,110,41],[110,42,110,50],[110,51,110,60],[111,0,111,3],[111,4,111,41],[111,42,111,50],[111,51,111,60],[112,0,112,3],[112,4,112,41],[112,42,112,50],[112,51,112,60],[113,0,113,3],[113,4,113,41],[113,42,113,50],[113,51,113,60],[114,0,114,3],[114,4,114,41],[114,42,114,50],[114,51,114,60],[115,0,115,3],[115,4,115,41],[115,42,115,50],[115,51,115,60],[116,0,116,3],[116,4,116,41],[116,42,116,50],[116,51,116,60],[117,0,117,3],[117,4,117,41],[117,42,117,50],[117,51,117,60],[118,0,118,3],[118,4,118,41],[118,42,118,50],[118,51,118,60],[119,0,119,3],[119,4,119,41],[119,42,119,50],[119,51,119,60],[120,0,120,3],[120,4,120,41],[120,42,120,50],[120,51,120,60],[121,0,121,3],[121,4,121,41],[121,42,121,50],[121,51,121,60],[122,0,122,3],[122,4,122,41],[122,42,122,60],[124,7,124,41],[124,42,125,60],[125,7,125,41],[126,7,126,41],[126,42,126,50],[126,51,126,60],[127,7,127,60],[128,0,128,60],[129,0,129,60],[130,0,130,60],[131,0,131,60],[132,0,132,3],[132,4,132,41],[132,42,132,50],[132,51,132,60],[133,0,133,3],[133,4,133,41],[133,42,133,50],[133,51,133,60],[134,0,134,3],[134,4,134,41],[134,42,134,50],[134,51,134,60],[135,0,135,3],[135,4,135,41],[135,42,135,50],[135,51,135,60],[136,0,136,3],[136,4,136,41],[136,42,136,50],[136,51,136,60],[137,0,137,3],[137,4,137,41],[137,42,137,50],[137,51,137,60],[138,0,138,3],[138,4,138,41],[138,42,138,50],[138,51,138,60],[139,0,139,3],[139,4,139,41],[139,42,139,50],[139,51,139,60],[140,0,140,3],[140,4,140,41],[140,42,140,50],[140,51,140,60],[141,0,141,3],[141,4,141,41],[141,42,141,50],[141,51,141,60],[142,0,142,3],[142,4,142,41],[142,42,142,50],[142,51,142,60],[143,0,143,3],[143,4,143,41],[143,42,143,50],[143,51,143,60],[144,0,144,41],[144,42,144,60],[145,0,145,3],[145,4,145,41],[145,42,145,50],[145,51,145,60],[146,0,146,60],[147,0,147,3],[147,4,147,41],[147,42,147,50],[147,51,147,60],[148,0,148,60],[149,0,149,3],[149,4,149,41],[149,42,149,50],[149,51,149,60],[150,0,150,3],[150,4,150,41],[150,42,150,50],[150,51,150,60],[151,0,151,3],[151,4,151,41],[151,42,151,50],[151,51,151,60],[152,0,152,3],[152,4,152,41],[152,42,152,50],[152,51,152,60],[153,0,153,3],[153,4,153,41],[153,42,153,50],[153,51,153,60],[154,0,154,3],[154,4,154,41],[154,42,154,50],[154,51,154,60],[155,0,155,3],[155,4,155,41],[155,42,155,50],[155,51,155,60],[156,0,156,3],[156,4,156,41],[156,42,156,50],[156,51,156,60],[157,0,157,3],[157,4,157,41],[157,42,157,50],[157,51,157,60],[158,0,158,3],[158,4,158,41],[158,42,158,50],[158,51,158,60],[159,0,159,3],[159,4,159,41],[159,42,159,50],[159,51,159,60],[160,0,160,3],[160,4,160,41],[160,42,160,50],[160,51,160,60],[161,0,161,3],[161,4,161,41],[161,42,161,50],[161,51,161,60],[162,0,162,3],[162,4,162,41],[162,42,162,60]]}
[]
[]
[]
[null,null,null,null,null,null,null,"MINISTERUL AGRICULTURII ŞI DEZVOLTĂRII RURALE",null,null,null,null,null,null,null,null,null,null,null,null,null,null,null,null,null,null,null,null,null,null,null,null,null,null,null,null,null,null,null,null,null,null,"Anexa A3\nHG 907/2016"]
[]
[null,null,null,null,null,null,null,"AGENŢIA PENTRU FINANŢAREA INVESTIŢIILOR RURALE",null,null,null,null,null,null,null,null,null,null,null,null,null,null,null,null,null,null,null,null,null,null,null,null,null,null,null,null,null,null,null,null,null,null,null,null,null,null,null,null,null,null,null,"Nr.2"]
[]
[]
[]
["(Titlu deviz)"]
["Deviz capitolul 2- Cheltuieli pentru asigurarea utilităţilor necesare obiectivului - EURO"]
["Nr.crt",null,null,null,"Specificaţie",null,null,null,null,null,null,null,null,null,null,null,null,null,null,null,null,null,null,null,null,null,null,null,null,null,null,null,null,null,null,null,null,null,null,null,null,null,"Valoare eligibilă",null,null,null,null,null,null,null,null,"Valoare\nneeligibilă"]
[1,null,null,null,"Alimentare cu apă"]
[2,null,null,null,"Canalizare"]
[3,null,null,null,"Alimentare cu gaze naturale"]
[4,null,null,null,"Alimentare cu agent termic"]
[5,null,null,null,"Alimentare cu energie electrică"]
[6,null,null,null,"Telecomunicaţii (telefonie, radio-tv,etc)"]
[7,null,null,null,"Drumuri de acces"]
[8,null,null,null,"Căi ferate industriale"]
[9,null,null,null,"Alte utilități"]
[null,null,null,null,"Total valoare fără TVA",null,null,null,null,null,null,null,null,null,null,null,null,null,null,null,null,null,null,null,null,null,null,null,null,null,null,null,null,null,null,null,null,null,null,null,null,null,{"$f":"SUM(AQ13:AY21)","v":0},null,null,null,null,null,null,null,null,{"$f":"SUM(AZ13:BI21)","v":0}]
[null,null,null,null,"Valoare TVA aferentă cheltuielilor eligibile şi neeligibile"]
["TOTAL DEVIZ CAPITOLUL 2 (inclusiv TVA)",null,null,null,null,null,null,null,null,null,null,null,null,null,null,null,null,null,null,null,null,null,null,null,null,null,null,null,null,null,null,null,null,null,null,null,null,null,null,null,null,null,{"$f":"AQ22+AZ22+AQ23+AZ23","v":0}]
[]
[" Deviz capitolul 5 - Alte cheltuieli - EURO"]
["Nr.crt",null,null,null,"Specificaţie",null,null,null,null,null,null,null,null,null,null,null,null,null,null,null,null,null,null,null,null,null,null,null,null,null,null,null,null,null,null,null,null,null,null,null,null,null,"Valoare eligibilă",null,null,null,null,null,null,null,null,"Valoare\nneeligibilă"]
[]
["5.1 ",null,null,null,"Organizare de şantier",null,null,null,null,null,null,null,null,null,null,null,null,null,null,null,null,null,null,null,null,null,null,null,null,null,null,null,null,null,null,null,null,null,null,null,null,null,{"$f":"SUM(AQ30:AY31)","v":0},null,null,null,null,null,null,null,null,{"$f":"SUM(AZ30:BI31)","v":0}]
[null,null,null,null,"5.1.1 Lucrări de construcţii şi instalaţii aferente organizării de şantier"]
[null,null,null,null,"5.1.2 Cheltuieli conexe organizării de şantier"]
["5.2",null,null,null,"Comisioane, cote, taxe, costul creditului",null,null,null,null,null,null,null,null,null,null,null,null,null,null,null,null,null,null,null,null,null,null,null,null,null,null,null,null,null,null,null,null,null,null,null,null,null,{"$f":"SUM(AQ34:AY37)","v":0},null,null,null,null,null,null,null,null,{"$f":"SUM(AZ33:BI37)","v":0}]
[null,null,null,null,"5.2.1. Comisioanele şi dobânzile aferente creditului băncii finanţatoare"]
[null,null,null,null,"5.2.2. Cota aferentă ISC pentru controlul calităţii lucrărilor de construcţii"]
[null,null,null,null,"5.2.3. Cota aferentă ISC pentru controlul statului în amenajarea teritoriului, urbanism şi pentru autorizarea lucrărilor de construcţii"]
[null,null,null,null,"5.2.4. Cota aferentă Casei Sociale a Constructorilor - CSC"]
[null,null,null,null,"5.2.5. Taxe pentru acorduri, avize conforme şi autorizaţia de construire/desfiinţare"]
["5.3",null,null,null," Cheltuieli diverse si neprevazute"]
["5.4",null,null,null," Cheltuieli pentru informare și publicitate"]
[null,null,null,null,"TOTAL DEVIZ CAPITOLUL 5",null,null,null,null,null,null,null,null,null,null,null,null,null,null,null,null,null,null,null,null,null,null,null,null,null,null,null,null,null,null,null,null,null,null,null,null,null,{"$f":"AQ29+AQ32+AQ38","v":0},null,null,null,null,null,null,null,null,{"$f":"AZ29+AZ32+AZ38+AZ39","v":0}]
[null,null,null,null,"VALOARE TVA aferentă cheltuielilor eligibile şi neeligibile"]
[null,null,null,null,"TOTAL DEVIZ CAPITOLUL 5 ( inclusiv TVA)",null,null,null,null,null,null,null,null,null,null,null,null,null,null,null,null,null,null,null,null,null,null,null,null,null,null,null,null,null,null,null,null,null,null,null,null,null,{"$f":"AQ40+AZ40+AQ41+AZ41","v":0}]
[]
[]
[null,null,null,null,null,null,null,"MINISTERUL AGRICULTURII ŞI DEZVOLTĂRII RURALE",null,null,null,null,null,null,null,null,null,null,null,null,null,null,null,null,null,null,null,null,null,null,null,null,null,null,null,null,null,null,null,null,null,null,"Anexa A3\nHG 907/2016"]
[]
[null,null,null,null,null,null,null,"AGENŢIA PENTRU FINANŢAREA INVESTIŢIILOR RURALE",null,null,null,null,null,null,null,null,null,null,null,null,null,null,null,null,null,null,null,null,null,null,null,null,null,null,null,null,null,null,null,null,null,null,null,null,null,null,null,null,null,null,null,"Nr.3"]
[]
[]
[]
["(Titlu deviz)"]
["Deviz capitolul 2- Cheltuieli pentru asigurarea utilităţilor necesare obiectivului - EURO"]
["Nr.crt",null,null,null,"Specificaţie",null,null,null,null,null,null,null,null,null,null,null,null,null,null,null,null,null,null,null,null,null,null,null,null,null,null,null,null,null,null,null,null,null,null,null,null,null,"Valoare eligibilă",null,null,null,null,null,null,null,null,"Valoare\nneeligibilă"]
[1,null,null,null,"Alimentare cu apă"]
[2,null,null,null,"Canalizare"]
[3,null,null,null,"Alimentare cu gaze naturale"]
[4,null,null,null,"Alimentare cu agent termic"]
[5,null,null,null,"Alimentare cu energie electrică"]
[6,null,null,null,"Telecomunicaţii (telefonie, radio-tv,etc)"]
[7,null,null,null,"Drumuri de acces"]
[8,null,null,null,"Căi ferate industriale"]
[9,null,null,null,"Alte utilități"]
[null,null,null,null,"Total valoare fără TVA",null,null,null,null,null,null,null,null,null,null,null,null,null,null,null,null,null,null,null,null,null,null,null,null,null,null,null,null,null,null,null,null,null,null,null,null,null,{"$f":"SUM(AQ54:AY62)","v":0},null,null,null,null,null,null,null,null,{"$f":"SUM(AZ54:BI62)","v":0}]
[null,null,null,null,"Valoare TVA aferentă cheltuielilor eligibile şi neeligibile"]
["TOTAL DEVIZ CAPITOLUL 2 (inclusiv TVA)",null,null,null,null,null,null,null,null,null,null,null,null,null,null,null,null,null,null,null,null,null,null,null,null,null,null,null,null,null,null,null,null,null,null,null,null,null,null,null,null,null,{"$f":"AQ63+AZ63+AQ64+AZ64","v":0}]
[]
[" Deviz capitolul 5 - Alte cheltuieli - EURO"]
["Nr.crt",null,null,null,"Specificaţie",null,null,null,null,null,null,null,null,null,null,null,null,null,null,null,null,null,null,null,null,null,null,null,null,null,null,null,null,null,null,null,null,null,null,null,null,null,"Valoare eligibilă",null,null,null,null,null,null,null,null,"Valoare\nneeligibilă"]
[]
["5.1 ",null,null,null,"Organizare de şantier",null,null,null,null,null,null,null,null,null,null,null,null,null,null,null,null,null,null,null,null,null,null,null,null,null,null,null,null,null,null,null,null,null,null,null,null,null,{"$f":"SUM(AQ71:AY72)","v":0},null,null,null,null,null,null,null,null,{"$f":"SUM(AZ71:BI72)","v":0}]
[null,null,null,null,"5.1.1 Lucrări de construcţii şi instalaţii aferente organizării de şantier"]
[null,null,null,null,"5.1.2 Cheltuieli conexe organizării de şantier"]
["5.2",null,null,null,"Comisioane, cote, taxe, costul creditului",null,null,null,null,null,null,null,null,null,null,null,null,null,null,null,null,null,null,null,null,null,null,null,null,null,null,null,null,null,null,null,null,null,null,null,null,null,{"$f":"SUM(AQ75:AY78)","v":0},null,null,null,null,null,null,null,null,{"$f":"SUM(AZ74:BI78)","v":0}]
[null,null,null,null,"5.2.1. Comisioanele şi dobânzile aferente creditului băncii finanţatoare"]
[null,null,null,null,"5.2.2. Cota aferentă ISC pentru controlul calităţii lucrărilor de construcţii"]
[null,null,null,null,"5.2.3. Cota aferentă ISC pentru controlul statului în amenajarea teritoriului, urbanism şi pentru autorizarea lucrărilor de construcţii"]
[null,null,null,null,"5.2.4. Cota aferentă Casei Sociale a Constructorilor - CSC"]
[null,null,null,null,"5.2.5. Taxe pentru acorduri, avize conforme şi autorizaţia de construire/desfiinţare"]
["5.3",null,null,null," Cheltuieli diverse si neprevazute"]
["5.4",null,null,null," Cheltuieli pentru informare și publicitate"]
[null,null,null,null,"TOTAL DEVIZ CAPITOLUL 5",null,null,null,null,null,null,null,null,null,null,null,null,null,null,null,null,null,null,null,null,null,null,null,null,null,null,null,null,null,null,null,null,null,null,null,null,null,{"$f":"AQ70+AQ73+AQ79","v":0},null,null,null,null,null,null,null,null,{"$f":"AZ70+AZ73+AZ79+AZ80","v":0}]
[null,null,null,null,"VALOARE TVA aferentă cheltuielilor eligibile şi neeligibile"]
[null,null,null,null,"TOTAL DEVIZ CAPITOLUL 5 ( inclusiv TVA)",null,null,null,null,null,null,null,null,null,null,null,null,null,null,null,null,null,null,null,null,null,null,null,null,null,null,null,null,null,null,null,null,null,null,null,null,null,{"$f":"AQ81+AZ81+AQ82+AZ82","v":0}]
[]
[null,null,null,null,null,null,null,"MINISTERUL AGRICULTURII ŞI DEZVOLTĂRII RURALE",null,null,null,null,null,null,null,null,null,null,null,null,null,null,null,null,null,null,null,null,null,null,null,null,null,null,null,null,null,null,null,null,null,null,"Anexa A3\nHG 907/2016"]
[]
[null,null,null,null,null,null,null,"AGENŢIA PENTRU FINANŢAREA INVESTIŢIILOR RURALE",null,null,null,null,null,null,null,null,null,null,null,null,null,null,null,null,null,null,null,null,null,null,null,null,null,null,null,null,null,null,null,null,null,null,null,null,null,null,null,null,null,null,null,"Nr.2"]
[]
[]
[]
["(Titlu deviz)"]
["Deviz capitolul 2- Cheltuieli pentru asigurarea utilităţilor necesare obiectivului - EURO"]
["Nr.crt",null,null,null,"Specificaţie",null,null,null,null,null,null,null,null,null,null,null,null,null,null,null,null,null,null,null,null,null,null,null,null,null,null,null,null,null,null,null,null,null,null,null,null,null,"Valoare eligibilă",null,null,null,null,null,null,null,null,"Valoare\nneeligibilă"]
[1,null,null,null,"Alimentare cu apă"]
[2,null,null,null,"Canalizare"]
[3,null,null,null,"Alimentare cu gaze naturale"]
[4,null,null,null,"Alimentare cu agent termic"]
[5,null,null,null,"Alimentare cu energie electrică"]
[6,null,null,null,"Telecomunicaţii (telefonie, radio-tv,etc)"]
[7,null,null,null,"Drumuri de acces"]
[8,null,null,null,"Căi ferate industriale"]
[9,null,null,null,"Alte utilități"]
[null,null,null,null,"Total valoare fără TVA",null,null,null,null,null,null,null,null,null,null,null,null,null,null,null,null,null,null,null,null,null,null,null,null,null,null,null,null,null,null,null,null,null,null,null,null,null,{"$f":"SUM(AQ94:AY102)","v":0},null,null,null,null,null,null,null,null,{"$f":"SUM(AZ94:BI102)","v":0}]
[null,null,null,null,"Valoare TVA aferentă cheltuielilor eligibile şi neeligibile"]
["TOTAL DEVIZ CAPITOLUL 2 (inclusiv TVA)",null,null,null,null,null,null,null,null,null,null,null,null,null,null,null,null,null,null,null,null,null,null,null,null,null,null,null,null,null,null,null,null,null,null,null,null,null,null,null,null,null,{"$f":"AQ103+AZ103+AQ104+AZ104","v":0}]
[]
[" Deviz capitolul 5 - Alte cheltuieli - EURO"]
["Nr.crt",null,null,null,"Specificaţie",null,null,null,null,null,null,null,null,null,null,null,null,null,null,null,null,null,null,null,null,null,null,null,null,null,null,null,null,null,null,null,null,null,null,null,null,null,"Valoare eligibilă",null,null,null,null,null,null,null,null,"Valoare\nneeligibilă"]
[]
["5.1 ",null,null,null,"Organizare de şantier",null,null,null,null,null,null,null,null,null,null,null,null,null,null,null,null,null,null,null,null,null,null,null,null,null,null,null,null,null,null,null,null,null,null,null,null,null,{"$f":"SUM(AQ111:AY112)","v":0},null,null,null,null,null,null,null,null,{"$f":"SUM(AZ111:BI112)","v":0}]
[null,null,null,null,"5.1.1 Lucrări de construcţii şi instalaţii aferente organizării de şantier"]
[null,null,null,null,"5.1.2 Cheltuieli conexe organizării de şantier"]
["5.2",null,null,null,"Comisioane, cote, taxe, costul creditului",null,null,null,null,null,null,null,null,null,null,null,null,null,null,null,null,null,null,null,null,null,null,null,null,null,null,null,null,null,null,null,null,null,null,null,null,null,{"$f":"SUM(AQ115:AY118)","v":0},null,null,null,null,null,null,null,null,{"$f":"SUM(AZ114:BI118)","v":0}]
[null,null,null,null,"5.2.1. Comisioanele şi dobânzile aferente creditului băncii finanţatoare"]
[null,null,null,null,"5.2.2. Cota aferentă ISC pentru controlul calităţii lucrărilor de construcţii"]
[null,null,null,null,"5.2.3. Cota aferentă ISC pentru controlul statului în amenajarea teritoriului, urbanism şi pentru autorizarea lucrărilor de construcţii"]
[null,null,null,null,"5.2.4. Cota aferentă Casei Sociale a Constructorilor - CSC"]
[null,null,null,null,"5.2.5. Taxe pentru acorduri, avize conforme şi autorizaţia de construire/desfiinţare"]
["5.3",null,null,null," Cheltuieli diverse si neprevazute"]
["5.4",null,null,null," Cheltuieli pentru informare și publicitate"]
[null,null,null,null,"TOTAL DEVIZ CAPITOLUL 5",null,null,null,null,null,null,null,null,null,null,null,null,null,null,null,null,null,null,null,null,null,null,null,null,null,null,null,null,null,null,null,null,null,null,null,null,null,{"$f":"AQ110+AQ113+AQ119","v":0},null,null,null,null,null,null,null,null,{"$f":"AZ110+AZ113+AZ119+AZ120","v":0}]
[null,null,null,null,"VALOARE TVA aferentă cheltuielilor eligibile şi neeligibile"]
[null,null,null,null,"TOTAL DEVIZ CAPITOLUL 5 ( inclusiv TVA)",null,null,null,null,null,null,null,null,null,null,null,null,null,null,null,null,null,null,null,null,null,null,null,null,null,null,null,null,null,null,null,null,null,null,null,null,null,{"$f":"AQ121+AZ121+AQ122+AZ122","v":0}]
[]
[null,null,null,null,null,null,null,"MINISTERUL AGRICULTURII ŞI DEZVOLTĂRII RURALE",null,null,null,null,null,null,null,null,null,null,null,null,null,null,null,null,null,null,null,null,null,null,null,null,null,null,null,null,null,null,null,null,null,null,"Anexa A3\nHG 907/2016"]
[]
[null,null,null,null,null,null,null,"AGENŢIA PENTRU FINANŢAREA INVESTIŢIILOR RURALE",null,null,null,null,null,null,null,null,null,null,null,null,null,null,null,null,null,null,null,null,null,null,null,null,null,null,null,null,null,null,null,null,null,null,null,null,null,null,null,null,null,null,null,"Nr.3"]
[]
[]
[]
["(Titlu deviz)"]
["Deviz capitolul 2- Cheltuieli pentru asigurarea utilităţilor necesare obiectivului - EURO"]
["Nr.crt",null,null,null,"Specificaţie",null,null,null,null,null,null,null,null,null,null,null,null,null,null,null,null,null,null,null,null,null,null,null,null,null,null,null,null,null,null,null,null,null,null,null,null,null,"Valoare eligibilă",null,null,null,null,null,null,null,null,"Valoare\nneeligibilă"]
[1,null,null,null,"Alimentare cu apă"]
[2,null,null,null,"Canalizare"]
[3,null,null,null,"Alimentare cu gaze naturale"]
[4,null,null,null,"Alimentare cu agent termic"]
[5,null,null,null,"Alimentare cu energie electrică"]
[6,null,null,null,"Telecomunicaţii (telefonie, radio-tv,etc)"]
[7,null,null,null,"Drumuri de acces"]
[8,null,null,null,"Căi ferate industriale"]
[9,null,null,null,"Alte utilități"]
[null,null,null,null,"Total valoare fără TVA",null,null,null,null,null,null,null,null,null,null,null,null,null,null,null,null,null,null,null,null,null,null,null,null,null,null,null,null,null,null,null,null,null,null,null,null,null,{"$f":"SUM(AQ134:AY142)","v":0},null,null,null,null,null,null,null,null,{"$f":"SUM(AZ134:BI142)","v":0}]
[null,null,null,null,"Valoare TVA aferentă cheltuielilor eligibile şi neeligibile"]
["TOTAL DEVIZ CAPITOLUL 2 (inclusiv TVA)",null,null,null,null,null,null,null,null,null,null,null,null,null,null,null,null,null,null,null,null,null,null,null,null,null,null,null,null,null,null,null,null,null,null,null,null,null,null,null,null,null,{"$f":"AQ143+AZ143+AQ144+AZ144","v":0}]
[]
[" Deviz capitolul 5 - Alte cheltuieli - EURO"]
["Nr.crt",null,null,null,"Specificaţie",null,null,null,null,null,null,null,null,null,null,null,null,null,null,null,null,null,null,null,null,null,null,null,null,null,null,null,null,null,null,null,null,null,null,null,null,null,"Valoare eligibilă",null,null,null,null,null,null,null,null,"Valoare\nneeligibilă"]
[]
["5.1 ",null,null,null,"Organizare de şantier",null,null,null,null,null,null,null,null,null,null,null,null,null,null,null,null,null,null,null,null,null,null,null,null,null,null,null,null,null,null,null,null,null,null,null,null,null,{"$f":"SUM(AQ151:AY152)","v":0},null,null,null,null,null,null,null,null,{"$f":"SUM(AZ151:BI152)","v":0}]
[null,null,null,null,"5.1.1 Lucrări de construcţii şi instalaţii aferente organizării de şantier"]
[null,null,null,null,"5.1.2 Cheltuieli conexe organizării de şantier"]
["5.2",null,null,null,"Comisioane, cote, taxe, costul creditului",null,null,null,null,null,null,null,null,null,null,null,null,null,null,null,null,null,null,null,null,null,null,null,null,null,null,null,null,null,null,null,null,null,null,null,null,null,{"$f":"SUM(AQ155:AY158)","v":0},null,null,null,null,null,null,null,null,{"$f":"SUM(AZ154:BI158)","v":0}]
[null,null,null,null,"5.2.1. Comisioanele şi dobânzile aferente creditului băncii finanţatoare"]
[null,null,null,null,"5.2.2. Cota aferentă ISC pentru controlul calităţii lucrărilor de construcţii"]
[null,null,null,null,"5.2.3. Cota aferentă ISC pentru controlul statului în amenajarea teritoriului, urbanism şi pentru autorizarea lucrărilor de construcţii"]
[null,null,null,null,"5.2.4. Cota aferentă Casei Sociale a Constructorilor - CSC"]
[null,null,null,null,"5.2.5. Taxe pentru acorduri, avize conforme şi autorizaţia de construire/desfiinţare"]
["5.3",null,null,null," Cheltuieli diverse si neprevazute"]
["5.4",null,null,null," Cheltuieli pentru informare și publicitate"]
[null,null,null,null,"TOTAL DEVIZ CAPITOLUL 5",null,null,null,null,null,null,null,null,null,null,null,null,null,null,null,null,null,null,null,null,null,null,null,null,null,null,null,null,null,null,null,null,null,null,null,null,null,{"$f":"AQ150+AQ153+AQ159","v":0},null,null,null,null,null,null,null,null,{"$f":"AZ150+AZ153+AZ159+AZ160","v":0}]
[null,null,null,null,"VALOARE TVA aferentă cheltuielilor eligibile şi neeligibile"]
[null,null,null,null,"TOTAL DEVIZ CAPITOLUL 5 ( inclusiv TVA)",null,null,null,null,null,null,null,null,null,null,null,null,null,null,null,null,null,null,null,null,null,null,null,null,null,null,null,null,null,null,null,null,null,null,null,null,null,{"$f":"AQ161+AZ161+AQ162+AZ162","v":0}]

{"sheet":"Asociati","index":4,"n_rows":55,"n_cols":53,"rows_kept":55,"cut":false,"hidden":false,"merged":[[0,0,0,60],[1,0,1,60],[3,5,3,13],[4,17,4,58],[6,3,6,10],[6,24,6,49],[7,3,7,16],[7,24,7,49],[11,4,11,15],[11,18,11,20],[11,21,11,26],[11,28,11,35],[11,37,11,48],[11,51,11,58],[12,4,12,6],[12,7,12,9],[12,10,12,15],[12,18,13,20],[12,21,13,26],[12,28,13,35],[12,37,13,48],[12,51,13,58],[13,4,13,6],[13,7,13,9],[13,10,13,15],[15,2,15,28],[16,25,16,35],[17,3,17,22],[17,25,17,42],[17,44,17,58],[19,46,19,49],[19,52,19,57],[20,5,20,13],[23,7,23,18],[25,9,25,58],[19,3,19,10],[19,13,19,29],[19,31,19,34],[19,36,19,39],[19,41,19,44],[27,29,27,51],[28,4,28,17],[28,29,28,50],[38,51,38,58],[30,5,30,13],[31,17,31,58],[33,3,33,10],[33,24,33,49],[34,3,34,16],[34,24,34,49],[38,4,38,15],[38,18,38,20],[38,21,38,26],[38,28,38,35],[38,37,38,48],[52,9,52,58],[39,37,40,48],[39,51,40,58],[40,4,40,6],[40,7,40,9],[40,10,40,15],[42,2,42,28],[39,4,39,6],[39,7,39,9],[39,10,39,15],[39,18,40,20],[39,21,40,26],[39,28,40,35],[54,29,54,51],[55,4,55,17],[55,29,55,50],[43,25,43,35],[44,3,44,22],[44,25,44,42],[44,44,44,58],[46,3,46,10],[46,13,46,29],[46,31,46,34],[46,36,46,39],[46,41,46,44],[46,46,46,49],[46,52,46,57],[47,5,47,13],[50,7,50,18]]}
["B INFORMAŢII PRIVIND SOLICITANTUL"]
[]
[null,"Asociați"]
[null,null,null,null,null,"Persoană Fizică: "]
[null,null,null,"Nume și prenume asociat : "]
[]
[null,null,null,"Data naşterii",null,null,null,null,null,null,null,null,null,null,null,null,null,null,null,null,null,null,null,null,"Cod numeric personal"]
[]
[]
[]
[]
[null,null,null,null,"Act de identitate",null,null,null,null,null,null,null,null,null,null,null,null,null,"Seria",null,null,"Nr.",null,null,null,null,null,null,"Eliberat la data de",null,null,null,null,null,null,null,null,"de:",null,null,null,null,null,null,null,null,null,null,null,null,null,"Valabil până la:"]
[null,null,null,null,"B.I.",null,null,"C.I.",null,null,"Paşaport"]
[]
[]
[null,null,"Adresa și domiciliul asociatului:"]
[null,null,null,"Judeţ",null,null,null,null,null,null,null,null,null,null,null,null,null,null,null,null,null,null,null,null,null,"Localitate",null,null,null,null,null,null,null,null,null,null,null,null,null,null,null,null,null,null,"Sat"]
[]
[null,null,null,"Cod Poştal",null,null,null,null,null,null,null,null,null,"Strada",null,null,null,null,null,null,null,null,null,null,null,null,null,null,null,null,null,"Nr.",null,null,null,null,"Bloc",null,null,null,null,"Scara",null,null,null,null,"Etaj",null,null,null,null,null,"Apartament"]
[]
[null,null,null,null,null,"Persoană Juridică: "]
[]
[null,null,null,null,null,null,null,"Înregistrată în România"]
[null,null,null,null,null,null,null,"Înregistrată în altă țară"]
[]
[null,null,null,"Denumire : "]
[]
[null,null,null,null,"CUI",null,null,null,null,null,null,null,null,null,null,null,null,null,null,null,null,null,null,null,null,null,null,null,null,"Nr. Inreg. ONRC"]
[]
[]
[null,null,null,null,null,"Persoană Fizică: "]
[null,null,null,"Nume și prenume asociat : "]
[]
[null,null,null,"Data naşterii",null,null,null,null,null,null,null,null,null,null,null,null,null,null,null,null,null,null,null,null,"Cod numeric personal"]
[]
[]
[]
[]
[null,null,null,null,"Act de identitate",null,null,null,null,null,null,null,null,null,null,null,null,null,"Seria",null,null,"Nr.",null,null,null,null,null,null,"Eliberat la data de",null,null,null,null,null,null,null,null,"de:",null,null,null,null,null,null,null,null,null,null,null,null,null,"Valabil până la:"]
[null,null,null,null,"B.I.",null,null,"C.I.",null,null,"Paşaport"]
[]
[]
[null,null,"Adresa și domiciliul asociatului:"]
[null,null,null,"Judeţ",null,null,null,null,null,null,null,null,null,null,null,null,null,null,null,null,null,null,null,null,null,"Localitate",null,null,null,null,null,null,null,null,null,null,null,null,null,null,null,null,null,null,"Sat"]
[]
[null,null,null,"Cod Poştal",null,null,null,null,null,null,null,null,null,"Strada",null,null,null,null,null,null,null,null,null,null,null,null,null,null,null,null,null,"Nr.",null,null,null,null,"Bloc",null,null,null,null,"Scara",null,null,null,null,"Etaj",null,null,null,null,null,"Apartament"]
[]
[null,null,null,null,null,"Persoană Juridică: "]
[]
[null,null,null,null,null,null,null,"Înregistrată în România"]
[null,null,null,null,null,null,null,"Înregistrată în altă țară"]
[]
[null,null,null,"Denumire : "]
[]
[null,null,null,null,"CUI",null,null,null,null,null,null,null,null,null,null,null,null,null,null,null,null,null,null,null,null,null,null,null,null,"Nr. Inreg. ONRC"]